Payment Date,Transaction Number,Non-Recoverable VAT,Amount,Supplier,Supplier Number,Expense Type,Directorate,Service Area
29/04/2024,945000,0,2815.66,22 ST PETERS ROAD HOME,8400008500,Residential,Adults & Health,NORTHBEXLEY
29/04/2024,945001,0,5631.32,22 ST PETERS ROAD HOME,8400008500,Residential,Adults & Health,NORTHBEXLEY
08/04/2024,945029,0,542.8,ABANTU CARE UK,8400028800,CommServs-ProvPayOP,Adults & Health,BOROUGHWIDE
08/04/2024,945033,0,687.4,ABANTU CARE UK,8400028800,CommServs-ProvPayOP,Adults & Health,BOROUGHWIDE
08/04/2024,945025,0,530,ABANTU CARE UK,8400028800,CommServs-ProvPayWA,Adults & Health,BOROUGHWIDE
08/04/2024,945038,0,760.2,ABANTU CARE UK,8400028800,CommServs-ProvPayWA,Adults & Health,BOROUGHWIDE
08/04/2024,945041,0,1202.46,ABANTU CARE UK,8400028800,CommServs-ProvPayWA,Adults & Health,BOROUGHWIDE
08/04/2024,945048,0,2545.06,ABANTU CARE UK,8400028800,CommServs-ProvPayWA,Adults & Health,BOROUGHWIDE
22/04/2024,945026,0,530,ABANTU CARE UK,8400028800,Homecare Conventional,Adults & Health,NORTHBEXLEY
22/04/2024,945027,0,530,ABANTU CARE UK,8400028800,Homecare Conventional,Adults & Health,NORTHBEXLEY
29/04/2024,945028,0,530,ABANTU CARE UK,8400028800,Homecare Conventional,Adults & Health,NORTHBEXLEY
22/04/2024,945030,0,542.8,ABANTU CARE UK,8400028800,Homecare Conventional,Adults & Health,NORTHBEXLEY
22/04/2024,945031,0,542.8,ABANTU CARE UK,8400028800,Homecare Conventional,Adults & Health,NORTHBEXLEY
29/04/2024,945032,0,542.8,ABANTU CARE UK,8400028800,Homecare Conventional,Adults & Health,NORTHBEXLEY
22/04/2024,945034,0,687.4,ABANTU CARE UK,8400028800,Homecare Conventional,Adults & Health,FROGNAL
22/04/2024,945035,0,687.4,ABANTU CARE UK,8400028800,Homecare Conventional,Adults & Health,FROGNAL
29/04/2024,945036,0,687.4,ABANTU CARE UK,8400028800,Homecare Conventional,Adults & Health,FROGNAL
22/04/2024,945037,0,695.52,ABANTU CARE UK,8400028800,Homecare Conventional,Adults & Health,NORTHBEXLEY
22/04/2024,945039,0,760.2,ABANTU CARE UK,8400028800,Homecare Conventional,Adults & Health,NORTHBEXLEY
29/04/2024,945040,0,760.2,ABANTU CARE UK,8400028800,Homecare Conventional,Adults & Health,NORTHBEXLEY
22/04/2024,945042,0,1202.46,ABANTU CARE UK,8400028800,Homecare Conventional,Adults & Health,NORTHBEXLEY
22/04/2024,945043,0,1202.46,ABANTU CARE UK,8400028800,Homecare Conventional,Adults & Health,NORTHBEXLEY
29/04/2024,945044,0,1202.46,ABANTU CARE UK,8400028800,Homecare Conventional,Adults & Health,NORTHBEXLEY
29/04/2024,945045,0,1822.45,ABANTU CARE UK,8400028800,Homecare Enhanced,Adults & Health,FROGNAL
29/04/2024,945046,0,1822.45,ABANTU CARE UK,8400028800,Homecare Enhanced,Adults & Health,FROGNAL
22/04/2024,945047,0,2181.48,ABANTU CARE UK,8400028800,Homecare Enhanced,Adults & Health,CLOCK TOWER
22/04/2024,945049,0,2545.06,ABANTU CARE UK,8400028800,Homecare Enhanced,Adults & Health,CLOCK TOWER
29/04/2024,945062,0,579.76,ABANTU HEALTHCARE SL,8400040700,Supported Living,Adults & Health,NORTHBEXLEY
29/04/2024,945063,0,868.32,ABANTU HEALTHCARE SL,8400040700,Supported Living,Adults & Health,NORTHBEXLEY
29/04/2024,945064,0,1159.52,ABANTU HEALTHCARE SL,8400040700,Supported Living,Adults & Health,NORTHBEXLEY
29/04/2024,945065,0,1736.64,ABANTU HEALTHCARE SL,8400040700,Supported Living,Adults & Health,NORTHBEXLEY
29/04/2024,945066,0,2454.02,ABANTU HEALTHCARE SL,8400040700,Supported Living,Adults & Health,NORTHBEXLEY
29/04/2024,945067,0,2982,ABANTU HEALTHCARE SL,8400040700,Supported Living,Adults & Health,FROGNAL
29/04/2024,945068,0,4908.04,ABANTU HEALTHCARE SL,8400040700,Supported Living,Adults & Health,NORTHBEXLEY
29/04/2024,945069,0,5251.6,ABANTU HEALTHCARE SL,8400040700,Supported Living,Adults & Health,CLOCK TOWER
29/04/2024,945070,0,5270,ABANTU HEALTHCARE SL,8400040700,Supported Living,Adults & Health,CLOCK TOWER
29/04/2024,945071,0,5964,ABANTU HEALTHCARE SL,8400040700,Supported Living,Adults & Health,FROGNAL
29/04/2024,945072,0,10503.2,ABANTU HEALTHCARE SL,8400040700,Supported Living,Adults & Health,CLOCK TOWER
29/04/2024,945073,0,10540,ABANTU HEALTHCARE SL,8400040700,Supported Living,Adults & Health,CLOCK TOWER
29/04/2024,945083,0,1283.61,ABBOTTSLEIGH MEWS,8400020100,NurPlcmts-ProvPayOP,Adults & Health,BOROUGHWIDE
29/04/2024,945097,0,1497.54,ABBOTTSLEIGH MEWS,8400020100,NurPlcmts-ProvPayOP,Adults & Health,BOROUGHWIDE
29/04/2024,945100,0,1497.54,ABBOTTSLEIGH MEWS,8400020100,NurPlcmts-ProvPayOP,Adults & Health,BOROUGHWIDE
29/04/2024,945101,0,1497.54,ABBOTTSLEIGH MEWS,8400020100,NurPlcmts-ProvPayOP,Adults & Health,BOROUGHWIDE
29/04/2024,945102,0,1497.54,ABBOTTSLEIGH MEWS,8400020100,NurPlcmts-ProvPayOP,Adults & Health,BOROUGHWIDE
29/04/2024,945103,0,1497.54,ABBOTTSLEIGH MEWS,8400020100,NurPlcmts-ProvPayOP,Adults & Health,BOROUGHWIDE
29/04/2024,945104,0,1497.54,ABBOTTSLEIGH MEWS,8400020100,NurPlcmts-ProvPayOP,Adults & Health,BOROUGHWIDE
29/04/2024,945105,0,1497.54,ABBOTTSLEIGH MEWS,8400020100,NurPlcmts-ProvPayOP,Adults & Health,BOROUGHWIDE
29/04/2024,945138,0,1572.42,ABBOTTSLEIGH MEWS,8400020100,NurPlcmts-ProvPayOP,Adults & Health,BOROUGHWIDE
29/04/2024,945139,0,1572.42,ABBOTTSLEIGH MEWS,8400020100,NurPlcmts-ProvPayOP,Adults & Health,BOROUGHWIDE
29/04/2024,945140,0,1572.42,ABBOTTSLEIGH MEWS,8400020100,NurPlcmts-ProvPayOP,Adults & Health,BOROUGHWIDE
29/04/2024,945141,0,1572.42,ABBOTTSLEIGH MEWS,8400020100,NurPlcmts-ProvPayOP,Adults & Health,BOROUGHWIDE
29/04/2024,945155,0,2079.02,ABBOTTSLEIGH MEWS,8400020100,NurPlcmts-ProvPayOP,Adults & Health,BOROUGHWIDE
29/04/2024,945156,0,2079.02,ABBOTTSLEIGH MEWS,8400020100,NurPlcmts-ProvPayOP,Adults & Health,BOROUGHWIDE
29/04/2024,945158,0,2079.02,ABBOTTSLEIGH MEWS,8400020100,NurPlcmts-ProvPayOP,Adults & Health,BOROUGHWIDE
29/04/2024,945159,0,2079.02,ABBOTTSLEIGH MEWS,8400020100,NurPlcmts-ProvPayOP,Adults & Health,BOROUGHWIDE
29/04/2024,945160,0,2079.02,ABBOTTSLEIGH MEWS,8400020100,NurPlcmts-ProvPayOP,Adults & Health,BOROUGHWIDE
29/04/2024,945170,0,2182.96,ABBOTTSLEIGH MEWS,8400020100,NurPlcmts-ProvPayOP,Adults & Health,BOROUGHWIDE
29/04/2024,945171,0,2182.96,ABBOTTSLEIGH MEWS,8400020100,NurPlcmts-ProvPayOP,Adults & Health,BOROUGHWIDE
29/04/2024,945172,0,2182.96,ABBOTTSLEIGH MEWS,8400020100,NurPlcmts-ProvPayOP,Adults & Health,BOROUGHWIDE
29/04/2024,945173,0,2182.96,ABBOTTSLEIGH MEWS,8400020100,NurPlcmts-ProvPayOP,Adults & Health,BOROUGHWIDE
29/04/2024,945174,0,2182.96,ABBOTTSLEIGH MEWS,8400020100,NurPlcmts-ProvPayOP,Adults & Health,BOROUGHWIDE
29/04/2024,945175,0,2182.96,ABBOTTSLEIGH MEWS,8400020100,NurPlcmts-ProvPayOP,Adults & Health,BOROUGHWIDE
29/04/2024,945176,0,2182.96,ABBOTTSLEIGH MEWS,8400020100,NurPlcmts-ProvPayOP,Adults & Health,BOROUGHWIDE
29/04/2024,945177,0,2182.96,ABBOTTSLEIGH MEWS,8400020100,NurPlcmts-ProvPayOP,Adults & Health,BOROUGHWIDE
29/04/2024,945082,0,594.01,ABBOTTSLEIGH MEWS,8400020100,Nursing,Adults & Health,FROGNAL
29/04/2024,945091,0,1497.54,ABBOTTSLEIGH MEWS,8400020100,Nursing,Adults & Health,FROGNAL
29/04/2024,945092,0,1497.54,ABBOTTSLEIGH MEWS,8400020100,Nursing,Adults & Health,FROGNAL
29/04/2024,945093,0,1497.54,ABBOTTSLEIGH MEWS,8400020100,Nursing,Adults & Health,FROGNAL
29/04/2024,945094,0,1497.54,ABBOTTSLEIGH MEWS,8400020100,Nursing,Adults & Health,NORTHBEXLEY
29/04/2024,945095,0,1497.54,ABBOTTSLEIGH MEWS,8400020100,Nursing,Adults & Health,NORTHBEXLEY
29/04/2024,945096,0,1497.54,ABBOTTSLEIGH MEWS,8400020100,Nursing,Adults & Health,NORTHBEXLEY
29/04/2024,945098,0,1497.54,ABBOTTSLEIGH MEWS,8400020100,Nursing,Adults & Health,CLOCK TOWER
29/04/2024,945134,0,1572.42,ABBOTTSLEIGH MEWS,8400020100,Nursing,Adults & Health,FROGNAL
29/04/2024,945135,0,1572.42,ABBOTTSLEIGH MEWS,8400020100,Nursing,Adults & Health,FROGNAL
29/04/2024,945136,0,1572.42,ABBOTTSLEIGH MEWS,8400020100,Nursing,Adults & Health,NORTHBEXLEY
29/04/2024,945137,0,1572.42,ABBOTTSLEIGH MEWS,8400020100,Nursing,Adults & Health,CLOCK TOWER
29/04/2024,945150,0,2079.02,ABBOTTSLEIGH MEWS,8400020100,Nursing,Adults & Health,FROGNAL
29/04/2024,945151,0,2079.02,ABBOTTSLEIGH MEWS,8400020100,Nursing,Adults & Health,FROGNAL
29/04/2024,945152,0,2079.02,ABBOTTSLEIGH MEWS,8400020100,Nursing,Adults & Health,FROGNAL
29/04/2024,945153,0,2079.02,ABBOTTSLEIGH MEWS,8400020100,Nursing,Adults & Health,NORTHBEXLEY
29/04/2024,945154,0,2079.02,ABBOTTSLEIGH MEWS,8400020100,Nursing,Adults & Health,NORTHBEXLEY
29/04/2024,945157,0,2079.02,ABBOTTSLEIGH MEWS,8400020100,Nursing,Adults & Health,FROGNAL
29/04/2024,945162,0,2182.96,ABBOTTSLEIGH MEWS,8400020100,Nursing,Adults & Health,FROGNAL
29/04/2024,945163,0,2182.96,ABBOTTSLEIGH MEWS,8400020100,Nursing,Adults & Health,FROGNAL
29/04/2024,945164,0,2182.96,ABBOTTSLEIGH MEWS,8400020100,Nursing,Adults & Health,FROGNAL
29/04/2024,945165,0,2182.96,ABBOTTSLEIGH MEWS,8400020100,Nursing,Adults & Health,FROGNAL
29/04/2024,945166,0,2182.96,ABBOTTSLEIGH MEWS,8400020100,Nursing,Adults & Health,FROGNAL
29/04/2024,945167,0,2182.96,ABBOTTSLEIGH MEWS,8400020100,Nursing,Adults & Health,CLOCK TOWER
29/04/2024,945168,0,2182.96,ABBOTTSLEIGH MEWS,8400020100,Nursing,Adults & Health,NORTHBEXLEY
29/04/2024,945169,0,2182.96,ABBOTTSLEIGH MEWS,8400020100,Nursing,Adults & Health,NORTHBEXLEY
29/04/2024,945178,0,3490,ABBOTTSLEIGH MEWS,8400020100,Nursing,Adults & Health,FROGNAL
29/04/2024,945179,0,3490,ABBOTTSLEIGH MEWS,8400020100,Nursing,Adults & Health,FROGNAL
29/04/2024,945180,0,4985.71,ABBOTTSLEIGH MEWS,8400020100,Nursing,Adults & Health,FROGNAL
29/04/2024,945181,0,6980,ABBOTTSLEIGH MEWS,8400020100,Nursing,Adults & Health,FROGNAL
29/04/2024,945182,0,6980,ABBOTTSLEIGH MEWS,8400020100,Nursing,Adults & Health,FROGNAL
29/04/2024,945183,0,6980,ABBOTTSLEIGH MEWS,8400020100,Nursing,Adults & Health,FROGNAL
29/04/2024,945184,0,6980,ABBOTTSLEIGH MEWS,8400020100,Nursing,Adults & Health,FROGNAL
29/04/2024,945084,0,1473.38,ABBOTTSLEIGH MEWS,8400020100,Residential,Adults & Health,FROGNAL
29/04/2024,945085,0,1473.38,ABBOTTSLEIGH MEWS,8400020100,Residential,Adults & Health,NORTHBEXLEY
29/04/2024,945086,0,1473.38,ABBOTTSLEIGH MEWS,8400020100,Residential,Adults & Health,NORTHBEXLEY
29/04/2024,945106,0,1521.7,ABBOTTSLEIGH MEWS,8400020100,Residential,Adults & Health,FROGNAL
29/04/2024,945107,0,1521.7,ABBOTTSLEIGH MEWS,8400020100,Residential,Adults & Health,FROGNAL
29/04/2024,945108,0,1521.7,ABBOTTSLEIGH MEWS,8400020100,Residential,Adults & Health,FROGNAL
29/04/2024,945109,0,1521.7,ABBOTTSLEIGH MEWS,8400020100,Residential,Adults & Health,FROGNAL
29/04/2024,945110,0,1521.7,ABBOTTSLEIGH MEWS,8400020100,Residential,Adults & Health,CLOCK TOWER
29/04/2024,945111,0,1521.7,ABBOTTSLEIGH MEWS,8400020100,Residential,Adults & Health,CLOCK TOWER
29/04/2024,945112,0,1521.7,ABBOTTSLEIGH MEWS,8400020100,Residential,Adults & Health,NORTHBEXLEY
29/04/2024,945113,0,1521.7,ABBOTTSLEIGH MEWS,8400020100,Residential,Adults & Health,NORTHBEXLEY
29/04/2024,945122,0,1547.06,ABBOTTSLEIGH MEWS,8400020100,Residential,Adults & Health,FROGNAL
29/04/2024,945123,0,1547.06,ABBOTTSLEIGH MEWS,8400020100,Residential,Adults & Health,FROGNAL
29/04/2024,945124,0,1547.06,ABBOTTSLEIGH MEWS,8400020100,Residential,Adults & Health,FROGNAL
29/04/2024,945125,0,1547.06,ABBOTTSLEIGH MEWS,8400020100,Residential,Adults & Health,CLOCK TOWER
29/04/2024,945126,0,1547.06,ABBOTTSLEIGH MEWS,8400020100,Residential,Adults & Health,CLOCK TOWER
29/04/2024,945127,0,1547.06,ABBOTTSLEIGH MEWS,8400020100,Residential,Adults & Health,CLOCK TOWER
29/04/2024,945142,0,1597.78,ABBOTTSLEIGH MEWS,8400020100,Residential,Adults & Health,FROGNAL
29/04/2024,945143,0,1597.78,ABBOTTSLEIGH MEWS,8400020100,Residential,Adults & Health,CLOCK TOWER
29/04/2024,945144,0,1597.78,ABBOTTSLEIGH MEWS,8400020100,Residential,Adults & Health,NORTHBEXLEY
29/04/2024,945145,0,1597.78,ABBOTTSLEIGH MEWS,8400020100,Residential,Adults & Health,NORTHBEXLEY
29/04/2024,945087,0,1473.38,ABBOTTSLEIGH MEWS,8400020100,ResPlcmts-ProvPayOP,Adults & Health,BOROUGHWIDE
29/04/2024,945088,0,1473.38,ABBOTTSLEIGH MEWS,8400020100,ResPlcmts-ProvPayOP,Adults & Health,BOROUGHWIDE
29/04/2024,945089,0,1473.38,ABBOTTSLEIGH MEWS,8400020100,ResPlcmts-ProvPayOP,Adults & Health,BOROUGHWIDE
29/04/2024,945114,0,1521.7,ABBOTTSLEIGH MEWS,8400020100,ResPlcmts-ProvPayOP,Adults & Health,BOROUGHWIDE
29/04/2024,945115,0,1521.7,ABBOTTSLEIGH MEWS,8400020100,ResPlcmts-ProvPayOP,Adults & Health,BOROUGHWIDE
29/04/2024,945116,0,1521.7,ABBOTTSLEIGH MEWS,8400020100,ResPlcmts-ProvPayOP,Adults & Health,BOROUGHWIDE
29/04/2024,945117,0,1521.7,ABBOTTSLEIGH MEWS,8400020100,ResPlcmts-ProvPayOP,Adults & Health,BOROUGHWIDE
29/04/2024,945118,0,1521.7,ABBOTTSLEIGH MEWS,8400020100,ResPlcmts-ProvPayOP,Adults & Health,BOROUGHWIDE
29/04/2024,945119,0,1521.7,ABBOTTSLEIGH MEWS,8400020100,ResPlcmts-ProvPayOP,Adults & Health,BOROUGHWIDE
29/04/2024,945120,0,1521.7,ABBOTTSLEIGH MEWS,8400020100,ResPlcmts-ProvPayOP,Adults & Health,BOROUGHWIDE
29/04/2024,945121,0,1521.7,ABBOTTSLEIGH MEWS,8400020100,ResPlcmts-ProvPayOP,Adults & Health,BOROUGHWIDE
29/04/2024,945128,0,1547.06,ABBOTTSLEIGH MEWS,8400020100,ResPlcmts-ProvPayOP,Adults & Health,BOROUGHWIDE
29/04/2024,945129,0,1547.06,ABBOTTSLEIGH MEWS,8400020100,ResPlcmts-ProvPayOP,Adults & Health,BOROUGHWIDE
29/04/2024,945130,0,1547.06,ABBOTTSLEIGH MEWS,8400020100,ResPlcmts-ProvPayOP,Adults & Health,BOROUGHWIDE
29/04/2024,945131,0,1547.06,ABBOTTSLEIGH MEWS,8400020100,ResPlcmts-ProvPayOP,Adults & Health,BOROUGHWIDE
29/04/2024,945132,0,1547.06,ABBOTTSLEIGH MEWS,8400020100,ResPlcmts-ProvPayOP,Adults & Health,BOROUGHWIDE
29/04/2024,945133,0,1547.06,ABBOTTSLEIGH MEWS,8400020100,ResPlcmts-ProvPayOP,Adults & Health,BOROUGHWIDE
29/04/2024,945146,0,1597.78,ABBOTTSLEIGH MEWS,8400020100,ResPlcmts-ProvPayOP,Adults & Health,BOROUGHWIDE
29/04/2024,945147,0,1597.78,ABBOTTSLEIGH MEWS,8400020100,ResPlcmts-ProvPayOP,Adults & Health,BOROUGHWIDE
29/04/2024,945148,0,1597.78,ABBOTTSLEIGH MEWS,8400020100,ResPlcmts-ProvPayOP,Adults & Health,BOROUGHWIDE
29/04/2024,945149,0,1597.78,ABBOTTSLEIGH MEWS,8400020100,ResPlcmts-ProvPayOP,Adults & Health,BOROUGHWIDE
29/04/2024,945090,0,1485.01,ABBOTTSLEIGH MEWS,8400020100,VOIDS-Nursing,Adults & Health,BOROUGHWIDE
29/04/2024,945099,0,1497.54,ABBOTTSLEIGH MEWS,8400020100,VOIDS-Nursing,Adults & Health,BOROUGHWIDE
29/04/2024,945161,0,2121.78,ABBOTTSLEIGH MEWS,8400020100,VOIDS-Nursing,Adults & Health,BOROUGHWIDE
30/04/2024,945197,0,5206.25,ACCESS UK LTD,10127300,Other ASC Payments,Adults & Health,BOROUGHWIDE
25/04/2024,945200,0,2756,ACCORA,7058800,Specialist Equip for Svce Prov,Adults & Health,BOROUGHWIDE
18/04/2024,945201,0,2780,ACCORA,7058800,Specialist Equip for Svce Prov,Adults & Health,BOROUGHWIDE
18/04/2024,945202,0,11940,ACCORA,7058800,Specialist Equip for Svce Prov,Adults & Health,BOROUGHWIDE
29/04/2024,945204,0,4000,ACHIEVE TOGETHER LTD,8400485500,Residential,Adults & Health,FROGNAL
29/04/2024,945203,0,4000,ACHIEVE TOGETHER LTD,8400485500,ResPlcmts-ProvPayOP,Adults & Health,BOROUGHWIDE
29/04/2024,945260,0,2600,Redacted Personal Data,8400025700,Discharge to Assess-InterimBed,Adults & Health,NORTHBEXLEY
29/04/2024,945306,0,5200,Redacted Personal Data,8400025700,Discharge to Assess-InterimBed,Adults & Health,NORTHBEXLEY
29/04/2024,945314,0,803.48,ADVANCE UK,8400010900,Supported Living,Adults & Health,NORTHBEXLEY
29/04/2024,945315,0,1606.96,ADVANCE UK,8400010900,Supported Living,Adults & Health,NORTHBEXLEY
29/04/2024,945316,0,3408.9,ADVANCE UK,8400010900,Supported Living,Adults & Health,FROGNAL
29/04/2024,945317,0,3479.42,ADVANCE UK,8400010900,Supported Living,Adults & Health,NORTHBEXLEY
29/04/2024,945318,0,3943.12,ADVANCE UK,8400010900,Supported Living,Adults & Health,NORTHBEXLEY
29/04/2024,945319,0,5820.94,ADVANCE UK,8400010900,Supported Living,Adults & Health,CLOCK TOWER
29/04/2024,945320,0,6817.8,ADVANCE UK,8400010900,Supported Living,Adults & Health,FROGNAL
29/04/2024,945321,0,6958.84,ADVANCE UK,8400010900,Supported Living,Adults & Health,NORTHBEXLEY
29/04/2024,945322,0,7886.24,ADVANCE UK,8400010900,Supported Living,Adults & Health,NORTHBEXLEY
29/04/2024,945323,0,12537.4,ADVANCE UK,8400010900,Supported Living,Adults & Health,CLOCK TOWER
09/04/2024,945324,0,1173.85,ADVOCACY FOR ALL,7178800,DoLS Payments - Paid RPRs,Adults & Health,BOROUGHWIDE
08/04/2024,945326,0,3851.55,ADVOCACY FOR ALL,7178800,DoLS Payments - Paid RPRs,Adults & Health,BOROUGHWIDE
04/04/2024,945325,0,2703.75,ADVOCACY FOR ALL,7178800,PEI Grants - BBA PrvStrt,Adults & Health,BOROUGHWIDE
04/04/2024,945333,0,43775,AGE CONCERN BEXLEY,9400,PEI Grants - Age Concern,Adults & Health,BOROUGHWIDE
08/04/2024,945334,0,612,AGE UK,8400001300,CommServs-ProvPayOP,Adults & Health,BOROUGHWIDE
15/04/2024,945335,0,612,AGE UK,8400001300,CommServs-ProvPayOP,Adults & Health,BOROUGHWIDE
15/04/2024,945336,0,612,AGE UK,8400001300,CommServs-ProvPayOP,Adults & Health,BOROUGHWIDE
16/04/2024,945350,0,48355,AJM HEALTHCARE,10044400,Specialist Equip for Svce Prov,Adults & Health,BOROUGHWIDE
29/04/2024,945351,0,519.48,Redacted Personal Data,8300110700,ISF Payments,Adults & Health,FROGNAL
29/04/2024,945352,0,1038.96,Redacted Personal Data,8300110700,ISF Payments,Adults & Health,FROGNAL
29/04/2024,945363,0,816,Redacted Personal Data,8300100300,ISF Payments,Adults & Health,NORTHBEXLEY
04/04/2024,945392,0,48410,ALZHEIMER'S SOCIETY,4919000,PEI Grants - Alzheimers,Adults & Health,BOROUGHWIDE
29/04/2024,945409,0,3187.34,AMBIENT SUPPORT LIMITED,8400007700,ResEmRespPlcmts-ProvPayWA,Adults & Health,BOROUGHWIDE
29/04/2024,945411,0,3432.52,AMBIENT SUPPORT LIMITED,8400007700,Respite Emergency,Adults & Health,FROGNAL
29/04/2024,945403,0,688.2,AMBIENT SUPPORT LIMITED,8400007700,Respite Planned,Adults & Health,FROGNAL
29/04/2024,945404,0,735.54,AMBIENT SUPPORT LIMITED,8400007700,Respite Planned,Adults & Health,FROGNAL
29/04/2024,945405,0,2133.94,AMBIENT SUPPORT LIMITED,8400022800,Supported Living,Adults & Health,CLOCK TOWER
29/04/2024,945406,0,2163.16,AMBIENT SUPPORT LIMITED,8400022800,Supported Living,Adults & Health,FROGNAL
29/04/2024,945407,0,2219.43,AMBIENT SUPPORT LIMITED,8400022800,Supported Living,Adults & Health,CLOCK TOWER
29/04/2024,945408,0,2819.96,AMBIENT SUPPORT LIMITED,8400022800,Supported Living,Adults & Health,FROGNAL
29/04/2024,945410,0,3370.14,AMBIENT SUPPORT LIMITED,8400022800,Supported Living,Adults & Health,FROGNAL
29/04/2024,945412,0,3433.3,AMBIENT SUPPORT LIMITED,8400022800,Supported Living,Adults & Health,NORTHBEXLEY
29/04/2024,945413,0,4267.88,AMBIENT SUPPORT LIMITED,8400022800,Supported Living,Adults & Health,CLOCK TOWER
29/04/2024,945414,0,4326.32,AMBIENT SUPPORT LIMITED,8400022800,Supported Living,Adults & Health,FROGNAL
29/04/2024,945415,0,4631.92,AMBIENT SUPPORT LIMITED,8400022800,Supported Living,Adults & Health,CLOCK TOWER
29/04/2024,945416,0,4780.32,AMBIENT SUPPORT LIMITED,8400022800,Supported Living,Adults & Health,CLOCK TOWER
29/04/2024,945417,0,5100.06,AMBIENT SUPPORT LIMITED,8400022800,Supported Living,Adults & Health,FROGNAL
29/04/2024,945418,0,5639.92,AMBIENT SUPPORT LIMITED,8400022800,Supported Living,Adults & Health,FROGNAL
29/04/2024,945419,0,6740.28,AMBIENT SUPPORT LIMITED,8400022800,Supported Living,Adults & Health,FROGNAL
29/04/2024,945420,0,6866.6,AMBIENT SUPPORT LIMITED,8400022800,Supported Living,Adults & Health,NORTHBEXLEY
29/04/2024,945421,0,9976.44,AMBIENT SUPPORT LIMITED,8400022800,Supported Living,Adults & Health,CLOCK TOWER
29/04/2024,945422,0,10200.12,AMBIENT SUPPORT LIMITED,8400022800,Supported Living,Adults & Health,FROGNAL
29/04/2024,945423,0,13730.08,AMBIENT SUPPORT LIMITED,8400007700,VOIDS-Respite LD,Adults & Health,BOROUGHWIDE
29/04/2024,945424,0,13730.08,AMBIENT SUPPORT LIMITED,8400007700,VOIDS-Respite LD,Adults & Health,BOROUGHWIDE
08/04/2024,945429,0,964.29,ANA TREATMENT CENTRES LTD,8400488900,ResPlcmts-ProvPayWA,Adults & Health,BOROUGHWIDE
29/04/2024,945430,0,2428,ANAHITA REHABILITATION CENTRE,8400004900,Residential,Adults & Health,NORTHBEXLEY
29/04/2024,945431,0,4856,ANAHITA REHABILITATION CENTRE,8400004900,Residential,Adults & Health,NORTHBEXLEY
29/04/2024,945435,0,655.52,Redacted Personal Data,8400039100,CommServs-ProvPayWA,Adults & Health,BOROUGHWIDE
29/04/2024,945438,0,1311.04,Redacted Personal Data,8400039100,CommServs-ProvPayWA,Adults & Health,BOROUGHWIDE
29/04/2024,945439,0,1311.04,Redacted Personal Data,8400039100,CommServs-ProvPayWA,Adults & Health,BOROUGHWIDE
29/04/2024,945442,0,551,Redacted Personal Data,8300109400,ISF Payments,Adults & Health,NORTHBEXLEY
15/04/2024,945448,0,646.8,ANGEL HEALTHCARE PROFESSIONALS,8400027300,CommServs-ProvPayOP,Adults & Health,BOROUGHWIDE
15/04/2024,945449,0,646.8,ANGEL HEALTHCARE PROFESSIONALS,8400027300,CommServs-ProvPayOP,Adults & Health,BOROUGHWIDE
15/04/2024,945450,0,646.8,ANGEL HEALTHCARE PROFESSIONALS,8400027300,CommServs-ProvPayOP,Adults & Health,BOROUGHWIDE
15/04/2024,945451,0,646.8,ANGEL HEALTHCARE PROFESSIONALS,8400027300,CommServs-ProvPayOP,Adults & Health,BOROUGHWIDE
15/04/2024,945452,0,780.56,ANGEL HEALTHCARE PROFESSIONALS,8400027300,CommServs-ProvPayWA,Adults & Health,BOROUGHWIDE
15/04/2024,945453,0,1821.61,ANGEL HEALTHCARE PROFESSIONALS,8400027300,CommServs-ProvPayWA,Adults & Health,BOROUGHWIDE
15/04/2024,945454,0,1821.61,ANGEL HEALTHCARE PROFESSIONALS,8400027300,CommServs-ProvPayWA,Adults & Health,BOROUGHWIDE
15/04/2024,945455,0,1821.61,ANGEL HEALTHCARE PROFESSIONALS,8400027300,CommServs-ProvPayWA,Adults & Health,BOROUGHWIDE
15/04/2024,945456,0,1821.61,ANGEL HEALTHCARE PROFESSIONALS,8400027300,CommServs-ProvPayWA,Adults & Health,BOROUGHWIDE
29/04/2024,945483,0,2332,ANTOKOL CARE HOME,8400480800,Residential,Adults & Health,FROGNAL
29/04/2024,945484,0,2332,ANTOKOL CARE HOME,8400480800,ResPlcmts-ProvPayOP,Adults & Health,BOROUGHWIDE
29/04/2024,945519,0,1612,ASHBOURNE LODGE,8400481700,NurPlcmts-ProvPayOP,Adults & Health,BOROUGHWIDE
29/04/2024,945520,0,1612,ASHBOURNE LODGE,8400481700,Nursing,Adults & Health,NORTHBEXLEY
29/04/2024,945521,0,2595.5,ASHGOLD HOUSE,8400002200,Residential,Adults & Health,NORTHBEXLEY
29/04/2024,945522,0,5191,ASHGOLD HOUSE,8400002200,Residential,Adults & Health,NORTHBEXLEY
29/04/2024,945523,0,6614,ASHLEIGH HOUSE,8400010800,Residential,Adults & Health,NORTHBEXLEY
29/04/2024,945524,0,13228,ASHLEIGH HOUSE,8400010800,Residential,Adults & Health,NORTHBEXLEY
29/04/2024,945525,0,1067.86,ASHWEST HOUSE,8400043000,Supported Living,Adults & Health,FROGNAL
29/04/2024,945526,0,2135.72,ASHWEST HOUSE,8400043000,Supported Living,Adults & Health,FROGNAL
29/04/2024,945527,0,546.76,ASPENS CHARITIES LTD,8400025600,Supported Living,Adults & Health,NORTHBEXLEY
29/04/2024,945528,0,690,ASPENS CHARITIES LTD,8400025600,Supported Living,Adults & Health,CLOCK TOWER
29/04/2024,945529,0,917.98,ASPENS CHARITIES LTD,8400025600,Supported Living,Adults & Health,CLOCK TOWER
29/04/2024,945530,0,976.41,ASPENS CHARITIES LTD,8400025600,Supported Living,Adults & Health,CLOCK TOWER
29/04/2024,945531,0,1093.52,ASPENS CHARITIES LTD,8400025600,Supported Living,Adults & Health,NORTHBEXLEY
29/04/2024,945532,0,1103.58,ASPENS CHARITIES LTD,8400025600,Supported Living,Adults & Health,CLOCK TOWER
29/04/2024,945533,0,1147.4,ASPENS CHARITIES LTD,8400025600,Supported Living,Adults & Health,CLOCK TOWER
29/04/2024,945534,0,1192.96,ASPENS CHARITIES LTD,8400025600,Supported Living,Adults & Health,NORTHBEXLEY
29/04/2024,945535,0,1486.16,ASPENS CHARITIES LTD,8400025600,Supported Living,Adults & Health,CLOCK TOWER
29/04/2024,945536,0,1563.98,ASPENS CHARITIES LTD,8400025600,Supported Living,Adults & Health,NORTHBEXLEY
29/04/2024,945537,0,1573.78,ASPENS CHARITIES LTD,8400025600,Supported Living,Adults & Health,NORTHBEXLEY
29/04/2024,945538,0,1835.96,ASPENS CHARITIES LTD,8400025600,Supported Living,Adults & Health,CLOCK TOWER
29/04/2024,945539,0,2103.04,ASPENS CHARITIES LTD,8400025600,Supported Living,Adults & Health,CLOCK TOWER
29/04/2024,945540,0,2207.16,ASPENS CHARITIES LTD,8400025600,Supported Living,Adults & Health,CLOCK TOWER
29/04/2024,945541,0,2385.92,ASPENS CHARITIES LTD,8400025600,Supported Living,Adults & Health,NORTHBEXLEY
29/04/2024,945542,0,2471.32,ASPENS CHARITIES LTD,8400025600,Supported Living,Adults & Health,CLOCK TOWER
29/04/2024,945543,0,3127.96,ASPENS CHARITIES LTD,8400025600,Supported Living,Adults & Health,NORTHBEXLEY
29/04/2024,945544,0,3147.56,ASPENS CHARITIES LTD,8400025600,Supported Living,Adults & Health,NORTHBEXLEY
29/04/2024,945550,0,1366.94,ASTON HOUSE CARE HOME,8400045700,Residential,Adults & Health,NORTHBEXLEY
29/04/2024,945549,0,1366.94,ASTON HOUSE CARE HOME,8400045700,ResPlcmts-ProvPayOP,Adults & Health,BOROUGHWIDE
08/04/2024,945551,0,501.2,ATHLONE CARE LTD,8400020700,CommServs-ProvPayOP,Adults & Health,BOROUGHWIDE
08/04/2024,945552,0,501.2,ATHLONE CARE LTD,8400020700,CommServs-ProvPayOP,Adults & Health,BOROUGHWIDE
08/04/2024,945553,0,501.2,ATHLONE CARE LTD,8400020700,CommServs-ProvPayOP,Adults & Health,BOROUGHWIDE
08/04/2024,945554,0,501.2,ATHLONE CARE LTD,8400020700,CommServs-ProvPayOP,Adults & Health,BOROUGHWIDE
08/04/2024,945555,0,501.2,ATHLONE CARE LTD,8400020700,CommServs-ProvPayOP,Adults & Health,BOROUGHWIDE
08/04/2024,945563,0,533.17,ATHLONE CARE LTD,8400020700,CommServs-ProvPayOP,Adults & Health,BOROUGHWIDE
08/04/2024,945567,0,582.4,ATHLONE CARE LTD,8400020700,CommServs-ProvPayOP,Adults & Health,BOROUGHWIDE
08/04/2024,945568,0,582.4,ATHLONE CARE LTD,8400020700,CommServs-ProvPayOP,Adults & Health,BOROUGHWIDE
08/04/2024,945569,0,582.4,ATHLONE CARE LTD,8400020700,CommServs-ProvPayOP,Adults & Health,BOROUGHWIDE
08/04/2024,945570,0,582.4,ATHLONE CARE LTD,8400020700,CommServs-ProvPayOP,Adults & Health,BOROUGHWIDE
08/04/2024,945575,0,593.92,ATHLONE CARE LTD,8400020700,CommServs-ProvPayOP,Adults & Health,BOROUGHWIDE
08/04/2024,945576,0,593.92,ATHLONE CARE LTD,8400020700,CommServs-ProvPayOP,Adults & Health,BOROUGHWIDE
08/04/2024,945580,0,637.66,ATHLONE CARE LTD,8400020700,CommServs-ProvPayOP,Adults & Health,BOROUGHWIDE
08/04/2024,945582,0,646.8,ATHLONE CARE LTD,8400020700,CommServs-ProvPayOP,Adults & Health,BOROUGHWIDE
08/04/2024,945583,0,646.8,ATHLONE CARE LTD,8400020700,CommServs-ProvPayOP,Adults & Health,BOROUGHWIDE
08/04/2024,945584,0,646.8,ATHLONE CARE LTD,8400020700,CommServs-ProvPayOP,Adults & Health,BOROUGHWIDE
08/04/2024,945585,0,646.8,ATHLONE CARE LTD,8400020700,CommServs-ProvPayOP,Adults & Health,BOROUGHWIDE
08/04/2024,945586,0,646.8,ATHLONE CARE LTD,8400020700,CommServs-ProvPayOP,Adults & Health,BOROUGHWIDE
08/04/2024,945587,0,646.8,ATHLONE CARE LTD,8400020700,CommServs-ProvPayOP,Adults & Health,BOROUGHWIDE
08/04/2024,945588,0,646.8,ATHLONE CARE LTD,8400020700,CommServs-ProvPayOP,Adults & Health,BOROUGHWIDE
08/04/2024,945589,0,646.8,ATHLONE CARE LTD,8400020700,CommServs-ProvPayOP,Adults & Health,BOROUGHWIDE
08/04/2024,945590,0,646.8,ATHLONE CARE LTD,8400020700,CommServs-ProvPayOP,Adults & Health,BOROUGHWIDE
08/04/2024,945591,0,646.8,ATHLONE CARE LTD,8400020700,CommServs-ProvPayOP,Adults & Health,BOROUGHWIDE
08/04/2024,945592,0,646.8,ATHLONE CARE LTD,8400020700,CommServs-ProvPayOP,Adults & Health,BOROUGHWIDE
08/04/2024,945593,0,646.8,ATHLONE CARE LTD,8400020700,CommServs-ProvPayOP,Adults & Health,BOROUGHWIDE
08/04/2024,945608,0,711.2,ATHLONE CARE LTD,8400020700,CommServs-ProvPayOP,Adults & Health,BOROUGHWIDE
08/04/2024,945609,0,711.2,ATHLONE CARE LTD,8400020700,CommServs-ProvPayOP,Adults & Health,BOROUGHWIDE
08/04/2024,945610,0,711.2,ATHLONE CARE LTD,8400020700,CommServs-ProvPayOP,Adults & Health,BOROUGHWIDE
08/04/2024,945611,0,711.2,ATHLONE CARE LTD,8400020700,CommServs-ProvPayOP,Adults & Health,BOROUGHWIDE
08/04/2024,945612,0,711.2,ATHLONE CARE LTD,8400020700,CommServs-ProvPayOP,Adults & Health,BOROUGHWIDE
08/04/2024,945617,0,799.48,ATHLONE CARE LTD,8400020700,CommServs-ProvPayOP,Adults & Health,BOROUGHWIDE
08/04/2024,945620,0,819.12,ATHLONE CARE LTD,8400020700,CommServs-ProvPayOP,Adults & Health,BOROUGHWIDE
08/04/2024,945621,0,840,ATHLONE CARE LTD,8400020700,CommServs-ProvPayOP,Adults & Health,BOROUGHWIDE
08/04/2024,945622,0,840,ATHLONE CARE LTD,8400020700,CommServs-ProvPayOP,Adults & Health,BOROUGHWIDE
08/04/2024,945623,0,840,ATHLONE CARE LTD,8400020700,CommServs-ProvPayOP,Adults & Health,BOROUGHWIDE
08/04/2024,945627,0,2319.19,ATHLONE CARE LTD,8400020700,CommServs-ProvPayOP,Adults & Health,BOROUGHWIDE
08/04/2024,945629,0,2354.29,ATHLONE CARE LTD,8400020700,CommServs-ProvPayOP,Adults & Health,BOROUGHWIDE
08/04/2024,945566,0,565.6,ATHLONE CARE LTD,8400020700,CommServs-ProvPayWA,Adults & Health,BOROUGHWIDE
08/04/2024,945579,0,626,ATHLONE CARE LTD,8400020700,CommServs-ProvPayWA,Adults & Health,BOROUGHWIDE
08/04/2024,945581,0,646.8,ATHLONE CARE LTD,8400020700,CommServs-ProvPayWA,Adults & Health,BOROUGHWIDE
22/04/2024,945559,0,501.2,ATHLONE CARE LTD,8400020700,Discharge to Assess- Non Chrg,Adults & Health,FROGNAL
22/04/2024,945599,0,646.8,ATHLONE CARE LTD,8400020700,Discharge to Assess- Non Chrg,Adults & Health,FROGNAL
29/04/2024,945607,0,646.8,ATHLONE CARE LTD,8400020700,Discharge to Assess- Non Chrg,Adults & Health,NORTHBEXLEY
22/04/2024,945614,0,711.2,ATHLONE CARE LTD,8400020700,Discharge to Assess- Non Chrg,Adults & Health,NORTHBEXLEY
29/04/2024,945616,0,711.2,ATHLONE CARE LTD,8400020700,Discharge to Assess- Non Chrg,Adults & Health,NORTHBEXLEY
22/04/2024,945624,0,840,ATHLONE CARE LTD,8400020700,Discharge to Assess- Non Chrg,Adults & Health,NORTHBEXLEY
22/04/2024,945625,0,840,ATHLONE CARE LTD,8400020700,Discharge to Assess- Non Chrg,Adults & Health,CLOCK TOWER
29/04/2024,945626,0,840,ATHLONE CARE LTD,8400020700,Discharge to Assess- Non Chrg,Adults & Health,CLOCK TOWER
22/04/2024,945556,0,501.2,ATHLONE CARE LTD,8400020700,Homecare Conventional,Adults & Health,FROGNAL
22/04/2024,945557,0,501.2,ATHLONE CARE LTD,8400020700,Homecare Conventional,Adults & Health,FROGNAL
22/04/2024,945558,0,501.2,ATHLONE CARE LTD,8400020700,Homecare Conventional,Adults & Health,CLOCK TOWER
29/04/2024,945560,0,501.2,ATHLONE CARE LTD,8400020700,Homecare Conventional,Adults & Health,FROGNAL
29/04/2024,945561,0,501.2,ATHLONE CARE LTD,8400020700,Homecare Conventional,Adults & Health,FROGNAL
29/04/2024,945562,0,501.2,ATHLONE CARE LTD,8400020700,Homecare Conventional,Adults & Health,CLOCK TOWER
22/04/2024,945564,0,554.4,ATHLONE CARE LTD,8400020700,Homecare Conventional,Adults & Health,CLOCK TOWER
22/04/2024,945565,0,554.4,ATHLONE CARE LTD,8400020700,Homecare Conventional,Adults & Health,CLOCK TOWER
22/04/2024,945571,0,582.4,ATHLONE CARE LTD,8400020700,Homecare Conventional,Adults & Health,FROGNAL
22/04/2024,945572,0,582.4,ATHLONE CARE LTD,8400020700,Homecare Conventional,Adults & Health,CLOCK TOWER
29/04/2024,945573,0,582.4,ATHLONE CARE LTD,8400020700,Homecare Conventional,Adults & Health,FROGNAL
29/04/2024,945574,0,582.4,ATHLONE CARE LTD,8400020700,Homecare Conventional,Adults & Health,CLOCK TOWER
22/04/2024,945577,0,593.92,ATHLONE CARE LTD,8400020700,Homecare Conventional,Adults & Health,FROGNAL
29/04/2024,945578,0,593.92,ATHLONE CARE LTD,8400020700,Homecare Conventional,Adults & Health,FROGNAL
22/04/2024,945594,0,646.8,ATHLONE CARE LTD,8400020700,Homecare Conventional,Adults & Health,FROGNAL
22/04/2024,945595,0,646.8,ATHLONE CARE LTD,8400020700,Homecare Conventional,Adults & Health,FROGNAL
22/04/2024,945596,0,646.8,ATHLONE CARE LTD,8400020700,Homecare Conventional,Adults & Health,FROGNAL
22/04/2024,945597,0,646.8,ATHLONE CARE LTD,8400020700,Homecare Conventional,Adults & Health,FROGNAL
22/04/2024,945598,0,646.8,ATHLONE CARE LTD,8400020700,Homecare Conventional,Adults & Health,NORTHBEXLEY
29/04/2024,945600,0,646.8,ATHLONE CARE LTD,8400020700,Homecare Conventional,Adults & Health,FROGNAL
29/04/2024,945601,0,646.8,ATHLONE CARE LTD,8400020700,Homecare Conventional,Adults & Health,FROGNAL
29/04/2024,945602,0,646.8,ATHLONE CARE LTD,8400020700,Homecare Conventional,Adults & Health,FROGNAL
29/04/2024,945603,0,646.8,ATHLONE CARE LTD,8400020700,Homecare Conventional,Adults & Health,FROGNAL
29/04/2024,945604,0,646.8,ATHLONE CARE LTD,8400020700,Homecare Conventional,Adults & Health,CLOCK TOWER
29/04/2024,945605,0,646.8,ATHLONE CARE LTD,8400020700,Homecare Conventional,Adults & Health,CLOCK TOWER
29/04/2024,945606,0,646.8,ATHLONE CARE LTD,8400020700,Homecare Conventional,Adults & Health,NORTHBEXLEY
22/04/2024,945613,0,711.2,ATHLONE CARE LTD,8400020700,Homecare Conventional,Adults & Health,FROGNAL
29/04/2024,945615,0,711.2,ATHLONE CARE LTD,8400020700,Homecare Conventional,Adults & Health,FROGNAL
22/04/2024,945618,0,799.48,ATHLONE CARE LTD,8400020700,Homecare Conventional,Adults & Health,CLOCK TOWER
29/04/2024,945619,0,799.48,ATHLONE CARE LTD,8400020700,Homecare Conventional,Adults & Health,CLOCK TOWER
29/04/2024,945628,0,2349.02,ATHLONE CARE LTD,8400020700,Homecare Conventional,Adults & Health,FROGNAL
22/04/2024,945630,0,2396.26,ATHLONE CARE LTD,8400020700,Homecare Conventional,Adults & Health,FROGNAL
29/04/2024,945634,0,2651.56,Redacted Personal Data,8400021400,Supported Living,Adults & Health,CLOCK TOWER
29/04/2024,945635,0,5303.12,Redacted Personal Data,8400021400,Supported Living,Adults & Health,CLOCK TOWER
08/04/2024,945637,0,547.5,AVANTE CARE & SUPPORT,8400032400,CommServs-ProvPayOP,Adults & Health,BOROUGHWIDE
08/04/2024,945638,0,559.44,AVANTE CARE & SUPPORT,8400032400,CommServs-ProvPayOP,Adults & Health,BOROUGHWIDE
08/04/2024,945644,0,646.8,AVANTE CARE & SUPPORT,8400032400,CommServs-ProvPayOP,Adults & Health,BOROUGHWIDE
08/04/2024,945645,0,646.8,AVANTE CARE & SUPPORT,8400032400,CommServs-ProvPayOP,Adults & Health,BOROUGHWIDE
08/04/2024,945646,0,646.8,AVANTE CARE & SUPPORT,8400032400,CommServs-ProvPayOP,Adults & Health,BOROUGHWIDE
08/04/2024,945647,0,646.8,AVANTE CARE & SUPPORT,8400032400,CommServs-ProvPayOP,Adults & Health,BOROUGHWIDE
08/04/2024,945648,0,649.36,AVANTE CARE & SUPPORT,8400032400,CommServs-ProvPayOP,Adults & Health,BOROUGHWIDE
08/04/2024,945649,0,649.36,AVANTE CARE & SUPPORT,8400032400,CommServs-ProvPayOP,Adults & Health,BOROUGHWIDE
08/04/2024,945650,0,656.08,AVANTE CARE & SUPPORT,8400032400,CommServs-ProvPayOP,Adults & Health,BOROUGHWIDE
08/04/2024,945651,0,656.08,AVANTE CARE & SUPPORT,8400032400,CommServs-ProvPayOP,Adults & Health,BOROUGHWIDE
08/04/2024,945655,0,741.1,AVANTE CARE & SUPPORT,8400032400,CommServs-ProvPayOP,Adults & Health,BOROUGHWIDE
08/04/2024,945656,0,775.58,AVANTE CARE & SUPPORT,8400032400,CommServs-ProvPayOP,Adults & Health,BOROUGHWIDE
08/04/2024,945657,0,776.16,AVANTE CARE & SUPPORT,8400032400,CommServs-ProvPayOP,Adults & Health,BOROUGHWIDE
08/04/2024,945658,0,776.16,AVANTE CARE & SUPPORT,8400032400,CommServs-ProvPayOP,Adults & Health,BOROUGHWIDE
08/04/2024,945660,0,840.56,AVANTE CARE & SUPPORT,8400032400,CommServs-ProvPayOP,Adults & Health,BOROUGHWIDE
08/04/2024,945661,0,840.56,AVANTE CARE & SUPPORT,8400032400,CommServs-ProvPayOP,Adults & Health,BOROUGHWIDE
08/04/2024,945662,0,844.04,AVANTE CARE & SUPPORT,8400032400,CommServs-ProvPayOP,Adults & Health,BOROUGHWIDE
08/04/2024,945666,0,904.96,AVANTE CARE & SUPPORT,8400032400,CommServs-ProvPayOP,Adults & Health,BOROUGHWIDE
08/04/2024,945667,0,904.96,AVANTE CARE & SUPPORT,8400032400,CommServs-ProvPayOP,Adults & Health,BOROUGHWIDE
08/04/2024,945671,0,1103.43,AVANTE CARE & SUPPORT,8400032400,CommServs-ProvPayOP,Adults & Health,BOROUGHWIDE
08/04/2024,945652,0,681.2,AVANTE CARE & SUPPORT,8400032400,CommServs-ProvPayWA,Adults & Health,BOROUGHWIDE
08/04/2024,945653,0,681.2,AVANTE CARE & SUPPORT,8400032400,CommServs-ProvPayWA,Adults & Health,BOROUGHWIDE
08/04/2024,945669,0,917.51,AVANTE CARE & SUPPORT,8400032400,CommServs-ProvPayWA,Adults & Health,BOROUGHWIDE
29/04/2024,945639,0,569.84,AVANTE CARE & SUPPORT,8400032400,Homecare Conventional,Adults & Health,FROGNAL
29/04/2024,945640,0,574.86,AVANTE CARE & SUPPORT,8400032400,Homecare Conventional,Adults & Health,FROGNAL
29/04/2024,945641,0,608.5,AVANTE CARE & SUPPORT,8400032400,Homecare Conventional,Adults & Health,CLOCK TOWER
29/04/2024,945642,0,614.72,AVANTE CARE & SUPPORT,8400032400,Homecare Conventional,Adults & Health,FROGNAL
29/04/2024,945643,0,628.76,AVANTE CARE & SUPPORT,8400032400,Homecare Conventional,Adults & Health,FROGNAL
29/04/2024,945654,0,737.66,AVANTE CARE & SUPPORT,8400032400,Homecare Conventional,Adults & Health,CLOCK TOWER
29/04/2024,945659,0,785.93,AVANTE CARE & SUPPORT,8400032400,Homecare Conventional,Adults & Health,FROGNAL
29/04/2024,945663,0,870.78,AVANTE CARE & SUPPORT,8400032400,Homecare Conventional,Adults & Health,NORTHBEXLEY
29/04/2024,945664,0,895.84,AVANTE CARE & SUPPORT,8400032400,Homecare Conventional,Adults & Health,FROGNAL
29/04/2024,945665,0,896,AVANTE CARE & SUPPORT,8400032400,Homecare Conventional,Adults & Health,FROGNAL
29/04/2024,945668,0,915.96,AVANTE CARE & SUPPORT,8400032400,Homecare Conventional,Adults & Health,NORTHBEXLEY
29/04/2024,945670,0,1055.14,AVANTE CARE & SUPPORT,8400032400,Homecare Conventional,Adults & Health,NORTHBEXLEY
29/04/2024,945672,0,1140.78,AVANTE CARE & SUPPORT,8400032400,Homecare Conventional,Adults & Health,NORTHBEXLEY
29/04/2024,945675,0,5850.6,AVENUES TRUST GROUP,8400484400,CommServs-ProvPayWA,Adults & Health,BOROUGHWIDE
29/04/2024,945676,0,5850.6,AVENUES TRUST GROUP,8400484400,Supported Living,Adults & Health,NORTHBEXLEY
29/04/2024,945678,0,615.68,Redacted Personal Data,8300105100,ISF Payments,Adults & Health,NORTHBEXLEY
29/04/2024,945679,0,1231.36,Redacted Personal Data,8300105100,ISF Payments,Adults & Health,NORTHBEXLEY
18/04/2024,945722,0,807,BARKING  HAVERING & REDBRIDGE NHS TRUST,8227300,Sexual Health Payments,Adults & Health,Health & Wellbeing
09/04/2024,945723,0,1045.49,BARKING  HAVERING & REDBRIDGE NHS TRUST,8227300,Sexual Health Payments,Adults & Health,Health & Wellbeing
29/04/2024,945727,0,1132.67,BARTS HEALTH NHS TRUST,8270200,BARTS Health NHS Trust,Adults & Health,Health & Wellbeing
30/04/2024,945728,0,1714.93,BARTS HEALTH NHS TRUST,8270200,BARTS Health NHS Trust,Adults & Health,Health & Wellbeing
29/04/2024,945729,0,578.57,BAUGH HOUSE,8400019300,Nursing,Adults & Health,FROGNAL
29/04/2024,945730,0,2400,BAUGH HOUSE,8400019300,Nursing,Adults & Health,FROGNAL
29/04/2024,945731,0,2700,BAUGH HOUSE,8400019300,Nursing,Adults & Health,FROGNAL
29/04/2024,945732,0,2700,BAUGH HOUSE,8400019300,Nursing,Adults & Health,FROGNAL
29/04/2024,945733,0,2800,BAUGH HOUSE,8400019300,Nursing,Adults & Health,FROGNAL
29/04/2024,945734,0,4800,BAUGH HOUSE,8400019300,Nursing,Adults & Health,FROGNAL
29/04/2024,945735,0,5400,BAUGH HOUSE,8400019300,Nursing,Adults & Health,FROGNAL
29/04/2024,945736,0,5400,BAUGH HOUSE,8400019300,Nursing,Adults & Health,FROGNAL
29/04/2024,945737,0,5400,BAUGH HOUSE,8400019300,Nursing,Adults & Health,FROGNAL
29/04/2024,945738,0,5600,BAUGH HOUSE,8400019300,Nursing,Adults & Health,FROGNAL
29/04/2024,945748,0,1815.48,Beechcare Incorporating Peter Gidney,8400003600,NurPlcmts-ProvPayWA,Adults & Health,BOROUGHWIDE
29/04/2024,945749,0,1815.48,Beechcare Incorporating Peter Gidney,8400003600,Nursing,Adults & Health,NORTHBEXLEY
29/04/2024,945750,0,655.52,Redacted Personal Data,8400022300,Supported Accommodation,Adults & Health,NORTHBEXLEY
29/04/2024,945751,0,896.8,Redacted Personal Data,8400022300,Supported Accommodation,Adults & Health,NORTHBEXLEY
29/04/2024,945752,0,1311.04,Redacted Personal Data,8400022300,Supported Accommodation,Adults & Health,NORTHBEXLEY
04/04/2024,945786,0,54075,BEXLEY BOROUGH CITIZENS ADVICE BUREAUX L,73500,Citizens Advice Bureau,Adults & Health,BOROUGHWIDE
04/04/2024,945787,0,14162.5,BEXLEY DEAF GROUP,76400,PEI Grants - Deaf Cntr PrvStrt,Adults & Health,BOROUGHWIDE
04/04/2024,945788,0,102824,BEXLEY HEALTH NEIGHBOURHOOD CARE CIC,8676400,Public Health Payments,Adults & Health,Health & Wellbeing
08/04/2024,945791,0,546.08,BEXLEY HOMECARE SERVICES LTD,8400021200,CommServs-ProvPayOP,Adults & Health,BOROUGHWIDE
08/04/2024,945794,0,560.2,BEXLEY HOMECARE SERVICES LTD,8400021200,CommServs-ProvPayOP,Adults & Health,BOROUGHWIDE
08/04/2024,945796,0,573.56,BEXLEY HOMECARE SERVICES LTD,8400021200,CommServs-ProvPayOP,Adults & Health,BOROUGHWIDE
08/04/2024,945801,0,646.8,BEXLEY HOMECARE SERVICES LTD,8400021200,CommServs-ProvPayOP,Adults & Health,BOROUGHWIDE
08/04/2024,945805,0,739.04,BEXLEY HOMECARE SERVICES LTD,8400021200,CommServs-ProvPayOP,Adults & Health,BOROUGHWIDE
08/04/2024,945812,0,812.96,BEXLEY HOMECARE SERVICES LTD,8400021200,CommServs-ProvPayOP,Adults & Health,BOROUGHWIDE
08/04/2024,945792,0,553.48,BEXLEY HOMECARE SERVICES LTD,8400021200,CommServs-ProvPayWA,Adults & Health,BOROUGHWIDE
08/04/2024,945811,0,810.56,BEXLEY HOMECARE SERVICES LTD,8400021200,CommServs-ProvPayWA,Adults & Health,BOROUGHWIDE
22/04/2024,945807,0,757.68,BEXLEY HOMECARE SERVICES LTD,8400021200,Discharge to Assess- Non Chrg,Adults & Health,FROGNAL
29/04/2024,945810,0,803.76,BEXLEY HOMECARE SERVICES LTD,8400021200,Discharge to Assess- Non Chrg,Adults & Health,FROGNAL
15/04/2024,945813,0,822.16,BEXLEY HOMECARE SERVICES LTD,8400021200,Discharge to Assess- Non Chrg,Adults & Health,FROGNAL
29/04/2024,945789,0,510.4,BEXLEY HOMECARE SERVICES LTD,8400021200,Homecare Conventional,Adults & Health,NORTHBEXLEY
15/04/2024,945790,0,521.52,BEXLEY HOMECARE SERVICES LTD,8400021200,Homecare Conventional,Adults & Health,FROGNAL
15/04/2024,945793,0,560.12,BEXLEY HOMECARE SERVICES LTD,8400021200,Homecare Conventional,Adults & Health,NORTHBEXLEY
22/04/2024,945795,0,569.4,BEXLEY HOMECARE SERVICES LTD,8400021200,Homecare Conventional,Adults & Health,NORTHBEXLEY
29/04/2024,945797,0,578.68,BEXLEY HOMECARE SERVICES LTD,8400021200,Homecare Conventional,Adults & Health,NORTHBEXLEY
15/04/2024,945798,0,610,BEXLEY HOMECARE SERVICES LTD,8400021200,Homecare Conventional,Adults & Health,FROGNAL
22/04/2024,945799,0,610,BEXLEY HOMECARE SERVICES LTD,8400021200,Homecare Conventional,Adults & Health,FROGNAL
29/04/2024,945800,0,628.4,BEXLEY HOMECARE SERVICES LTD,8400021200,Homecare Conventional,Adults & Health,FROGNAL
15/04/2024,945802,0,646.8,BEXLEY HOMECARE SERVICES LTD,8400021200,Homecare Conventional,Adults & Health,NORTHBEXLEY
22/04/2024,945803,0,646.8,BEXLEY HOMECARE SERVICES LTD,8400021200,Homecare Conventional,Adults & Health,NORTHBEXLEY
29/04/2024,945804,0,646.8,BEXLEY HOMECARE SERVICES LTD,8400021200,Homecare Conventional,Adults & Health,NORTHBEXLEY
22/04/2024,945806,0,757.6,BEXLEY HOMECARE SERVICES LTD,8400021200,Homecare Conventional,Adults & Health,NORTHBEXLEY
15/04/2024,945808,0,767.34,BEXLEY HOMECARE SERVICES LTD,8400021200,Homecare Conventional,Adults & Health,NORTHBEXLEY
29/04/2024,945809,0,776,BEXLEY HOMECARE SERVICES LTD,8400021200,Homecare Conventional,Adults & Health,NORTHBEXLEY
22/04/2024,945814,0,831.36,BEXLEY HOMECARE SERVICES LTD,8400021200,Homecare Conventional,Adults & Health,FROGNAL
29/04/2024,945815,0,840.56,BEXLEY HOMECARE SERVICES LTD,8400021200,Homecare Conventional,Adults & Health,FROGNAL
15/04/2024,945816,0,849.84,BEXLEY HOMECARE SERVICES LTD,8400021200,Homecare Conventional,Adults & Health,FROGNAL
04/04/2024,945821,0,25750,BEXLEY MENCAP,8400001700,PEI Grants - Mencap PrvStrt,Adults & Health,BOROUGHWIDE
04/04/2024,945825,0,61800,BEXLEY VOLUNTARY SERVICE COUNCIL,78500,BVSC Core Grant,Adults & Health,BOROUGHWIDE
29/04/2024,945829,0,727.38,Redacted Personal Data,8400012600,Supported Accommodation,Adults & Health,FROGNAL
29/04/2024,945830,0,932.17,Redacted Personal Data,8400012600,Supported Accommodation,Adults & Health,CLOCK TOWER
29/04/2024,945831,0,1454.76,Redacted Personal Data,8400012600,Supported Accommodation,Adults & Health,FROGNAL
29/04/2024,945832,0,2007.76,Redacted Personal Data,8400012600,Supported Accommodation,Adults & Health,CLOCK TOWER
29/04/2024,945839,0,3146.08,BIRLING HOUSE,8400005500,Residential,Adults & Health,FROGNAL
29/04/2024,945840,0,3744.96,BIRLING HOUSE,8400005500,Residential,Adults & Health,NORTHBEXLEY
29/04/2024,945841,0,4180,BIRLING HOUSE,8400005500,Residential,Adults & Health,NORTHBEXLEY
29/04/2024,945842,0,6292.16,BIRLING HOUSE,8400005500,Residential,Adults & Health,FROGNAL
29/04/2024,945843,0,7489.92,BIRLING HOUSE,8400005500,Residential,Adults & Health,NORTHBEXLEY
29/04/2024,945844,0,8360,BIRLING HOUSE,8400005500,Residential,Adults & Health,NORTHBEXLEY
29/04/2024,945853,0,3692.34,BISHOPS LODGE,8400005200,Residential,Adults & Health,NORTHBEXLEY
29/04/2024,945854,0,7384.68,BISHOPS LODGE,8400005200,Residential,Adults & Health,NORTHBEXLEY
29/04/2024,945858,0,1837.74,BLOSSOM LODGE,8400001800,Supported Living,Adults & Health,CLOCK TOWER
29/04/2024,945859,0,2607.28,BLOSSOM LODGE,8400001800,Supported Living,Adults & Health,NORTHBEXLEY
29/04/2024,945860,0,3675.48,BLOSSOM LODGE,8400001800,Supported Living,Adults & Health,CLOCK TOWER
29/04/2024,945861,0,5214.56,BLOSSOM LODGE,8400001800,Supported Living,Adults & Health,NORTHBEXLEY
15/04/2024,945862,0,505.24,BLUEBIRD CARE,8400033500,CommServs-ProvPayOP,Adults & Health,BOROUGHWIDE
08/04/2024,945863,0,46000,BLUEBIRD CARE,8400033500,Reablement VC,Adults & Health,CLOCK TOWER
29/04/2024,945864,0,10920,BLUEBIRD CARE ( BEXLEY ),7225901,Other ASC Payments,Adults & Health,BOROUGHWIDE
29/04/2024,945865,0,6357.68,BLYTHE HOUSE,8400026600,Residential,Adults & Health,NORTHBEXLEY
29/04/2024,945866,0,12715.36,BLYTHE HOUSE,8400026600,Residential,Adults & Health,NORTHBEXLEY
29/04/2024,945869,0,1682.16,BOLDSHAVES OAST,8400001500,Residential,Adults & Health,NORTHBEXLEY
29/04/2024,945870,0,3364.32,BOLDSHAVES OAST,8400001500,Residential,Adults & Health,NORTHBEXLEY
29/04/2024,945871,0,4567.52,BOLDSHAVES OAST,8400001500,Residential,Adults & Health,NORTHBEXLEY
29/04/2024,945872,0,9135.04,BOLDSHAVES OAST,8400001500,Residential,Adults & Health,NORTHBEXLEY
18/04/2024,945875,0,557.04,BOOTS UK LTD,8172601,Pharmacy ESH services,Adults & Health,Health & Wellbeing
16/04/2024,945885,0,3800,Redacted Personal Data,10094400,Agency Staff,Adults & Health,BOROUGHWIDE
16/04/2024,945886,0,4200,Redacted Personal Data,10094400,Agency Staff,Adults & Health,BOROUGHWIDE
08/04/2024,945888,0,501.2,BRIDGES HEALTH CARE,8400016800,CommServs-ProvPayOP,Adults & Health,BOROUGHWIDE
08/04/2024,945894,0,602.04,BRIDGES HEALTH CARE,8400016800,CommServs-ProvPayOP,Adults & Health,BOROUGHWIDE
22/04/2024,945898,0,616.8,BRIDGES HEALTH CARE,8400016800,CommServs-ProvPayOP,Adults & Health,BOROUGHWIDE
08/04/2024,945901,0,626,BRIDGES HEALTH CARE,8400016800,CommServs-ProvPayOP,Adults & Health,BOROUGHWIDE
08/04/2024,945904,0,637.6,BRIDGES HEALTH CARE,8400016800,CommServs-ProvPayOP,Adults & Health,BOROUGHWIDE
08/04/2024,945907,0,646.8,BRIDGES HEALTH CARE,8400016800,CommServs-ProvPayOP,Adults & Health,BOROUGHWIDE
08/04/2024,945908,0,646.8,BRIDGES HEALTH CARE,8400016800,CommServs-ProvPayOP,Adults & Health,BOROUGHWIDE
08/04/2024,945909,0,646.8,BRIDGES HEALTH CARE,8400016800,CommServs-ProvPayOP,Adults & Health,BOROUGHWIDE
08/04/2024,945910,0,646.8,BRIDGES HEALTH CARE,8400016800,CommServs-ProvPayOP,Adults & Health,BOROUGHWIDE
08/04/2024,945911,0,646.8,BRIDGES HEALTH CARE,8400016800,CommServs-ProvPayOP,Adults & Health,BOROUGHWIDE
08/04/2024,945923,0,711.76,BRIDGES HEALTH CARE,8400016800,CommServs-ProvPayOP,Adults & Health,BOROUGHWIDE
08/04/2024,945927,0,882.48,BRIDGES HEALTH CARE,8400016800,CommServs-ProvPayWA,Adults & Health,BOROUGHWIDE
15/04/2024,945889,0,501.2,BRIDGES HEALTH CARE,8400016800,Homecare Conventional,Adults & Health,NORTHBEXLEY
15/04/2024,945890,0,545.32,BRIDGES HEALTH CARE,8400016800,Homecare Conventional,Adults & Health,CLOCK TOWER
15/04/2024,945891,0,554.4,BRIDGES HEALTH CARE,8400016800,Homecare Conventional,Adults & Health,CLOCK TOWER
29/04/2024,945892,0,583.88,BRIDGES HEALTH CARE,8400016800,Homecare Conventional,Adults & Health,NORTHBEXLEY
29/04/2024,945893,0,598.64,BRIDGES HEALTH CARE,8400016800,Homecare Conventional,Adults & Health,FROGNAL
15/04/2024,945895,0,602.04,BRIDGES HEALTH CARE,8400016800,Homecare Conventional,Adults & Health,NORTHBEXLEY
22/04/2024,945896,0,602.04,BRIDGES HEALTH CARE,8400016800,Homecare Conventional,Adults & Health,NORTHBEXLEY
15/04/2024,945897,0,610.08,BRIDGES HEALTH CARE,8400016800,Homecare Conventional,Adults & Health,CLOCK TOWER
22/04/2024,945899,0,619.56,BRIDGES HEALTH CARE,8400016800,Homecare Conventional,Adults & Health,CLOCK TOWER
22/04/2024,945900,0,619.56,BRIDGES HEALTH CARE,8400016800,Homecare Conventional,Adults & Health,CLOCK TOWER
22/04/2024,945902,0,628.64,BRIDGES HEALTH CARE,8400016800,Homecare Conventional,Adults & Health,FROGNAL
22/04/2024,945903,0,628.64,BRIDGES HEALTH CARE,8400016800,Homecare Conventional,Adults & Health,NORTHBEXLEY
29/04/2024,945905,0,637.6,BRIDGES HEALTH CARE,8400016800,Homecare Conventional,Adults & Health,FROGNAL
22/04/2024,945906,0,637.72,BRIDGES HEALTH CARE,8400016800,Homecare Conventional,Adults & Health,CLOCK TOWER
15/04/2024,945912,0,646.8,BRIDGES HEALTH CARE,8400016800,Homecare Conventional,Adults & Health,FROGNAL
15/04/2024,945913,0,646.8,BRIDGES HEALTH CARE,8400016800,Homecare Conventional,Adults & Health,FROGNAL
15/04/2024,945914,0,646.8,BRIDGES HEALTH CARE,8400016800,Homecare Conventional,Adults & Health,NORTHBEXLEY
15/04/2024,945915,0,646.8,BRIDGES HEALTH CARE,8400016800,Homecare Conventional,Adults & Health,CLOCK TOWER
22/04/2024,945916,0,646.8,BRIDGES HEALTH CARE,8400016800,Homecare Conventional,Adults & Health,FROGNAL
29/04/2024,945917,0,646.8,BRIDGES HEALTH CARE,8400016800,Homecare Conventional,Adults & Health,CLOCK TOWER
29/04/2024,945918,0,646.8,BRIDGES HEALTH CARE,8400016800,Homecare Conventional,Adults & Health,CLOCK TOWER
29/04/2024,945919,0,646.8,BRIDGES HEALTH CARE,8400016800,Homecare Conventional,Adults & Health,NORTHBEXLEY
29/04/2024,945920,0,646.8,BRIDGES HEALTH CARE,8400016800,Homecare Conventional,Adults & Health,CLOCK TOWER
29/04/2024,945921,0,702.48,BRIDGES HEALTH CARE,8400016800,Homecare Conventional,Adults & Health,CLOCK TOWER
22/04/2024,945922,0,702.68,BRIDGES HEALTH CARE,8400016800,Homecare Conventional,Adults & Health,CLOCK TOWER
29/04/2024,945924,0,828,BRIDGES HEALTH CARE,8400016800,Homecare Conventional,Adults & Health,NORTHBEXLEY
22/04/2024,945925,0,846.16,BRIDGES HEALTH CARE,8400016800,Homecare Conventional,Adults & Health,NORTHBEXLEY
15/04/2024,945926,0,864.32,BRIDGES HEALTH CARE,8400016800,Homecare Conventional,Adults & Health,NORTHBEXLEY
15/04/2024,945934,0,684.51,BRIGHTON & SUSSEX UNIVERSITY HOSPITAL,8698000,Sexual Health Payments,Adults & Health,Health & Wellbeing
15/04/2024,945941,0,316250,BROMLEY HEALTHCARE,8134500,Public Health Payments,Adults & Health,Health & Wellbeing
11/04/2024,945942,0,642333,BROMLEY HEALTHCARE,8134500,Public Health Payments,Adults & Health,Health & Wellbeing
25/04/2024,945943,0,948750,BROMLEY HEALTHCARE,8134500,Public Health Payments,Adults & Health,Health & Wellbeing
08/04/2024,945944,0,46000,BROMLEY HEALTHCARE �  SOUTH LCN,8400483200,Reablement VC,Adults & Health,FROGNAL
29/04/2024,945945,0,1358.82,BROOK HOUSE NURSING HOME,8400008800,Nursing,Adults & Health,NORTHBEXLEY
29/04/2024,945946,0,1358.82,BROOK HOUSE NURSING HOME,8400008800,Nursing,Adults & Health,NORTHBEXLEY
29/04/2024,945947,0,1552.94,BROOK HOUSE NURSING HOME,8400008800,Nursing,Adults & Health,NORTHBEXLEY
29/04/2024,945948,0,1589.54,BROOK HOUSE NURSING HOME,8400008800,Nursing,Adults & Health,CLOCK TOWER
29/04/2024,945949,0,1589.54,BROOK HOUSE NURSING HOME,8400008800,Nursing,Adults & Health,CLOCK TOWER
29/04/2024,945950,0,1589.54,BROOK HOUSE NURSING HOME,8400008800,Nursing,Adults & Health,NORTHBEXLEY
29/04/2024,945951,0,1589.54,BROOK HOUSE NURSING HOME,8400008800,Nursing,Adults & Health,NORTHBEXLEY
29/04/2024,945952,0,1589.54,BROOK HOUSE NURSING HOME,8400008800,Nursing,Adults & Health,NORTHBEXLEY
29/04/2024,945953,0,1882.08,BROOK HOUSE NURSING HOME,8400008800,Nursing,Adults & Health,NORTHBEXLEY
29/04/2024,945954,0,1930.3,BROOK HOUSE NURSING HOME,8400008800,Nursing,Adults & Health,NORTHBEXLEY
29/04/2024,945955,0,2146.28,BROOK HOUSE NURSING HOME,8400008800,Nursing,Adults & Health,NORTHBEXLEY
29/04/2024,945956,0,2182.96,BROOK HOUSE NURSING HOME,8400008800,Nursing,Adults & Health,FROGNAL
29/04/2024,945957,0,2400,BROOK HOUSE NURSING HOME,8400008800,Nursing,Adults & Health,NORTHBEXLEY
29/04/2024,945958,0,2700,BROOK HOUSE NURSING HOME,8400008800,Nursing,Adults & Health,CLOCK TOWER
29/04/2024,945959,0,2717.64,BROOK HOUSE NURSING HOME,8400008800,Nursing,Adults & Health,NORTHBEXLEY
29/04/2024,945960,0,2717.64,BROOK HOUSE NURSING HOME,8400008800,Nursing,Adults & Health,NORTHBEXLEY
29/04/2024,945961,0,3179.08,BROOK HOUSE NURSING HOME,8400008800,Nursing,Adults & Health,CLOCK TOWER
29/04/2024,945962,0,3179.08,BROOK HOUSE NURSING HOME,8400008800,Nursing,Adults & Health,CLOCK TOWER
29/04/2024,945963,0,3179.08,BROOK HOUSE NURSING HOME,8400008800,Nursing,Adults & Health,NORTHBEXLEY
29/04/2024,945964,0,3179.08,BROOK HOUSE NURSING HOME,8400008800,Nursing,Adults & Health,NORTHBEXLEY
29/04/2024,945965,0,3179.08,BROOK HOUSE NURSING HOME,8400008800,Nursing,Adults & Health,NORTHBEXLEY
29/04/2024,945966,0,3764.16,BROOK HOUSE NURSING HOME,8400008800,Nursing,Adults & Health,NORTHBEXLEY
29/04/2024,945967,0,3860.6,BROOK HOUSE NURSING HOME,8400008800,Nursing,Adults & Health,NORTHBEXLEY
29/04/2024,945968,0,4292.56,BROOK HOUSE NURSING HOME,8400008800,Nursing,Adults & Health,NORTHBEXLEY
29/04/2024,945969,0,4365.92,BROOK HOUSE NURSING HOME,8400008800,Nursing,Adults & Health,FROGNAL
29/04/2024,945970,0,4800,BROOK HOUSE NURSING HOME,8400008800,Nursing,Adults & Health,NORTHBEXLEY
29/04/2024,945971,0,5400,BROOK HOUSE NURSING HOME,8400008800,Nursing,Adults & Health,CLOCK TOWER
15/04/2024,945987,0,511,BROWNCROSS HEALTHCARE LIMITED,8400039700,CommServs-ProvPayOP,Adults & Health,BOROUGHWIDE
08/04/2024,945989,0,570.03,BROWNCROSS HEALTHCARE LIMITED,8400039700,CommServs-ProvPayOP,Adults & Health,BOROUGHWIDE
08/04/2024,945990,0,605.6,BROWNCROSS HEALTHCARE LIMITED,8400039700,CommServs-ProvPayOP,Adults & Health,BOROUGHWIDE
08/04/2024,945991,0,605.91,BROWNCROSS HEALTHCARE LIMITED,8400039700,CommServs-ProvPayOP,Adults & Health,BOROUGHWIDE
15/04/2024,945993,0,620.18,BROWNCROSS HEALTHCARE LIMITED,8400039700,CommServs-ProvPayOP,Adults & Health,BOROUGHWIDE
08/04/2024,945995,0,644.71,BROWNCROSS HEALTHCARE LIMITED,8400039700,CommServs-ProvPayOP,Adults & Health,BOROUGHWIDE
08/04/2024,945997,0,646.8,BROWNCROSS HEALTHCARE LIMITED,8400039700,CommServs-ProvPayOP,Adults & Health,BOROUGHWIDE
08/04/2024,945998,0,646.8,BROWNCROSS HEALTHCARE LIMITED,8400039700,CommServs-ProvPayOP,Adults & Health,BOROUGHWIDE
08/04/2024,945999,0,646.8,BROWNCROSS HEALTHCARE LIMITED,8400039700,CommServs-ProvPayOP,Adults & Health,BOROUGHWIDE
08/04/2024,946001,0,646.8,BROWNCROSS HEALTHCARE LIMITED,8400039700,CommServs-ProvPayOP,Adults & Health,BOROUGHWIDE
08/04/2024,946002,0,646.8,BROWNCROSS HEALTHCARE LIMITED,8400039700,CommServs-ProvPayOP,Adults & Health,BOROUGHWIDE
08/04/2024,946003,0,646.8,BROWNCROSS HEALTHCARE LIMITED,8400039700,CommServs-ProvPayOP,Adults & Health,BOROUGHWIDE
08/04/2024,946004,0,646.8,BROWNCROSS HEALTHCARE LIMITED,8400039700,CommServs-ProvPayOP,Adults & Health,BOROUGHWIDE
08/04/2024,946005,0,646.8,BROWNCROSS HEALTHCARE LIMITED,8400039700,CommServs-ProvPayOP,Adults & Health,BOROUGHWIDE
08/04/2024,946006,0,646.8,BROWNCROSS HEALTHCARE LIMITED,8400039700,CommServs-ProvPayOP,Adults & Health,BOROUGHWIDE
08/04/2024,946008,0,646.8,BROWNCROSS HEALTHCARE LIMITED,8400039700,CommServs-ProvPayOP,Adults & Health,BOROUGHWIDE
08/04/2024,946009,0,646.8,BROWNCROSS HEALTHCARE LIMITED,8400039700,CommServs-ProvPayOP,Adults & Health,BOROUGHWIDE
08/04/2024,946010,0,646.8,BROWNCROSS HEALTHCARE LIMITED,8400039700,CommServs-ProvPayOP,Adults & Health,BOROUGHWIDE
08/04/2024,946011,0,646.8,BROWNCROSS HEALTHCARE LIMITED,8400039700,CommServs-ProvPayOP,Adults & Health,BOROUGHWIDE
08/04/2024,946013,0,646.8,BROWNCROSS HEALTHCARE LIMITED,8400039700,CommServs-ProvPayOP,Adults & Health,BOROUGHWIDE
15/04/2024,946014,0,646.8,BROWNCROSS HEALTHCARE LIMITED,8400039700,CommServs-ProvPayOP,Adults & Health,BOROUGHWIDE
15/04/2024,946015,0,646.8,BROWNCROSS HEALTHCARE LIMITED,8400039700,CommServs-ProvPayOP,Adults & Health,BOROUGHWIDE
15/04/2024,946016,0,646.8,BROWNCROSS HEALTHCARE LIMITED,8400039700,CommServs-ProvPayOP,Adults & Health,BOROUGHWIDE
15/04/2024,946018,0,646.8,BROWNCROSS HEALTHCARE LIMITED,8400039700,CommServs-ProvPayOP,Adults & Health,BOROUGHWIDE
15/04/2024,946020,0,646.8,BROWNCROSS HEALTHCARE LIMITED,8400039700,CommServs-ProvPayOP,Adults & Health,BOROUGHWIDE
15/04/2024,946021,0,646.8,BROWNCROSS HEALTHCARE LIMITED,8400039700,CommServs-ProvPayOP,Adults & Health,BOROUGHWIDE
15/04/2024,946022,0,646.8,BROWNCROSS HEALTHCARE LIMITED,8400039700,CommServs-ProvPayOP,Adults & Health,BOROUGHWIDE
15/04/2024,946023,0,646.8,BROWNCROSS HEALTHCARE LIMITED,8400039700,CommServs-ProvPayOP,Adults & Health,BOROUGHWIDE
15/04/2024,946034,0,659,BROWNCROSS HEALTHCARE LIMITED,8400039700,CommServs-ProvPayOP,Adults & Health,BOROUGHWIDE
08/04/2024,946035,0,659.4,BROWNCROSS HEALTHCARE LIMITED,8400039700,CommServs-ProvPayOP,Adults & Health,BOROUGHWIDE
08/04/2024,946036,0,659.4,BROWNCROSS HEALTHCARE LIMITED,8400039700,CommServs-ProvPayOP,Adults & Health,BOROUGHWIDE
08/04/2024,946037,0,659.4,BROWNCROSS HEALTHCARE LIMITED,8400039700,CommServs-ProvPayOP,Adults & Health,BOROUGHWIDE
08/04/2024,946038,0,659.4,BROWNCROSS HEALTHCARE LIMITED,8400039700,CommServs-ProvPayOP,Adults & Health,BOROUGHWIDE
08/04/2024,946039,0,659.4,BROWNCROSS HEALTHCARE LIMITED,8400039700,CommServs-ProvPayOP,Adults & Health,BOROUGHWIDE
08/04/2024,946040,0,659.4,BROWNCROSS HEALTHCARE LIMITED,8400039700,CommServs-ProvPayOP,Adults & Health,BOROUGHWIDE
08/04/2024,946041,0,659.4,BROWNCROSS HEALTHCARE LIMITED,8400039700,CommServs-ProvPayOP,Adults & Health,BOROUGHWIDE
08/04/2024,946042,0,659.4,BROWNCROSS HEALTHCARE LIMITED,8400039700,CommServs-ProvPayOP,Adults & Health,BOROUGHWIDE
15/04/2024,946043,0,659.4,BROWNCROSS HEALTHCARE LIMITED,8400039700,CommServs-ProvPayOP,Adults & Health,BOROUGHWIDE
15/04/2024,946044,0,659.4,BROWNCROSS HEALTHCARE LIMITED,8400039700,CommServs-ProvPayOP,Adults & Health,BOROUGHWIDE
15/04/2024,946045,0,659.4,BROWNCROSS HEALTHCARE LIMITED,8400039700,CommServs-ProvPayOP,Adults & Health,BOROUGHWIDE
15/04/2024,946046,0,659.4,BROWNCROSS HEALTHCARE LIMITED,8400039700,CommServs-ProvPayOP,Adults & Health,BOROUGHWIDE
08/04/2024,946050,0,673.42,BROWNCROSS HEALTHCARE LIMITED,8400039700,CommServs-ProvPayOP,Adults & Health,BOROUGHWIDE
15/04/2024,946052,0,693.44,BROWNCROSS HEALTHCARE LIMITED,8400039700,CommServs-ProvPayOP,Adults & Health,BOROUGHWIDE
08/04/2024,946053,0,711.76,BROWNCROSS HEALTHCARE LIMITED,8400039700,CommServs-ProvPayOP,Adults & Health,BOROUGHWIDE
08/04/2024,946054,0,711.76,BROWNCROSS HEALTHCARE LIMITED,8400039700,CommServs-ProvPayOP,Adults & Health,BOROUGHWIDE
08/04/2024,946055,0,711.76,BROWNCROSS HEALTHCARE LIMITED,8400039700,CommServs-ProvPayOP,Adults & Health,BOROUGHWIDE
08/04/2024,946056,0,711.76,BROWNCROSS HEALTHCARE LIMITED,8400039700,CommServs-ProvPayOP,Adults & Health,BOROUGHWIDE
15/04/2024,946057,0,711.76,BROWNCROSS HEALTHCARE LIMITED,8400039700,CommServs-ProvPayOP,Adults & Health,BOROUGHWIDE
15/04/2024,946058,0,711.76,BROWNCROSS HEALTHCARE LIMITED,8400039700,CommServs-ProvPayOP,Adults & Health,BOROUGHWIDE
15/04/2024,946063,0,722.9,BROWNCROSS HEALTHCARE LIMITED,8400039700,CommServs-ProvPayOP,Adults & Health,BOROUGHWIDE
08/04/2024,946064,0,745.2,BROWNCROSS HEALTHCARE LIMITED,8400039700,CommServs-ProvPayOP,Adults & Health,BOROUGHWIDE
08/04/2024,946065,0,745.2,BROWNCROSS HEALTHCARE LIMITED,8400039700,CommServs-ProvPayOP,Adults & Health,BOROUGHWIDE
08/04/2024,946066,0,745.2,BROWNCROSS HEALTHCARE LIMITED,8400039700,CommServs-ProvPayOP,Adults & Health,BOROUGHWIDE
08/04/2024,946067,0,840,BROWNCROSS HEALTHCARE LIMITED,8400039700,CommServs-ProvPayOP,Adults & Health,BOROUGHWIDE
08/04/2024,946068,0,840,BROWNCROSS HEALTHCARE LIMITED,8400039700,CommServs-ProvPayOP,Adults & Health,BOROUGHWIDE
08/04/2024,946069,0,840,BROWNCROSS HEALTHCARE LIMITED,8400039700,CommServs-ProvPayOP,Adults & Health,BOROUGHWIDE
15/04/2024,946070,0,840,BROWNCROSS HEALTHCARE LIMITED,8400039700,CommServs-ProvPayOP,Adults & Health,BOROUGHWIDE
15/04/2024,946071,0,840,BROWNCROSS HEALTHCARE LIMITED,8400039700,CommServs-ProvPayOP,Adults & Health,BOROUGHWIDE
08/04/2024,946073,0,840.56,BROWNCROSS HEALTHCARE LIMITED,8400039700,CommServs-ProvPayOP,Adults & Health,BOROUGHWIDE
08/04/2024,946074,0,840.56,BROWNCROSS HEALTHCARE LIMITED,8400039700,CommServs-ProvPayOP,Adults & Health,BOROUGHWIDE
08/04/2024,946075,0,840.56,BROWNCROSS HEALTHCARE LIMITED,8400039700,CommServs-ProvPayOP,Adults & Health,BOROUGHWIDE
08/04/2024,946076,0,840.56,BROWNCROSS HEALTHCARE LIMITED,8400039700,CommServs-ProvPayOP,Adults & Health,BOROUGHWIDE
15/04/2024,946077,0,840.56,BROWNCROSS HEALTHCARE LIMITED,8400039700,CommServs-ProvPayOP,Adults & Health,BOROUGHWIDE
15/04/2024,946078,0,840.56,BROWNCROSS HEALTHCARE LIMITED,8400039700,CommServs-ProvPayOP,Adults & Health,BOROUGHWIDE
08/04/2024,946080,0,932.72,BROWNCROSS HEALTHCARE LIMITED,8400039700,CommServs-ProvPayOP,Adults & Health,BOROUGHWIDE
08/04/2024,946081,0,932.72,BROWNCROSS HEALTHCARE LIMITED,8400039700,CommServs-ProvPayOP,Adults & Health,BOROUGHWIDE
08/04/2024,946082,0,932.72,BROWNCROSS HEALTHCARE LIMITED,8400039700,CommServs-ProvPayOP,Adults & Health,BOROUGHWIDE
08/04/2024,946083,0,932.72,BROWNCROSS HEALTHCARE LIMITED,8400039700,CommServs-ProvPayOP,Adults & Health,BOROUGHWIDE
15/04/2024,946084,0,932.72,BROWNCROSS HEALTHCARE LIMITED,8400039700,CommServs-ProvPayOP,Adults & Health,BOROUGHWIDE
15/04/2024,946085,0,932.72,BROWNCROSS HEALTHCARE LIMITED,8400039700,CommServs-ProvPayOP,Adults & Health,BOROUGHWIDE
08/04/2024,946088,0,1152.72,BROWNCROSS HEALTHCARE LIMITED,8400039700,CommServs-ProvPayOP,Adults & Health,BOROUGHWIDE
08/04/2024,946089,0,1152.72,BROWNCROSS HEALTHCARE LIMITED,8400039700,CommServs-ProvPayOP,Adults & Health,BOROUGHWIDE
08/04/2024,946090,0,1152.72,BROWNCROSS HEALTHCARE LIMITED,8400039700,CommServs-ProvPayOP,Adults & Health,BOROUGHWIDE
08/04/2024,946091,0,1152.72,BROWNCROSS HEALTHCARE LIMITED,8400039700,CommServs-ProvPayOP,Adults & Health,BOROUGHWIDE
15/04/2024,946092,0,1152.72,BROWNCROSS HEALTHCARE LIMITED,8400039700,CommServs-ProvPayOP,Adults & Health,BOROUGHWIDE
15/04/2024,946093,0,1152.72,BROWNCROSS HEALTHCARE LIMITED,8400039700,CommServs-ProvPayOP,Adults & Health,BOROUGHWIDE
08/04/2024,946096,0,2500,BROWNCROSS HEALTHCARE LIMITED,8400039700,CommServs-ProvPayOP,Adults & Health,BOROUGHWIDE
08/04/2024,945973,0,501.2,BROWNCROSS HEALTHCARE LIMITED,8400039700,CommServs-ProvPayWA,Adults & Health,BOROUGHWIDE
08/04/2024,945974,0,501.2,BROWNCROSS HEALTHCARE LIMITED,8400039700,CommServs-ProvPayWA,Adults & Health,BOROUGHWIDE
08/04/2024,945975,0,501.2,BROWNCROSS HEALTHCARE LIMITED,8400039700,CommServs-ProvPayWA,Adults & Health,BOROUGHWIDE
08/04/2024,945976,0,501.2,BROWNCROSS HEALTHCARE LIMITED,8400039700,CommServs-ProvPayWA,Adults & Health,BOROUGHWIDE
08/04/2024,945977,0,501.2,BROWNCROSS HEALTHCARE LIMITED,8400039700,CommServs-ProvPayWA,Adults & Health,BOROUGHWIDE
08/04/2024,945978,0,501.2,BROWNCROSS HEALTHCARE LIMITED,8400039700,CommServs-ProvPayWA,Adults & Health,BOROUGHWIDE
08/04/2024,945979,0,501.2,BROWNCROSS HEALTHCARE LIMITED,8400039700,CommServs-ProvPayWA,Adults & Health,BOROUGHWIDE
08/04/2024,945980,0,501.2,BROWNCROSS HEALTHCARE LIMITED,8400039700,CommServs-ProvPayWA,Adults & Health,BOROUGHWIDE
15/04/2024,945981,0,501.2,BROWNCROSS HEALTHCARE LIMITED,8400039700,CommServs-ProvPayWA,Adults & Health,BOROUGHWIDE
15/04/2024,945982,0,501.2,BROWNCROSS HEALTHCARE LIMITED,8400039700,CommServs-ProvPayWA,Adults & Health,BOROUGHWIDE
15/04/2024,945983,0,501.2,BROWNCROSS HEALTHCARE LIMITED,8400039700,CommServs-ProvPayWA,Adults & Health,BOROUGHWIDE
15/04/2024,945984,0,501.2,BROWNCROSS HEALTHCARE LIMITED,8400039700,CommServs-ProvPayWA,Adults & Health,BOROUGHWIDE
08/04/2024,945996,0,646.8,BROWNCROSS HEALTHCARE LIMITED,8400039700,CommServs-ProvPayWA,Adults & Health,BOROUGHWIDE
08/04/2024,946000,0,646.8,BROWNCROSS HEALTHCARE LIMITED,8400039700,CommServs-ProvPayWA,Adults & Health,BOROUGHWIDE
08/04/2024,946007,0,646.8,BROWNCROSS HEALTHCARE LIMITED,8400039700,CommServs-ProvPayWA,Adults & Health,BOROUGHWIDE
08/04/2024,946012,0,646.8,BROWNCROSS HEALTHCARE LIMITED,8400039700,CommServs-ProvPayWA,Adults & Health,BOROUGHWIDE
15/04/2024,946017,0,646.8,BROWNCROSS HEALTHCARE LIMITED,8400039700,CommServs-ProvPayWA,Adults & Health,BOROUGHWIDE
15/04/2024,946019,0,646.8,BROWNCROSS HEALTHCARE LIMITED,8400039700,CommServs-ProvPayWA,Adults & Health,BOROUGHWIDE
29/04/2024,946028,0,646.8,BROWNCROSS HEALTHCARE LIMITED,8400039700,Discharge to Assess- Non Chrg,Adults & Health,NORTHBEXLEY
29/04/2024,946032,0,646.8,BROWNCROSS HEALTHCARE LIMITED,8400039700,Discharge to Assess- Non Chrg,Adults & Health,NORTHBEXLEY
29/04/2024,946033,0,651.4,BROWNCROSS HEALTHCARE LIMITED,8400039700,Discharge to Assess- Non Chrg,Adults & Health,NORTHBEXLEY
29/04/2024,945985,0,501.2,BROWNCROSS HEALTHCARE LIMITED,8400039700,Homecare Conventional,Adults & Health,CLOCK TOWER
29/04/2024,945986,0,501.2,BROWNCROSS HEALTHCARE LIMITED,8400039700,Homecare Conventional,Adults & Health,CLOCK TOWER
29/04/2024,945992,0,606.37,BROWNCROSS HEALTHCARE LIMITED,8400039700,Homecare Conventional,Adults & Health,FROGNAL
29/04/2024,945994,0,644.34,BROWNCROSS HEALTHCARE LIMITED,8400039700,Homecare Conventional,Adults & Health,FROGNAL
29/04/2024,946024,0,646.8,BROWNCROSS HEALTHCARE LIMITED,8400039700,Homecare Conventional,Adults & Health,FROGNAL
29/04/2024,946025,0,646.8,BROWNCROSS HEALTHCARE LIMITED,8400039700,Homecare Conventional,Adults & Health,FROGNAL
29/04/2024,946026,0,646.8,BROWNCROSS HEALTHCARE LIMITED,8400039700,Homecare Conventional,Adults & Health,FROGNAL
29/04/2024,946027,0,646.8,BROWNCROSS HEALTHCARE LIMITED,8400039700,Homecare Conventional,Adults & Health,NORTHBEXLEY
29/04/2024,946029,0,646.8,BROWNCROSS HEALTHCARE LIMITED,8400039700,Homecare Conventional,Adults & Health,FROGNAL
29/04/2024,946030,0,646.8,BROWNCROSS HEALTHCARE LIMITED,8400039700,Homecare Conventional,Adults & Health,FROGNAL
29/04/2024,946031,0,646.8,BROWNCROSS HEALTHCARE LIMITED,8400039700,Homecare Conventional,Adults & Health,NORTHBEXLEY
29/04/2024,946051,0,688.53,BROWNCROSS HEALTHCARE LIMITED,8400039700,Homecare Conventional,Adults & Health,FROGNAL
29/04/2024,946059,0,711.76,BROWNCROSS HEALTHCARE LIMITED,8400039700,Homecare Conventional,Adults & Health,FROGNAL
29/04/2024,946060,0,711.76,BROWNCROSS HEALTHCARE LIMITED,8400039700,Homecare Conventional,Adults & Health,FROGNAL
29/04/2024,946061,0,720,BROWNCROSS HEALTHCARE LIMITED,8400039700,Homecare Conventional,Adults & Health,CLOCK TOWER
29/04/2024,946062,0,720.48,BROWNCROSS HEALTHCARE LIMITED,8400039700,Homecare Conventional,Adults & Health,CLOCK TOWER
29/04/2024,946072,0,840,BROWNCROSS HEALTHCARE LIMITED,8400039700,Homecare Conventional,Adults & Health,CLOCK TOWER
29/04/2024,946079,0,840.56,BROWNCROSS HEALTHCARE LIMITED,8400039700,Homecare Conventional,Adults & Health,CLOCK TOWER
29/04/2024,946086,0,932.72,BROWNCROSS HEALTHCARE LIMITED,8400039700,Homecare Conventional,Adults & Health,FROGNAL
29/04/2024,946087,0,932.72,BROWNCROSS HEALTHCARE LIMITED,8400039700,Homecare Conventional,Adults & Health,FROGNAL
29/04/2024,946094,0,1152.72,BROWNCROSS HEALTHCARE LIMITED,8400039700,Homecare Conventional,Adults & Health,FROGNAL
29/04/2024,946095,0,1152.72,BROWNCROSS HEALTHCARE LIMITED,8400039700,Homecare Conventional,Adults & Health,FROGNAL
29/04/2024,945988,0,565.2,BROWNCROSS HEALTHCARE LIMITED,8400039700,Homecare Reablement-Non Chrg,Adults & Health,CLOCK TOWER
29/04/2024,946047,0,659.4,BROWNCROSS HEALTHCARE LIMITED,8400039700,Homecare Reablement-Non Chrg,Adults & Health,CLOCK TOWER
29/04/2024,946048,0,659.4,BROWNCROSS HEALTHCARE LIMITED,8400039700,Homecare Reablement-Non Chrg,Adults & Health,CLOCK TOWER
29/04/2024,946049,0,659.4,BROWNCROSS HEALTHCARE LIMITED,8400039700,Homecare Reablement-Non Chrg,Adults & Health,CLOCK TOWER
29/04/2024,946124,0,2798.48,CABRINI HOUSE,8400034700,Residential,Adults & Health,NORTHBEXLEY
29/04/2024,946125,0,5596.96,CABRINI HOUSE,8400034700,Residential,Adults & Health,NORTHBEXLEY
29/04/2024,946133,0,9554.16,CAMBIAN GROUP,8400481400,Residential,Adults & Health,CLOCK TOWER
29/04/2024,946132,0,9554.16,CAMBIAN GROUP,8400481400,ResPlcmts-ProvPayWA,Adults & Health,BOROUGHWIDE
29/04/2024,946136,0,875.24,CAMPHILL MILTON KEYNES COMMUNITIES LTD,8400482100,CommServs-ProvPayWA,Adults & Health,BOROUGHWIDE
29/04/2024,946138,0,2324.5,CAMPHILL MILTON KEYNES COMMUNITIES LTD,8400482100,CommServs-ProvPayWA,Adults & Health,BOROUGHWIDE
29/04/2024,946135,0,812.72,CAMPHILL MILTON KEYNES COMMUNITIES LTD,8400482100,Supported Living,Adults & Health,CLOCK TOWER
29/04/2024,946137,0,2158.46,CAMPHILL MILTON KEYNES COMMUNITIES LTD,8400482100,Supported Living,Adults & Health,CLOCK TOWER
29/04/2024,946141,0,3971.56,CANUTE CARE HOME,8400033100,Residential,Adults & Health,NORTHBEXLEY
29/04/2024,946142,0,5545.36,CANUTE CARE HOME,8400033100,Residential,Adults & Health,NORTHBEXLEY
29/04/2024,946143,0,6401.84,CANUTE CARE HOME,8400033100,Residential,Adults & Health,NORTHBEXLEY
29/04/2024,946144,0,7943.12,CANUTE CARE HOME,8400033100,Residential,Adults & Health,NORTHBEXLEY
29/04/2024,946145,0,11090.72,CANUTE CARE HOME,8400033100,Residential,Adults & Health,NORTHBEXLEY
29/04/2024,946146,0,12803.68,CANUTE CARE HOME,8400033100,Residential,Adults & Health,NORTHBEXLEY
18/04/2024,946149,0,881,CAPITA BUSINESS SERVICES LIMITED,2086200,Adult Contract Pymt - Linkline,Adults & Health,BOROUGHWIDE
15/04/2024,946154,0,501.2,CAPITAL HEALTHCARE,8400000300,CommServs-ProvPayOP,Adults & Health,BOROUGHWIDE
15/04/2024,946159,0,605.55,CAPITAL HEALTHCARE,8400000300,CommServs-ProvPayOP,Adults & Health,BOROUGHWIDE
15/04/2024,946160,0,646.8,CAPITAL HEALTHCARE,8400000300,CommServs-ProvPayOP,Adults & Health,BOROUGHWIDE
15/04/2024,946167,0,688.2,CAPITAL HEALTHCARE,8400000300,CommServs-ProvPayOP,Adults & Health,BOROUGHWIDE
29/04/2024,946155,0,501.2,CAPITAL HEALTHCARE,8400000300,Homecare Conventional,Adults & Health,CLOCK TOWER
22/04/2024,946156,0,510.4,CAPITAL HEALTHCARE,8400000300,Homecare Conventional,Adults & Health,CLOCK TOWER
15/04/2024,946157,0,554.4,CAPITAL HEALTHCARE,8400000300,Homecare Conventional,Adults & Health,CLOCK TOWER
29/04/2024,946158,0,593.6,CAPITAL HEALTHCARE,8400000300,Homecare Conventional,Adults & Health,NORTHBEXLEY
29/04/2024,946161,0,646.8,CAPITAL HEALTHCARE,8400000300,Homecare Conventional,Adults & Health,CLOCK TOWER
29/04/2024,946162,0,656,CAPITAL HEALTHCARE,8400000300,Homecare Conventional,Adults & Health,CLOCK TOWER
22/04/2024,946163,0,656.08,CAPITAL HEALTHCARE,8400000300,Homecare Conventional,Adults & Health,CLOCK TOWER
15/04/2024,946164,0,656.16,CAPITAL HEALTHCARE,8400000300,Homecare Conventional,Adults & Health,NORTHBEXLEY
22/04/2024,946165,0,679.06,CAPITAL HEALTHCARE,8400000300,Homecare Conventional,Adults & Health,CLOCK TOWER
22/04/2024,946166,0,681.44,CAPITAL HEALTHCARE,8400000300,Homecare Conventional,Adults & Health,NORTHBEXLEY
15/04/2024,946168,0,738.88,CAPITAL HEALTHCARE,8400000300,Homecare Conventional,Adults & Health,CLOCK TOWER
29/04/2024,946174,0,3053.18,CARE MANAGEMENT GROUP LTD,8400024600,Supported Living,Adults & Health,NORTHBEXLEY
29/04/2024,946175,0,4222.08,CARE MANAGEMENT GROUP LTD,8400024600,Supported Living,Adults & Health,NORTHBEXLEY
29/04/2024,946176,0,6106.36,CARE MANAGEMENT GROUP LTD,8400024600,Supported Living,Adults & Health,NORTHBEXLEY
29/04/2024,946177,0,8444.16,CARE MANAGEMENT GROUP LTD,8400024600,Supported Living,Adults & Health,NORTHBEXLEY
08/04/2024,946178,0,526.4,CARE4YOU CARE AGENCY,8400488800,CommServs-ProvPayOP,Adults & Health,BOROUGHWIDE
08/04/2024,946179,0,776.16,CARERS 4 U LTD,8400018900,CommServs-ProvPayOP,Adults & Health,BOROUGHWIDE
08/04/2024,946180,0,776.16,CARERS 4 U LTD,8400018900,CommServs-ProvPayOP,Adults & Health,BOROUGHWIDE
29/04/2024,946181,0,776.16,CARERS 4 U LTD,8400018900,Homecare Conventional,Adults & Health,NORTHBEXLEY
22/04/2024,946182,0,785.44,CARERS 4 U LTD,8400018900,Homecare Conventional,Adults & Health,NORTHBEXLEY
15/04/2024,946183,0,790.08,CARERS 4 U LTD,8400018900,Homecare Conventional,Adults & Health,NORTHBEXLEY
04/04/2024,946184,0,56392.5,CARERS' SUPPORT(BEXLEY),3943000,PEI Grants - Care Supp PrvStrt,Adults & Health,BOROUGHWIDE
29/04/2024,946191,0,3152.92,Redacted Personal Data,8300085600,ISF Payments,Adults & Health,CLOCK TOWER
29/04/2024,946192,0,6305.84,Redacted Personal Data,8300085600,ISF Payments,Adults & Health,CLOCK TOWER
29/04/2024,946194,0,3105.2,CASTEL FROMA NEURO CARE,8400031001,NurPlcmts-ProvPayWA,Adults & Health,BOROUGHWIDE
29/04/2024,946195,0,3105.2,CASTEL FROMA NEURO CARE,8400031001,Nursing,Adults & Health,NORTHBEXLEY
29/04/2024,946200,0,5478.4,CASTLETON ROAD,8400031400,Residential,Adults & Health,NORTHBEXLEY
29/04/2024,946201,0,10956.8,CASTLETON ROAD,8400031400,Residential,Adults & Health,NORTHBEXLEY
29/04/2024,946203,0,2930.46,CEDAR VIEW CARE CENTRE,8400485900,NurPlcmts-ProvPayOP,Adults & Health,BOROUGHWIDE
29/04/2024,946202,0,2930.46,CEDAR VIEW CARE CENTRE,8400485900,Nursing,Adults & Health,NORTHBEXLEY
09/04/2024,946208,0,2010.16,CENTRAL AND NORTH WEST LONDON NHS,8021000,Central & NW London NHS Trust,Adults & Health,Health & Wellbeing
22/04/2024,946211,0,646.8,CHAMELEON CARE LIMITED,8400019500,CommServs-ProvPayOP,Adults & Health,BOROUGHWIDE
22/04/2024,946212,0,646.8,CHAMELEON CARE LIMITED,8400019500,CommServs-ProvPayOP,Adults & Health,BOROUGHWIDE
22/04/2024,946213,0,646.8,CHAMELEON CARE LIMITED,8400019500,CommServs-ProvPayOP,Adults & Health,BOROUGHWIDE
22/04/2024,946214,0,646.8,CHAMELEON CARE LIMITED,8400019500,CommServs-ProvPayOP,Adults & Health,BOROUGHWIDE
22/04/2024,946215,0,646.8,CHAMELEON CARE LIMITED,8400019500,CommServs-ProvPayOP,Adults & Health,BOROUGHWIDE
22/04/2024,946216,0,646.8,CHAMELEON CARE LIMITED,8400019500,CommServs-ProvPayOP,Adults & Health,BOROUGHWIDE
22/04/2024,946217,0,646.8,CHAMELEON CARE LIMITED,8400019500,CommServs-ProvPayOP,Adults & Health,BOROUGHWIDE
22/04/2024,946218,0,646.8,CHAMELEON CARE LIMITED,8400019500,CommServs-ProvPayOP,Adults & Health,BOROUGHWIDE
22/04/2024,946219,0,646.8,CHAMELEON CARE LIMITED,8400019500,CommServs-ProvPayOP,Adults & Health,BOROUGHWIDE
22/04/2024,946220,0,646.8,CHAMELEON CARE LIMITED,8400019500,CommServs-ProvPayOP,Adults & Health,BOROUGHWIDE
22/04/2024,946221,0,646.8,CHAMELEON CARE LIMITED,8400019500,CommServs-ProvPayOP,Adults & Health,BOROUGHWIDE
22/04/2024,946222,0,646.8,CHAMELEON CARE LIMITED,8400019500,CommServs-ProvPayOP,Adults & Health,BOROUGHWIDE
29/04/2024,946240,0,1388.16,CHARLTON PARK CARE CENTRE,8400034600,Nursing,Adults & Health,NORTHBEXLEY
29/04/2024,946241,0,1568.22,CHARLTON PARK CARE CENTRE,8400034600,Nursing,Adults & Health,FROGNAL
29/04/2024,946242,0,1929.9,CHARLTON PARK CARE CENTRE,8400034600,Nursing,Adults & Health,CLOCK TOWER
29/04/2024,946243,0,2082.02,CHARLTON PARK CARE CENTRE,8400034600,Nursing,Adults & Health,NORTHBEXLEY
29/04/2024,946244,0,3136.44,CHARLTON PARK CARE CENTRE,8400034600,Nursing,Adults & Health,FROGNAL
29/04/2024,946245,0,3859.8,CHARLTON PARK CARE CENTRE,8400034600,Nursing,Adults & Health,CLOCK TOWER
29/04/2024,946246,0,4164.04,CHARLTON PARK CARE CENTRE,8400034600,Nursing,Adults & Health,NORTHBEXLEY
08/04/2024,946251,0,7436.31,CHELSEA AND WESTMINSTER HOSPITAL NHS FOU,8298001,Chelsea&WestminsterHospNHSTrus,Adults & Health,Health & Wellbeing
25/04/2024,946252,0,7459.15,CHELSEA AND WESTMINSTER HOSPITAL NHS FOU,8298001,Chelsea&WestminsterHospNHSTrus,Adults & Health,Health & Wellbeing
02/04/2024,946253,0,7459.15,CHELSEA AND WESTMINSTER HOSPITAL NHS FOU,8298001,Chelsea&WestminsterHospNHSTrus,Adults & Health,Health & Wellbeing
02/04/2024,946254,0,7459.15,CHELSEA AND WESTMINSTER HOSPITAL NHS FOU,8298001,Chelsea&WestminsterHospNHSTrus,Adults & Health,Health & Wellbeing
29/04/2024,946265,0,3908.76,CHILTERN SUPPORT AND HOUSING LIMITED,8400479800,Supported Living,Adults & Health,NORTHBEXLEY
29/04/2024,946266,0,7817.52,CHILTERN SUPPORT AND HOUSING LIMITED,8400479800,Supported Living,Adults & Health,NORTHBEXLEY
04/04/2024,946269,0,11587.5,CHOICE SUPPORT,8387600,PEI Grants - MCCH PrvStrt,Adults & Health,BOROUGHWIDE
11/04/2024,946270,0,86703.65,CHOICE SUPPORT,8387600,ResPlcmts-ProvPayWA,Adults & Health,BOROUGHWIDE
29/04/2024,946271,0,512.35,CHOICE SUPPORT COMMUNITY SUPPORT,8400012300,Daycare,Adults & Health,CLOCK TOWER
29/04/2024,946272,0,540.36,CHOICE SUPPORT COMMUNITY SUPPORT,8400012300,Daycare,Adults & Health,FROGNAL
29/04/2024,946273,0,540.36,CHOICE SUPPORT COMMUNITY SUPPORT,8400012300,Daycare,Adults & Health,NORTHBEXLEY
29/04/2024,946274,0,540.36,CHOICE SUPPORT COMMUNITY SUPPORT,8400012300,Daycare,Adults & Health,FROGNAL
29/04/2024,946275,0,540.36,CHOICE SUPPORT COMMUNITY SUPPORT,8400012300,Daycare,Adults & Health,FROGNAL
29/04/2024,946276,0,540.36,CHOICE SUPPORT COMMUNITY SUPPORT,8400012300,Daycare,Adults & Health,CLOCK TOWER
29/04/2024,946277,0,540.36,CHOICE SUPPORT COMMUNITY SUPPORT,8400012300,Daycare,Adults & Health,CLOCK TOWER
29/04/2024,946278,0,540.36,CHOICE SUPPORT COMMUNITY SUPPORT,8400012300,Daycare,Adults & Health,CLOCK TOWER
29/04/2024,946279,0,564.36,CHOICE SUPPORT COMMUNITY SUPPORT,8400012300,Daycare,Adults & Health,NORTHBEXLEY
29/04/2024,946280,0,564.36,CHOICE SUPPORT COMMUNITY SUPPORT,8400012300,Daycare,Adults & Health,NORTHBEXLEY
29/04/2024,946281,0,564.36,CHOICE SUPPORT COMMUNITY SUPPORT,8400012300,Daycare,Adults & Health,NORTHBEXLEY
29/04/2024,946282,0,564.36,CHOICE SUPPORT COMMUNITY SUPPORT,8400012300,Daycare,Adults & Health,NORTHBEXLEY
29/04/2024,946283,0,564.36,CHOICE SUPPORT COMMUNITY SUPPORT,8400012300,Daycare,Adults & Health,FROGNAL
29/04/2024,946284,0,564.36,CHOICE SUPPORT COMMUNITY SUPPORT,8400012300,Daycare,Adults & Health,FROGNAL
29/04/2024,946285,0,696.24,CHOICE SUPPORT COMMUNITY SUPPORT,8400012300,Daycare,Adults & Health,NORTHBEXLEY
29/04/2024,946286,0,696.24,CHOICE SUPPORT COMMUNITY SUPPORT,8400012300,Daycare,Adults & Health,FROGNAL
29/04/2024,946287,0,696.24,CHOICE SUPPORT COMMUNITY SUPPORT,8400012300,Daycare,Adults & Health,CLOCK TOWER
29/04/2024,946288,0,696.24,CHOICE SUPPORT COMMUNITY SUPPORT,8400012300,Daycare,Adults & Health,CLOCK TOWER
29/04/2024,946289,0,696.24,CHOICE SUPPORT COMMUNITY SUPPORT,8400012300,Daycare,Adults & Health,CLOCK TOWER
29/04/2024,946290,0,720.48,CHOICE SUPPORT COMMUNITY SUPPORT,8400012300,Daycare,Adults & Health,NORTHBEXLEY
29/04/2024,946291,0,720.48,CHOICE SUPPORT COMMUNITY SUPPORT,8400012300,Daycare,Adults & Health,NORTHBEXLEY
29/04/2024,946292,0,720.48,CHOICE SUPPORT COMMUNITY SUPPORT,8400012300,Daycare,Adults & Health,FROGNAL
29/04/2024,946293,0,720.48,CHOICE SUPPORT COMMUNITY SUPPORT,8400012300,Daycare,Adults & Health,FROGNAL
29/04/2024,946294,0,720.48,CHOICE SUPPORT COMMUNITY SUPPORT,8400012300,Daycare,Adults & Health,FROGNAL
29/04/2024,946295,0,720.48,CHOICE SUPPORT COMMUNITY SUPPORT,8400012300,Daycare,Adults & Health,CLOCK TOWER
29/04/2024,946296,0,720.48,CHOICE SUPPORT COMMUNITY SUPPORT,8400012300,Daycare,Adults & Health,CLOCK TOWER
29/04/2024,946297,0,735.68,CHOICE SUPPORT COMMUNITY SUPPORT,8400012300,Daycare,Adults & Health,CLOCK TOWER
29/04/2024,946298,0,752.48,CHOICE SUPPORT COMMUNITY SUPPORT,8400012300,Daycare,Adults & Health,NORTHBEXLEY
29/04/2024,946299,0,752.48,CHOICE SUPPORT COMMUNITY SUPPORT,8400012300,Daycare,Adults & Health,NORTHBEXLEY
29/04/2024,946300,0,752.48,CHOICE SUPPORT COMMUNITY SUPPORT,8400012300,Daycare,Adults & Health,NORTHBEXLEY
29/04/2024,946301,0,752.48,CHOICE SUPPORT COMMUNITY SUPPORT,8400012300,Daycare,Adults & Health,FROGNAL
29/04/2024,946302,0,752.48,CHOICE SUPPORT COMMUNITY SUPPORT,8400012300,Daycare,Adults & Health,CLOCK TOWER
29/04/2024,946303,0,752.48,CHOICE SUPPORT COMMUNITY SUPPORT,8400012300,Daycare,Adults & Health,CLOCK TOWER
29/04/2024,946305,0,870.3,CHOICE SUPPORT COMMUNITY SUPPORT,8400012300,Daycare,Adults & Health,NORTHBEXLEY
29/04/2024,946306,0,870.3,CHOICE SUPPORT COMMUNITY SUPPORT,8400012300,Daycare,Adults & Health,FROGNAL
29/04/2024,946307,0,900.6,CHOICE SUPPORT COMMUNITY SUPPORT,8400012300,Daycare,Adults & Health,NORTHBEXLEY
29/04/2024,946308,0,900.6,CHOICE SUPPORT COMMUNITY SUPPORT,8400012300,Daycare,Adults & Health,NORTHBEXLEY
29/04/2024,946309,0,900.6,CHOICE SUPPORT COMMUNITY SUPPORT,8400012300,Daycare,Adults & Health,NORTHBEXLEY
29/04/2024,946310,0,900.6,CHOICE SUPPORT COMMUNITY SUPPORT,8400012300,Daycare,Adults & Health,NORTHBEXLEY
29/04/2024,946311,0,900.6,CHOICE SUPPORT COMMUNITY SUPPORT,8400012300,Daycare,Adults & Health,FROGNAL
29/04/2024,946312,0,900.6,CHOICE SUPPORT COMMUNITY SUPPORT,8400012300,Daycare,Adults & Health,FROGNAL
29/04/2024,946313,0,900.6,CHOICE SUPPORT COMMUNITY SUPPORT,8400012300,Daycare,Adults & Health,FROGNAL
29/04/2024,946314,0,900.6,CHOICE SUPPORT COMMUNITY SUPPORT,8400012300,Daycare,Adults & Health,CLOCK TOWER
29/04/2024,946315,0,900.6,CHOICE SUPPORT COMMUNITY SUPPORT,8400012300,Daycare,Adults & Health,CLOCK TOWER
29/04/2024,946316,0,900.6,CHOICE SUPPORT COMMUNITY SUPPORT,8400012300,Daycare,Adults & Health,CLOCK TOWER
29/04/2024,946317,0,900.6,CHOICE SUPPORT COMMUNITY SUPPORT,8400012300,Daycare,Adults & Health,CLOCK TOWER
29/04/2024,946318,0,900.6,CHOICE SUPPORT COMMUNITY SUPPORT,8400012300,Daycare,Adults & Health,CLOCK TOWER
29/04/2024,946319,0,900.6,CHOICE SUPPORT COMMUNITY SUPPORT,8400012300,Daycare,Adults & Health,CLOCK TOWER
29/04/2024,946320,0,900.6,CHOICE SUPPORT COMMUNITY SUPPORT,8400012300,Daycare,Adults & Health,CLOCK TOWER
29/04/2024,946321,0,900.6,CHOICE SUPPORT COMMUNITY SUPPORT,8400012300,Daycare,Adults & Health,CLOCK TOWER
29/04/2024,946322,0,919.6,CHOICE SUPPORT COMMUNITY SUPPORT,8400012300,Daycare,Adults & Health,NORTHBEXLEY
29/04/2024,946323,0,919.6,CHOICE SUPPORT COMMUNITY SUPPORT,8400012300,Daycare,Adults & Health,NORTHBEXLEY
29/04/2024,946324,0,919.6,CHOICE SUPPORT COMMUNITY SUPPORT,8400012300,Daycare,Adults & Health,FROGNAL
29/04/2024,946325,0,940.6,CHOICE SUPPORT COMMUNITY SUPPORT,8400012300,Daycare,Adults & Health,NORTHBEXLEY
29/04/2024,946327,0,1044.36,CHOICE SUPPORT COMMUNITY SUPPORT,8400012300,Daycare,Adults & Health,CLOCK TOWER
29/04/2024,946328,0,1103.52,CHOICE SUPPORT COMMUNITY SUPPORT,8400012300,Daycare,Adults & Health,CLOCK TOWER
29/04/2024,946337,0,1740.6,CHOICE SUPPORT COMMUNITY SUPPORT,8400012300,Daycare,Adults & Health,NORTHBEXLEY
29/04/2024,946338,0,1740.6,CHOICE SUPPORT COMMUNITY SUPPORT,8400012300,Daycare,Adults & Health,FROGNAL
29/04/2024,946339,0,1839.2,CHOICE SUPPORT COMMUNITY SUPPORT,8400012300,Daycare,Adults & Health,NORTHBEXLEY
29/04/2024,946340,0,1839.2,CHOICE SUPPORT COMMUNITY SUPPORT,8400012300,Daycare,Adults & Health,NORTHBEXLEY
29/04/2024,946341,0,1839.2,CHOICE SUPPORT COMMUNITY SUPPORT,8400012300,Daycare,Adults & Health,FROGNAL
29/04/2024,946343,0,2068.66,CHOICE SUPPORT COMMUNITY SUPPORT,8400017000,Residential,Adults & Health,FROGNAL
29/04/2024,946344,0,2152.62,CHOICE SUPPORT COMMUNITY SUPPORT,8400017000,Residential,Adults & Health,FROGNAL
29/04/2024,946345,0,2266.88,CHOICE SUPPORT COMMUNITY SUPPORT,8400017000,Residential,Adults & Health,FROGNAL
29/04/2024,946356,0,4137.32,CHOICE SUPPORT COMMUNITY SUPPORT,8400017000,Residential,Adults & Health,FROGNAL
29/04/2024,946357,0,4305.24,CHOICE SUPPORT COMMUNITY SUPPORT,8400017000,Residential,Adults & Health,FROGNAL
29/04/2024,946358,0,4533.76,CHOICE SUPPORT COMMUNITY SUPPORT,8400017000,Residential,Adults & Health,FROGNAL
29/04/2024,946304,0,859.54,CHOICE SUPPORT COMMUNITY SUPPORT,8400027700,Supported Living,Adults & Health,CLOCK TOWER
29/04/2024,946326,0,964.16,CHOICE SUPPORT COMMUNITY SUPPORT,8400027700,Supported Living,Adults & Health,NORTHBEXLEY
29/04/2024,946330,0,1496.96,CHOICE SUPPORT COMMUNITY SUPPORT,8400027700,Supported Living,Adults & Health,NORTHBEXLEY
29/04/2024,946331,0,1539.14,CHOICE SUPPORT COMMUNITY SUPPORT,8400027700,Supported Living,Adults & Health,CLOCK TOWER
29/04/2024,946332,0,1539.14,CHOICE SUPPORT COMMUNITY SUPPORT,8400027700,Supported Living,Adults & Health,CLOCK TOWER
29/04/2024,946334,0,1657.54,CHOICE SUPPORT COMMUNITY SUPPORT,8400027700,Supported Living,Adults & Health,NORTHBEXLEY
29/04/2024,946335,0,1657.54,CHOICE SUPPORT COMMUNITY SUPPORT,8400027700,Supported Living,Adults & Health,FROGNAL
29/04/2024,946336,0,1719.08,CHOICE SUPPORT COMMUNITY SUPPORT,8400027700,Supported Living,Adults & Health,CLOCK TOWER
29/04/2024,946342,0,1928.32,CHOICE SUPPORT COMMUNITY SUPPORT,8400027700,Supported Living,Adults & Health,NORTHBEXLEY
29/04/2024,946346,0,2660.21,CHOICE SUPPORT COMMUNITY SUPPORT,8400027700,Supported Living,Adults & Health,CLOCK TOWER
29/04/2024,946347,0,2686.78,CHOICE SUPPORT COMMUNITY SUPPORT,8400027700,Supported Living,Adults & Health,CLOCK TOWER
29/04/2024,946348,0,2893.46,CHOICE SUPPORT COMMUNITY SUPPORT,8400027700,Supported Living,Adults & Health,NORTHBEXLEY
29/04/2024,946349,0,2993.92,CHOICE SUPPORT COMMUNITY SUPPORT,8400027700,Supported Living,Adults & Health,NORTHBEXLEY
29/04/2024,946350,0,3041.87,CHOICE SUPPORT COMMUNITY SUPPORT,8400027700,Supported Living,Adults & Health,CLOCK TOWER
29/04/2024,946351,0,3215.72,CHOICE SUPPORT COMMUNITY SUPPORT,8400027700,Supported Living,Adults & Health,CLOCK TOWER
29/04/2024,946352,0,3315.08,CHOICE SUPPORT COMMUNITY SUPPORT,8400027700,Supported Living,Adults & Health,NORTHBEXLEY
29/04/2024,946353,0,3315.08,CHOICE SUPPORT COMMUNITY SUPPORT,8400027700,Supported Living,Adults & Health,FROGNAL
29/04/2024,946354,0,3315.08,CHOICE SUPPORT COMMUNITY SUPPORT,8400027700,Supported Living,Adults & Health,CLOCK TOWER
29/04/2024,946355,0,3315.08,CHOICE SUPPORT COMMUNITY SUPPORT,8400027700,Supported Living,Adults & Health,CLOCK TOWER
29/04/2024,946359,0,5657.38,CHOICE SUPPORT COMMUNITY SUPPORT,8400027700,Supported Living,Adults & Health,FROGNAL
29/04/2024,946360,0,5729.68,CHOICE SUPPORT COMMUNITY SUPPORT,8400027700,Supported Living,Adults & Health,CLOCK TOWER
29/04/2024,946361,0,5786.92,CHOICE SUPPORT COMMUNITY SUPPORT,8400027700,Supported Living,Adults & Health,NORTHBEXLEY
29/04/2024,946362,0,5786.92,CHOICE SUPPORT COMMUNITY SUPPORT,8400027700,Supported Living,Adults & Health,CLOCK TOWER
29/04/2024,946363,0,6551.72,CHOICE SUPPORT COMMUNITY SUPPORT,8400027700,Supported Living,Adults & Health,CLOCK TOWER
29/04/2024,946364,0,6926.16,CHOICE SUPPORT COMMUNITY SUPPORT,8400027700,Supported Living,Adults & Health,CLOCK TOWER
29/04/2024,946365,0,11314.76,CHOICE SUPPORT COMMUNITY SUPPORT,8400027700,Supported Living,Adults & Health,FROGNAL
29/04/2024,946329,0,1260.84,CHOICE SUPPORT COMMUNITY SUPPORT,8400012300,VOIDS-Day Care LD,Adults & Health,BOROUGHWIDE
29/04/2024,946333,0,1578.64,CHOICE SUPPORT COMMUNITY SUPPORT,8400027700,VOIDS-Supported Living,Adults & Health,BOROUGHWIDE
29/04/2024,946373,0,622.7,Redacted Personal Data,8300085400,ISF Payments,Adults & Health,NORTHBEXLEY
29/04/2024,946374,0,1245.4,Redacted Personal Data,8300085400,ISF Payments,Adults & Health,NORTHBEXLEY
29/04/2024,946385,0,2000,CHURCHILL HOUSE RCH,8400481500,Residential,Adults & Health,NORTHBEXLEY
29/04/2024,946384,0,2000,CHURCHILL HOUSE RCH,8400481500,ResPlcmts-ProvPayWA,Adults & Health,BOROUGHWIDE
02/04/2024,946386,0,8250,CITY OF LONDON CORPORATION,6156900,Public Health Payments,Adults & Health,Health & Wellbeing
29/04/2024,946391,0,3789.74,Redacted Personal Data,8300074500,ISF Payments,Adults & Health,CLOCK TOWER
29/04/2024,946392,0,8162.52,Redacted Personal Data,8300074500,ISF Payments,Adults & Health,CLOCK TOWER
29/04/2024,946401,0,2335.44,Redacted Personal Data,8300096900,ISF Payments,Adults & Health,FROGNAL
29/04/2024,946402,0,4670.88,Redacted Personal Data,8300096900,ISF Payments,Adults & Health,FROGNAL
29/04/2024,946426,0,5393.96,CONSENSUS SUPPORT,8400488400,Residential,Adults & Health,NORTHBEXLEY
29/04/2024,946427,0,5393.96,CONSENSUS SUPPORT,8400488400,ResPlcmts-ProvPayWA,Adults & Health,BOROUGHWIDE
29/04/2024,946428,0,1778.4,COPPER BEECHES CARE HOME,8400483800,Residential,Adults & Health,FROGNAL
29/04/2024,946429,0,1778.4,COPPER BEECHES CARE HOME,8400483800,ResPlcmts-ProvPayOP,Adults & Health,BOROUGHWIDE
29/04/2024,946444,0,2202,CRABWALL CLAREMONT LIMITED,8400489400,Nursing,Adults & Health,NORTHBEXLEY
29/04/2024,946445,0,2202,CRABWALL CLAREMONT LIMITED,8400489400,Nursing,Adults & Health,NORTHBEXLEY
29/04/2024,946446,0,4404,CRABWALL CLAREMONT LIMITED,8400489400,Nursing,Adults & Health,NORTHBEXLEY
29/04/2024,946447,0,4404,CRABWALL CLAREMONT LIMITED,8400489400,Nursing,Adults & Health,NORTHBEXLEY
29/04/2024,946448,0,4404,CRABWALL CLAREMONT LIMITED,8400489400,Nursing,Adults & Health,NORTHBEXLEY
29/04/2024,946449,0,4404,CRABWALL CLAREMONT LIMITED,8400489400,Nursing,Adults & Health,NORTHBEXLEY
29/04/2024,946450,0,4404,CRABWALL CLAREMONT LIMITED,8400489400,Nursing,Adults & Health,NORTHBEXLEY
29/04/2024,946453,0,549.48,Redacted Personal Data,8300114900,ISF Payments,Adults & Health,NORTHBEXLEY
29/04/2024,946454,0,1098.96,Redacted Personal Data,8300114900,ISF Payments,Adults & Health,NORTHBEXLEY
29/04/2024,946459,0,4700,CROHAM NURSING HOME,8400014100,Residential,Adults & Health,CLOCK TOWER
29/04/2024,946462,0,4813.44,CROHAM NURSING HOME,8400014100,Residential,Adults & Health,NORTHBEXLEY
29/04/2024,946460,0,4700,CROHAM NURSING HOME,8400014100,ResPlcmts-ProvPayOP,Adults & Health,BOROUGHWIDE
29/04/2024,946461,0,4813.44,CROHAM NURSING HOME,8400014100,ResPlcmts-ProvPayWA,Adults & Health,BOROUGHWIDE
04/04/2024,946469,0,20600,CROSSROADS CARE SOUTH EAST LONDON,8211000,PEI Grants - Crossroad PrvStrt,Adults & Health,BOROUGHWIDE
29/04/2024,946473,0,513.84,CRUTCHFIELD FAMILY PLACEMENT,8400040100,Supported Accommodation,Adults & Health,FROGNAL
29/04/2024,946474,0,1027.68,CRUTCHFIELD FAMILY PLACEMENT,8400040100,Supported Accommodation,Adults & Health,FROGNAL
22/04/2024,946505,0,603.72,DAYA CARE GROUP LTD T/A CAREMARK (DARTFO,8400484800,CommServs-ProvPayWA,Adults & Health,BOROUGHWIDE
22/04/2024,946507,0,655.28,DAYA CARE GROUP LTD T/A CAREMARK (DARTFO,8400484800,CommServs-ProvPayWA,Adults & Health,BOROUGHWIDE
22/04/2024,946506,0,603.72,DAYA CARE GROUP LTD T/A CAREMARK (DARTFO,8400484800,Discharge to Assess- Non Chrg,Adults & Health,NORTHBEXLEY
22/04/2024,946508,0,655.28,DAYA CARE GROUP LTD T/A CAREMARK (DARTFO,8400484800,Discharge to Assess- Non Chrg,Adults & Health,NORTHBEXLEY
29/04/2024,946515,0,6563.92,DEAFWAY SERVICES,8400037700,Residential,Adults & Health,NORTHBEXLEY
29/04/2024,946516,0,13127.84,DEAFWAY SERVICES,8400037700,Residential,Adults & Health,NORTHBEXLEY
29/04/2024,946556,0,1102.5,DOMUS LIVE-IN CARE LIMITED,8400046300,CommServs-ProvPayOP,Adults & Health,BOROUGHWIDE
29/04/2024,946558,0,1250,DOMUS LIVE-IN CARE LIMITED,8400046300,CommServs-ProvPayWA,Adults & Health,BOROUGHWIDE
29/04/2024,946552,0,1071.38,DOMUS LIVE-IN CARE LIMITED,8400046300,Homecare Conventional,Adults & Health,CLOCK TOWER
29/04/2024,946553,0,1102.5,DOMUS LIVE-IN CARE LIMITED,8400046300,Homecare Conventional,Adults & Health,NORTHBEXLEY
29/04/2024,946554,0,1102.5,DOMUS LIVE-IN CARE LIMITED,8400046300,Homecare Conventional,Adults & Health,NORTHBEXLEY
29/04/2024,946555,0,1102.5,DOMUS LIVE-IN CARE LIMITED,8400046300,Homecare Conventional,Adults & Health,NORTHBEXLEY
29/04/2024,946557,0,1250,DOMUS LIVE-IN CARE LIMITED,8400046300,Homecare Conventional,Adults & Health,CLOCK TOWER
29/04/2024,946559,0,1250,DOMUS LIVE-IN CARE LIMITED,8400046300,Homecare Conventional,Adults & Health,CLOCK TOWER
15/04/2024,946590,0,576,DORSET NURSING SUPPLIES LIMITED,10194800,Specialist Equip for Svce Prov,Adults & Health,BOROUGHWIDE
11/04/2024,946596,0,514.2,Redacted Personal Data,8304100,DoLS Payments-Section 12 Docs,Adults & Health,BOROUGHWIDE
15/04/2024,946597,0,515,Redacted Personal Data,8304100,DoLS Payments-Section 12 Docs,Adults & Health,BOROUGHWIDE
04/04/2024,946598,0,600.9,Redacted Personal Data,8661000,DoLS Payments-Section 12 Docs,Adults & Health,BOROUGHWIDE
11/04/2024,946599,0,707,Redacted Personal Data,8661000,DoLS Payments-Section 12 Docs,Adults & Health,BOROUGHWIDE
25/04/2024,946607,0,537,Redacted Personal Data,8651401,DoLS Payments-Section 12 Docs,Adults & Health,BOROUGHWIDE
08/04/2024,946610,0,600.56,DREAM COMMUNITY PERSONNEL,8400010500,CommServs-ProvPayOP,Adults & Health,BOROUGHWIDE
08/04/2024,946611,0,602.04,DREAM COMMUNITY PERSONNEL,8400010500,CommServs-ProvPayOP,Adults & Health,BOROUGHWIDE
08/04/2024,946617,0,646.8,DREAM COMMUNITY PERSONNEL,8400010500,CommServs-ProvPayOP,Adults & Health,BOROUGHWIDE
08/04/2024,946618,0,646.8,DREAM COMMUNITY PERSONNEL,8400010500,CommServs-ProvPayOP,Adults & Health,BOROUGHWIDE
08/04/2024,946619,0,646.8,DREAM COMMUNITY PERSONNEL,8400010500,CommServs-ProvPayOP,Adults & Health,BOROUGHWIDE
08/04/2024,946628,0,711.2,DREAM COMMUNITY PERSONNEL,8400010500,CommServs-ProvPayOP,Adults & Health,BOROUGHWIDE
08/04/2024,946634,0,1136.62,DREAM COMMUNITY PERSONNEL,8400010500,CommServs-ProvPayOP,Adults & Health,BOROUGHWIDE
08/04/2024,946620,0,646.8,DREAM COMMUNITY PERSONNEL,8400010500,CommServs-ProvPayWA,Adults & Health,BOROUGHWIDE
15/04/2024,946608,0,554.4,DREAM COMMUNITY PERSONNEL,8400010500,Homecare Conventional,Adults & Health,CLOCK TOWER
22/04/2024,946609,0,554.4,DREAM COMMUNITY PERSONNEL,8400010500,Homecare Conventional,Adults & Health,NORTHBEXLEY
15/04/2024,946612,0,602.04,DREAM COMMUNITY PERSONNEL,8400010500,Homecare Conventional,Adults & Health,NORTHBEXLEY
22/04/2024,946613,0,602.04,DREAM COMMUNITY PERSONNEL,8400010500,Homecare Conventional,Adults & Health,NORTHBEXLEY
29/04/2024,946614,0,602.04,DREAM COMMUNITY PERSONNEL,8400010500,Homecare Conventional,Adults & Health,NORTHBEXLEY
29/04/2024,946615,0,605.2,DREAM COMMUNITY PERSONNEL,8400010500,Homecare Conventional,Adults & Health,NORTHBEXLEY
15/04/2024,946616,0,609.6,DREAM COMMUNITY PERSONNEL,8400010500,Homecare Conventional,Adults & Health,CLOCK TOWER
15/04/2024,946621,0,646.8,DREAM COMMUNITY PERSONNEL,8400010500,Homecare Conventional,Adults & Health,NORTHBEXLEY
15/04/2024,946622,0,646.8,DREAM COMMUNITY PERSONNEL,8400010500,Homecare Conventional,Adults & Health,NORTHBEXLEY
22/04/2024,946623,0,646.8,DREAM COMMUNITY PERSONNEL,8400010500,Homecare Conventional,Adults & Health,NORTHBEXLEY
22/04/2024,946624,0,646.8,DREAM COMMUNITY PERSONNEL,8400010500,Homecare Conventional,Adults & Health,NORTHBEXLEY
22/04/2024,946625,0,646.8,DREAM COMMUNITY PERSONNEL,8400010500,Homecare Conventional,Adults & Health,CLOCK TOWER
29/04/2024,946626,0,646.8,DREAM COMMUNITY PERSONNEL,8400010500,Homecare Conventional,Adults & Health,CLOCK TOWER
29/04/2024,946627,0,646.8,DREAM COMMUNITY PERSONNEL,8400010500,Homecare Conventional,Adults & Health,NORTHBEXLEY
22/04/2024,946629,0,711.2,DREAM COMMUNITY PERSONNEL,8400010500,Homecare Conventional,Adults & Health,CLOCK TOWER
29/04/2024,946630,0,711.2,DREAM COMMUNITY PERSONNEL,8400010500,Homecare Conventional,Adults & Health,CLOCK TOWER
29/04/2024,946631,0,978.83,DREAM COMMUNITY PERSONNEL,8400010500,Homecare Conventional,Adults & Health,NORTHBEXLEY
15/04/2024,946632,0,1024.29,DREAM COMMUNITY PERSONNEL,8400010500,Homecare Conventional,Adults & Health,NORTHBEXLEY
22/04/2024,946633,0,1038.48,DREAM COMMUNITY PERSONNEL,8400010500,Homecare Conventional,Adults & Health,NORTHBEXLEY
29/04/2024,946635,0,1048.8,DRUGLINK LTD,8400489300,Residential- Short T,Adults & Health,FROGNAL
29/04/2024,946636,0,2550,Drumconner Homes (Bournemouth) Ltd,8400488300,NurPlcmts-ProvPayOP,Adults & Health,BOROUGHWIDE
29/04/2024,946637,0,2550,Drumconner Homes (Bournemouth) Ltd,8400488300,Nursing,Adults & Health,FROGNAL
29/04/2024,946651,0,1520.28,DUNKIRK MEMORIAL HOUSE,8400003400,Residential,Adults & Health,CLOCK TOWER
29/04/2024,946652,0,3040.56,DUNKIRK MEMORIAL HOUSE,8400003400,Residential,Adults & Health,CLOCK TOWER
29/04/2024,946682,0,1872.54,EDGE HILL CARE HOME,8400023700,Residential,Adults & Health,NORTHBEXLEY
29/04/2024,946683,0,3745.08,EDGE HILL CARE HOME,8400023700,Residential,Adults & Health,NORTHBEXLEY
04/04/2024,946684,0,875,EDGE TRAINING & CONSULTANCY LTD,6719500,Staff Development and Training,Adults & Health,BOROUGHWIDE
29/04/2024,946688,0,514.34,ELEANOR LIVING SKILLS LIMITED,8400005800,Daycare,Adults & Health,CLOCK TOWER
29/04/2024,946689,0,514.34,ELEANOR LIVING SKILLS LIMITED,8400005800,Daycare,Adults & Health,CLOCK TOWER
29/04/2024,946690,0,514.34,ELEANOR LIVING SKILLS LIMITED,8400005800,Daycare,Adults & Health,CLOCK TOWER
29/04/2024,946691,0,514.34,ELEANOR LIVING SKILLS LIMITED,8400005800,Daycare,Adults & Health,CLOCK TOWER
29/04/2024,946692,0,514.34,ELEANOR LIVING SKILLS LIMITED,8400005800,Daycare,Adults & Health,CLOCK TOWER
29/04/2024,946693,0,514.34,ELEANOR LIVING SKILLS LIMITED,8400005800,Daycare,Adults & Health,CLOCK TOWER
29/04/2024,946694,0,514.34,ELEANOR LIVING SKILLS LIMITED,8400005800,Daycare,Adults & Health,CLOCK TOWER
29/04/2024,946695,0,514.34,ELEANOR LIVING SKILLS LIMITED,8400005800,Daycare,Adults & Health,CLOCK TOWER
29/04/2024,946696,0,514.34,ELEANOR LIVING SKILLS LIMITED,8400005800,Daycare,Adults & Health,CLOCK TOWER
29/04/2024,946697,0,553.9,ELEANOR LIVING SKILLS LIMITED,8400005800,Daycare,Adults & Health,FROGNAL
29/04/2024,946698,0,553.9,ELEANOR LIVING SKILLS LIMITED,8400005800,Daycare,Adults & Health,FROGNAL
29/04/2024,946699,0,553.9,ELEANOR LIVING SKILLS LIMITED,8400005800,Daycare,Adults & Health,FROGNAL
29/04/2024,946700,0,553.9,ELEANOR LIVING SKILLS LIMITED,8400005800,Daycare,Adults & Health,FROGNAL
29/04/2024,946701,0,553.9,ELEANOR LIVING SKILLS LIMITED,8400005800,Daycare,Adults & Health,CLOCK TOWER
29/04/2024,946702,0,553.9,ELEANOR LIVING SKILLS LIMITED,8400005800,Daycare,Adults & Health,CLOCK TOWER
29/04/2024,946703,0,553.9,ELEANOR LIVING SKILLS LIMITED,8400005800,Daycare,Adults & Health,CLOCK TOWER
29/04/2024,946704,0,553.9,ELEANOR LIVING SKILLS LIMITED,8400005800,Daycare,Adults & Health,NORTHBEXLEY
29/04/2024,946705,0,553.9,ELEANOR LIVING SKILLS LIMITED,8400005800,Daycare,Adults & Health,NORTHBEXLEY
29/04/2024,946706,0,553.9,ELEANOR LIVING SKILLS LIMITED,8400005800,Daycare,Adults & Health,NORTHBEXLEY
29/04/2024,946707,0,553.9,ELEANOR LIVING SKILLS LIMITED,8400005800,Daycare,Adults & Health,NORTHBEXLEY
29/04/2024,946708,0,553.9,ELEANOR LIVING SKILLS LIMITED,8400005800,Daycare,Adults & Health,NORTHBEXLEY
29/04/2024,946709,0,553.9,ELEANOR LIVING SKILLS LIMITED,8400005800,Daycare,Adults & Health,NORTHBEXLEY
29/04/2024,946710,0,553.9,ELEANOR LIVING SKILLS LIMITED,8400005800,Daycare,Adults & Health,NORTHBEXLEY
29/04/2024,946711,0,553.9,ELEANOR LIVING SKILLS LIMITED,8400005800,Daycare,Adults & Health,NORTHBEXLEY
29/04/2024,946712,0,553.9,ELEANOR LIVING SKILLS LIMITED,8400005800,Daycare,Adults & Health,NORTHBEXLEY
29/04/2024,946713,0,553.9,ELEANOR LIVING SKILLS LIMITED,8400005800,Daycare,Adults & Health,NORTHBEXLEY
29/04/2024,946714,0,553.9,ELEANOR LIVING SKILLS LIMITED,8400005800,Daycare,Adults & Health,NORTHBEXLEY
29/04/2024,946715,0,553.9,ELEANOR LIVING SKILLS LIMITED,8400005800,Daycare,Adults & Health,NORTHBEXLEY
29/04/2024,946716,0,553.9,ELEANOR LIVING SKILLS LIMITED,8400005800,Daycare,Adults & Health,NORTHBEXLEY
29/04/2024,946717,0,553.9,ELEANOR LIVING SKILLS LIMITED,8400005800,Daycare,Adults & Health,NORTHBEXLEY
29/04/2024,946718,0,664.68,ELEANOR LIVING SKILLS LIMITED,8400005800,Daycare,Adults & Health,FROGNAL
29/04/2024,946719,0,664.68,ELEANOR LIVING SKILLS LIMITED,8400005800,Daycare,Adults & Health,CLOCK TOWER
29/04/2024,946720,0,664.68,ELEANOR LIVING SKILLS LIMITED,8400005800,Daycare,Adults & Health,CLOCK TOWER
29/04/2024,946721,0,664.68,ELEANOR LIVING SKILLS LIMITED,8400005800,Daycare,Adults & Health,CLOCK TOWER
29/04/2024,946722,0,664.68,ELEANOR LIVING SKILLS LIMITED,8400005800,Daycare,Adults & Health,CLOCK TOWER
29/04/2024,946723,0,664.68,ELEANOR LIVING SKILLS LIMITED,8400005800,Daycare,Adults & Health,CLOCK TOWER
29/04/2024,946724,0,664.68,ELEANOR LIVING SKILLS LIMITED,8400005800,Daycare,Adults & Health,CLOCK TOWER
29/04/2024,946725,0,664.68,ELEANOR LIVING SKILLS LIMITED,8400005800,Daycare,Adults & Health,CLOCK TOWER
29/04/2024,946726,0,664.68,ELEANOR LIVING SKILLS LIMITED,8400005800,Daycare,Adults & Health,NORTHBEXLEY
29/04/2024,946727,0,664.68,ELEANOR LIVING SKILLS LIMITED,8400005800,Daycare,Adults & Health,NORTHBEXLEY
29/04/2024,946728,0,664.68,ELEANOR LIVING SKILLS LIMITED,8400005800,Daycare,Adults & Health,NORTHBEXLEY
29/04/2024,946729,0,664.68,ELEANOR LIVING SKILLS LIMITED,8400005800,Daycare,Adults & Health,NORTHBEXLEY
29/04/2024,946730,0,664.68,ELEANOR LIVING SKILLS LIMITED,8400005800,Daycare,Adults & Health,NORTHBEXLEY
29/04/2024,946731,0,664.68,ELEANOR LIVING SKILLS LIMITED,8400005800,Daycare,Adults & Health,NORTHBEXLEY
29/04/2024,946732,0,664.68,ELEANOR LIVING SKILLS LIMITED,8400005800,Daycare,Adults & Health,NORTHBEXLEY
29/04/2024,946733,0,664.68,ELEANOR LIVING SKILLS LIMITED,8400005800,Daycare,Adults & Health,NORTHBEXLEY
29/04/2024,946734,0,664.68,ELEANOR LIVING SKILLS LIMITED,8400005800,Daycare,Adults & Health,NORTHBEXLEY
29/04/2024,946735,0,664.68,ELEANOR LIVING SKILLS LIMITED,8400005800,Daycare,Adults & Health,NORTHBEXLEY
29/04/2024,946737,0,744,ELEANOR LIVING SKILLS LIMITED,8400005800,Daycare,Adults & Health,NORTHBEXLEY
29/04/2024,946738,0,744,ELEANOR LIVING SKILLS LIMITED,8400005800,Daycare,Adults & Health,NORTHBEXLEY
29/04/2024,946739,0,744,ELEANOR LIVING SKILLS LIMITED,8400005800,Daycare,Adults & Health,NORTHBEXLEY
29/04/2024,946740,0,744,ELEANOR LIVING SKILLS LIMITED,8400005800,Daycare,Adults & Health,CLOCK TOWER
29/04/2024,946741,0,863.57,ELEANOR LIVING SKILLS LIMITED,8400005800,Daycare,Adults & Health,CLOCK TOWER
29/04/2024,946742,0,863.57,ELEANOR LIVING SKILLS LIMITED,8400005800,Daycare,Adults & Health,CLOCK TOWER
29/04/2024,946743,0,886.24,ELEANOR LIVING SKILLS LIMITED,8400005800,Daycare,Adults & Health,CLOCK TOWER
29/04/2024,946744,0,886.24,ELEANOR LIVING SKILLS LIMITED,8400005800,Daycare,Adults & Health,CLOCK TOWER
29/04/2024,946745,0,886.24,ELEANOR LIVING SKILLS LIMITED,8400005800,Daycare,Adults & Health,CLOCK TOWER
29/04/2024,946746,0,886.24,ELEANOR LIVING SKILLS LIMITED,8400005800,Daycare,Adults & Health,NORTHBEXLEY
29/04/2024,946747,0,886.24,ELEANOR LIVING SKILLS LIMITED,8400005800,Daycare,Adults & Health,NORTHBEXLEY
29/04/2024,946748,0,886.24,ELEANOR LIVING SKILLS LIMITED,8400005800,Daycare,Adults & Health,NORTHBEXLEY
29/04/2024,946749,0,886.24,ELEANOR LIVING SKILLS LIMITED,8400005800,Daycare,Adults & Health,NORTHBEXLEY
29/04/2024,946750,0,886.24,ELEANOR LIVING SKILLS LIMITED,8400005800,Daycare,Adults & Health,NORTHBEXLEY
29/04/2024,946752,0,930,ELEANOR LIVING SKILLS LIMITED,8400005800,Daycare,Adults & Health,NORTHBEXLEY
29/04/2024,946753,0,930,ELEANOR LIVING SKILLS LIMITED,8400005800,Daycare,Adults & Health,NORTHBEXLEY
29/04/2024,946754,0,930,ELEANOR LIVING SKILLS LIMITED,8400005800,Daycare,Adults & Health,NORTHBEXLEY
29/04/2024,946755,0,930,ELEANOR LIVING SKILLS LIMITED,8400005800,Daycare,Adults & Health,NORTHBEXLEY
29/04/2024,946756,0,930,ELEANOR LIVING SKILLS LIMITED,8400005800,Daycare,Adults & Health,NORTHBEXLEY
29/04/2024,946757,0,1107.8,ELEANOR LIVING SKILLS LIMITED,8400005800,Daycare,Adults & Health,FROGNAL
29/04/2024,946758,0,1107.8,ELEANOR LIVING SKILLS LIMITED,8400005800,Daycare,Adults & Health,FROGNAL
29/04/2024,946759,0,1107.8,ELEANOR LIVING SKILLS LIMITED,8400005800,Daycare,Adults & Health,FROGNAL
29/04/2024,946760,0,1107.8,ELEANOR LIVING SKILLS LIMITED,8400005800,Daycare,Adults & Health,FROGNAL
29/04/2024,946761,0,1107.8,ELEANOR LIVING SKILLS LIMITED,8400005800,Daycare,Adults & Health,CLOCK TOWER
29/04/2024,946762,0,1107.8,ELEANOR LIVING SKILLS LIMITED,8400005800,Daycare,Adults & Health,CLOCK TOWER
29/04/2024,946763,0,1107.8,ELEANOR LIVING SKILLS LIMITED,8400005800,Daycare,Adults & Health,CLOCK TOWER
29/04/2024,946764,0,1107.8,ELEANOR LIVING SKILLS LIMITED,8400005800,Daycare,Adults & Health,CLOCK TOWER
29/04/2024,946765,0,1107.8,ELEANOR LIVING SKILLS LIMITED,8400005800,Daycare,Adults & Health,CLOCK TOWER
29/04/2024,946766,0,1107.8,ELEANOR LIVING SKILLS LIMITED,8400005800,Daycare,Adults & Health,CLOCK TOWER
29/04/2024,946767,0,1107.8,ELEANOR LIVING SKILLS LIMITED,8400005800,Daycare,Adults & Health,CLOCK TOWER
29/04/2024,946768,0,1107.8,ELEANOR LIVING SKILLS LIMITED,8400005800,Daycare,Adults & Health,CLOCK TOWER
29/04/2024,946769,0,1107.8,ELEANOR LIVING SKILLS LIMITED,8400005800,Daycare,Adults & Health,CLOCK TOWER
29/04/2024,946770,0,1107.8,ELEANOR LIVING SKILLS LIMITED,8400005800,Daycare,Adults & Health,CLOCK TOWER
29/04/2024,946771,0,1107.8,ELEANOR LIVING SKILLS LIMITED,8400005800,Daycare,Adults & Health,CLOCK TOWER
29/04/2024,946772,0,1107.8,ELEANOR LIVING SKILLS LIMITED,8400005800,Daycare,Adults & Health,CLOCK TOWER
29/04/2024,946773,0,1107.8,ELEANOR LIVING SKILLS LIMITED,8400005800,Daycare,Adults & Health,CLOCK TOWER
29/04/2024,946774,0,1107.8,ELEANOR LIVING SKILLS LIMITED,8400005800,Daycare,Adults & Health,NORTHBEXLEY
29/04/2024,946775,0,1107.8,ELEANOR LIVING SKILLS LIMITED,8400005800,Daycare,Adults & Health,NORTHBEXLEY
29/04/2024,946776,0,1107.8,ELEANOR LIVING SKILLS LIMITED,8400005800,Daycare,Adults & Health,NORTHBEXLEY
29/04/2024,946777,0,1107.8,ELEANOR LIVING SKILLS LIMITED,8400005800,Daycare,Adults & Health,NORTHBEXLEY
29/04/2024,946778,0,1107.8,ELEANOR LIVING SKILLS LIMITED,8400005800,Daycare,Adults & Health,NORTHBEXLEY
29/04/2024,946779,0,1107.8,ELEANOR LIVING SKILLS LIMITED,8400005800,Daycare,Adults & Health,NORTHBEXLEY
29/04/2024,946780,0,1107.8,ELEANOR LIVING SKILLS LIMITED,8400005800,Daycare,Adults & Health,NORTHBEXLEY
29/04/2024,946781,0,1107.8,ELEANOR LIVING SKILLS LIMITED,8400005800,Daycare,Adults & Health,NORTHBEXLEY
29/04/2024,946782,0,1107.8,ELEANOR LIVING SKILLS LIMITED,8400005800,Daycare,Adults & Health,NORTHBEXLEY
29/04/2024,946783,0,1107.8,ELEANOR LIVING SKILLS LIMITED,8400005800,Daycare,Adults & Health,NORTHBEXLEY
29/04/2024,946784,0,1107.8,ELEANOR LIVING SKILLS LIMITED,8400005800,Daycare,Adults & Health,NORTHBEXLEY
29/04/2024,946785,0,1107.8,ELEANOR LIVING SKILLS LIMITED,8400005800,Daycare,Adults & Health,NORTHBEXLEY
29/04/2024,946786,0,1107.8,ELEANOR LIVING SKILLS LIMITED,8400005800,Daycare,Adults & Health,NORTHBEXLEY
29/04/2024,946787,0,1107.8,ELEANOR LIVING SKILLS LIMITED,8400005800,Daycare,Adults & Health,NORTHBEXLEY
29/04/2024,946788,0,1488,ELEANOR LIVING SKILLS LIMITED,8400005800,Daycare,Adults & Health,NORTHBEXLEY
29/04/2024,946789,0,1860,ELEANOR LIVING SKILLS LIMITED,8400005800,Daycare,Adults & Health,CLOCK TOWER
29/04/2024,946790,0,1860,ELEANOR LIVING SKILLS LIMITED,8400005800,Daycare,Adults & Health,CLOCK TOWER
29/04/2024,946791,0,1860,ELEANOR LIVING SKILLS LIMITED,8400005800,Daycare,Adults & Health,NORTHBEXLEY
29/04/2024,946792,0,1860,ELEANOR LIVING SKILLS LIMITED,8400005800,Daycare,Adults & Health,NORTHBEXLEY
29/04/2024,946793,0,1860,ELEANOR LIVING SKILLS LIMITED,8400005800,Daycare,Adults & Health,NORTHBEXLEY
29/04/2024,946794,0,1860,ELEANOR LIVING SKILLS LIMITED,8400005800,Daycare,Adults & Health,NORTHBEXLEY
29/04/2024,946795,0,1860,ELEANOR LIVING SKILLS LIMITED,8400005800,Daycare,Adults & Health,NORTHBEXLEY
29/04/2024,946736,0,664.68,ELEANOR LIVING SKILLS LIMITED,8400005800,VOIDS-Day Care LD,Adults & Health,BOROUGHWIDE
29/04/2024,946751,0,886.24,ELEANOR LIVING SKILLS LIMITED,8400005800,VOIDS-Day Care LD,Adults & Health,BOROUGHWIDE
08/04/2024,946796,0,505.5,ELEANOR LIVING SKILLS LTD,8400041500,CommServs-ProvPayWA,Adults & Health,BOROUGHWIDE
08/04/2024,946797,0,505.5,ELEANOR LIVING SKILLS LTD,8400041500,CommServs-ProvPayWA,Adults & Health,BOROUGHWIDE
08/04/2024,946798,0,589.75,ELEANOR LIVING SKILLS LTD,8400041500,CommServs-ProvPayWA,Adults & Health,BOROUGHWIDE
08/04/2024,946799,0,589.75,ELEANOR LIVING SKILLS LTD,8400041500,CommServs-ProvPayWA,Adults & Health,BOROUGHWIDE
08/04/2024,946800,0,589.75,ELEANOR LIVING SKILLS LTD,8400041500,CommServs-ProvPayWA,Adults & Health,BOROUGHWIDE
15/04/2024,946801,0,501.2,ELEANOR NURSING AND SOCIAL CARE,8400002300,CommServs-ProvPayOP,Adults & Health,BOROUGHWIDE
15/04/2024,946802,0,501.2,ELEANOR NURSING AND SOCIAL CARE,8400002300,CommServs-ProvPayOP,Adults & Health,BOROUGHWIDE
15/04/2024,946805,0,501.2,ELEANOR NURSING AND SOCIAL CARE,8400002300,CommServs-ProvPayOP,Adults & Health,BOROUGHWIDE
15/04/2024,946806,0,501.2,ELEANOR NURSING AND SOCIAL CARE,8400002300,CommServs-ProvPayOP,Adults & Health,BOROUGHWIDE
15/04/2024,946814,0,514.42,ELEANOR NURSING AND SOCIAL CARE,8400002300,CommServs-ProvPayOP,Adults & Health,BOROUGHWIDE
15/04/2024,946815,0,519.33,ELEANOR NURSING AND SOCIAL CARE,8400002300,CommServs-ProvPayOP,Adults & Health,BOROUGHWIDE
15/04/2024,946816,0,554.4,ELEANOR NURSING AND SOCIAL CARE,8400002300,CommServs-ProvPayOP,Adults & Health,BOROUGHWIDE
15/04/2024,946817,0,582.4,ELEANOR NURSING AND SOCIAL CARE,8400002300,CommServs-ProvPayOP,Adults & Health,BOROUGHWIDE
15/04/2024,946818,0,582.4,ELEANOR NURSING AND SOCIAL CARE,8400002300,CommServs-ProvPayOP,Adults & Health,BOROUGHWIDE
15/04/2024,946819,0,582.4,ELEANOR NURSING AND SOCIAL CARE,8400002300,CommServs-ProvPayOP,Adults & Health,BOROUGHWIDE
15/04/2024,946820,0,582.4,ELEANOR NURSING AND SOCIAL CARE,8400002300,CommServs-ProvPayOP,Adults & Health,BOROUGHWIDE
15/04/2024,946825,0,583.24,ELEANOR NURSING AND SOCIAL CARE,8400002300,CommServs-ProvPayOP,Adults & Health,BOROUGHWIDE
15/04/2024,946826,0,583.24,ELEANOR NURSING AND SOCIAL CARE,8400002300,CommServs-ProvPayOP,Adults & Health,BOROUGHWIDE
15/04/2024,946829,0,646.8,ELEANOR NURSING AND SOCIAL CARE,8400002300,CommServs-ProvPayOP,Adults & Health,BOROUGHWIDE
15/04/2024,946830,0,646.8,ELEANOR NURSING AND SOCIAL CARE,8400002300,CommServs-ProvPayOP,Adults & Health,BOROUGHWIDE
15/04/2024,946831,0,646.8,ELEANOR NURSING AND SOCIAL CARE,8400002300,CommServs-ProvPayOP,Adults & Health,BOROUGHWIDE
15/04/2024,946832,0,646.8,ELEANOR NURSING AND SOCIAL CARE,8400002300,CommServs-ProvPayOP,Adults & Health,BOROUGHWIDE
15/04/2024,946833,0,646.8,ELEANOR NURSING AND SOCIAL CARE,8400002300,CommServs-ProvPayOP,Adults & Health,BOROUGHWIDE
15/04/2024,946834,0,646.8,ELEANOR NURSING AND SOCIAL CARE,8400002300,CommServs-ProvPayOP,Adults & Health,BOROUGHWIDE
15/04/2024,946835,0,646.8,ELEANOR NURSING AND SOCIAL CARE,8400002300,CommServs-ProvPayOP,Adults & Health,BOROUGHWIDE
15/04/2024,946842,0,776.16,ELEANOR NURSING AND SOCIAL CARE,8400002300,CommServs-ProvPayOP,Adults & Health,BOROUGHWIDE
15/04/2024,946843,0,776.16,ELEANOR NURSING AND SOCIAL CARE,8400002300,CommServs-ProvPayOP,Adults & Health,BOROUGHWIDE
15/04/2024,946849,0,1485.42,ELEANOR NURSING AND SOCIAL CARE,8400002300,CommServs-ProvPayOP,Adults & Health,BOROUGHWIDE
15/04/2024,946803,0,501.2,ELEANOR NURSING AND SOCIAL CARE,8400002300,CommServs-ProvPayWA,Adults & Health,BOROUGHWIDE
15/04/2024,946804,0,501.2,ELEANOR NURSING AND SOCIAL CARE,8400002300,CommServs-ProvPayWA,Adults & Health,BOROUGHWIDE
15/04/2024,946847,0,1462.04,ELEANOR NURSING AND SOCIAL CARE,8400002300,CommServs-ProvPayWA,Adults & Health,BOROUGHWIDE
29/04/2024,946837,0,646.8,ELEANOR NURSING AND SOCIAL CARE,8400002300,Discharge to Assess- Non Chrg,Adults & Health,NORTHBEXLEY
29/04/2024,946840,0,646.8,ELEANOR NURSING AND SOCIAL CARE,8400002300,Discharge to Assess- Non Chrg,Adults & Health,NORTHBEXLEY
29/04/2024,946807,0,501.2,ELEANOR NURSING AND SOCIAL CARE,8400002300,Homecare Conventional,Adults & Health,FROGNAL
29/04/2024,946808,0,501.2,ELEANOR NURSING AND SOCIAL CARE,8400002300,Homecare Conventional,Adults & Health,NORTHBEXLEY
29/04/2024,946809,0,501.2,ELEANOR NURSING AND SOCIAL CARE,8400002300,Homecare Conventional,Adults & Health,NORTHBEXLEY
29/04/2024,946810,0,501.2,ELEANOR NURSING AND SOCIAL CARE,8400002300,Homecare Conventional,Adults & Health,FROGNAL
29/04/2024,946811,0,501.2,ELEANOR NURSING AND SOCIAL CARE,8400002300,Homecare Conventional,Adults & Health,NORTHBEXLEY
29/04/2024,946812,0,501.2,ELEANOR NURSING AND SOCIAL CARE,8400002300,Homecare Conventional,Adults & Health,NORTHBEXLEY
29/04/2024,946813,0,504.91,ELEANOR NURSING AND SOCIAL CARE,8400002300,Homecare Conventional,Adults & Health,CLOCK TOWER
29/04/2024,946821,0,582.4,ELEANOR NURSING AND SOCIAL CARE,8400002300,Homecare Conventional,Adults & Health,CLOCK TOWER
29/04/2024,946822,0,582.4,ELEANOR NURSING AND SOCIAL CARE,8400002300,Homecare Conventional,Adults & Health,NORTHBEXLEY
29/04/2024,946823,0,582.4,ELEANOR NURSING AND SOCIAL CARE,8400002300,Homecare Conventional,Adults & Health,CLOCK TOWER
29/04/2024,946824,0,582.4,ELEANOR NURSING AND SOCIAL CARE,8400002300,Homecare Conventional,Adults & Health,NORTHBEXLEY
29/04/2024,946827,0,583.24,ELEANOR NURSING AND SOCIAL CARE,8400002300,Homecare Conventional,Adults & Health,NORTHBEXLEY
29/04/2024,946828,0,583.24,ELEANOR NURSING AND SOCIAL CARE,8400002300,Homecare Conventional,Adults & Health,NORTHBEXLEY
29/04/2024,946836,0,646.8,ELEANOR NURSING AND SOCIAL CARE,8400002300,Homecare Conventional,Adults & Health,FROGNAL
29/04/2024,946838,0,646.8,ELEANOR NURSING AND SOCIAL CARE,8400002300,Homecare Conventional,Adults & Health,NORTHBEXLEY
29/04/2024,946839,0,646.8,ELEANOR NURSING AND SOCIAL CARE,8400002300,Homecare Conventional,Adults & Health,FROGNAL
29/04/2024,946841,0,646.8,ELEANOR NURSING AND SOCIAL CARE,8400002300,Homecare Conventional,Adults & Health,NORTHBEXLEY
29/04/2024,946844,0,776.16,ELEANOR NURSING AND SOCIAL CARE,8400002300,Homecare Conventional,Adults & Health,CLOCK TOWER
29/04/2024,946845,0,776.16,ELEANOR NURSING AND SOCIAL CARE,8400002300,Homecare Conventional,Adults & Health,CLOCK TOWER
29/04/2024,946846,0,1409.89,ELEANOR NURSING AND SOCIAL CARE,8400002300,Homecare Conventional,Adults & Health,NORTHBEXLEY
29/04/2024,946848,0,1467.38,ELEANOR NURSING AND SOCIAL CARE,8400002300,Homecare Conventional,Adults & Health,NORTHBEXLEY
08/04/2024,946850,0,46000,ELEANOR NURSING AND SOCIAL CARE,8400002300,Reablement VC,Adults & Health,NORTHBEXLEY
29/04/2024,946864,0,2060,ELMWOOD LODGE,8400018800,Residential,Adults & Health,FROGNAL
29/04/2024,946866,0,2320.28,ELMWOOD LODGE,8400018800,Residential,Adults & Health,FROGNAL
29/04/2024,946868,0,2531.62,ELMWOOD LODGE,8400018800,Residential,Adults & Health,NORTHBEXLEY
29/04/2024,946870,0,2650.28,ELMWOOD LODGE,8400018800,Residential,Adults & Health,FROGNAL
29/04/2024,946863,0,2060,ELMWOOD LODGE,8400018800,ResPlcmts-ProvPayOP,Adults & Health,BOROUGHWIDE
29/04/2024,946865,0,2320.28,ELMWOOD LODGE,8400018800,ResPlcmts-ProvPayOP,Adults & Health,BOROUGHWIDE
29/04/2024,946869,0,2650.28,ELMWOOD LODGE,8400018800,ResPlcmts-ProvPayOP,Adults & Health,BOROUGHWIDE
29/04/2024,946867,0,2531.62,ELMWOOD LODGE,8400018800,ResPlcmts-ProvPayWA,Adults & Health,BOROUGHWIDE
29/04/2024,946873,0,3985.26,ELYSIUM CARE LTD,8400033000,Residential,Adults & Health,NORTHBEXLEY
29/04/2024,946874,0,4459.5,ELYSIUM CARE LTD,8400033000,Residential,Adults & Health,FROGNAL
29/04/2024,946875,0,7970.52,ELYSIUM CARE LTD,8400033000,Residential,Adults & Health,NORTHBEXLEY
29/04/2024,946876,0,8919,ELYSIUM CARE LTD,8400033000,Residential,Adults & Health,FROGNAL
29/04/2024,946879,0,5176.56,Redacted Personal Data,8400046800,Residential,Adults & Health,NORTHBEXLEY
29/04/2024,946880,0,5176.56,Redacted Personal Data,8400046800,ResPlcmts-ProvPayWA,Adults & Health,BOROUGHWIDE
29/04/2024,946923,0,524.7,ESSENTIAL SOCIAL CARE,8400032100,Supported Living,Adults & Health,NORTHBEXLEY
29/04/2024,946924,0,1049.4,ESSENTIAL SOCIAL CARE,8400032100,Supported Living,Adults & Health,NORTHBEXLEY
29/04/2024,946925,0,1049.4,ESSENTIAL SOCIAL CARE,8400032100,Supported Living,Adults & Health,CLOCK TOWER
29/04/2024,946926,0,1408.14,ESSENTIAL SOCIAL CARE,8400032100,Supported Living,Adults & Health,NORTHBEXLEY
29/04/2024,946927,0,1714.07,ESSENTIAL SOCIAL CARE,8400032100,Supported Living,Adults & Health,CLOCK TOWER
29/04/2024,946928,0,1927.21,ESSENTIAL SOCIAL CARE,8400032100,Supported Living,Adults & Health,CLOCK TOWER
29/04/2024,946929,0,2028.98,ESSENTIAL SOCIAL CARE,8400032100,Supported Living,Adults & Health,FROGNAL
29/04/2024,946930,0,2065.2,ESSENTIAL SOCIAL CARE,8400032100,Supported Living,Adults & Health,FROGNAL
29/04/2024,946931,0,2065.2,ESSENTIAL SOCIAL CARE,8400032100,Supported Living,Adults & Health,NORTHBEXLEY
29/04/2024,946932,0,2065.2,ESSENTIAL SOCIAL CARE,8400032100,Supported Living,Adults & Health,NORTHBEXLEY
29/04/2024,946933,0,2105.5,ESSENTIAL SOCIAL CARE,8400032100,Supported Living,Adults & Health,NORTHBEXLEY
29/04/2024,946934,0,2204.84,ESSENTIAL SOCIAL CARE,8400032100,Supported Living,Adults & Health,NORTHBEXLEY
29/04/2024,946935,0,2217.22,ESSENTIAL SOCIAL CARE,8400032100,Supported Living,Adults & Health,NORTHBEXLEY
29/04/2024,946936,0,2311.18,ESSENTIAL SOCIAL CARE,8400032100,Supported Living,Adults & Health,CLOCK TOWER
29/04/2024,946937,0,2558.82,ESSENTIAL SOCIAL CARE,8400032100,Supported Living,Adults & Health,NORTHBEXLEY
29/04/2024,946938,0,2609.34,ESSENTIAL SOCIAL CARE,8400032100,Supported Living,Adults & Health,CLOCK TOWER
29/04/2024,946939,0,2636.26,ESSENTIAL SOCIAL CARE,8400032100,Supported Living,Adults & Health,NORTHBEXLEY
29/04/2024,946940,0,2816.28,ESSENTIAL SOCIAL CARE,8400032100,Supported Living,Adults & Health,NORTHBEXLEY
29/04/2024,946941,0,2971.3,ESSENTIAL SOCIAL CARE,8400032100,Supported Living,Adults & Health,CLOCK TOWER
29/04/2024,946942,0,3691.84,ESSENTIAL SOCIAL CARE,8400032100,Supported Living,Adults & Health,CLOCK TOWER
29/04/2024,946943,0,4057.96,ESSENTIAL SOCIAL CARE,8400032100,Supported Living,Adults & Health,FROGNAL
29/04/2024,946944,0,4130.4,ESSENTIAL SOCIAL CARE,8400032100,Supported Living,Adults & Health,NORTHBEXLEY
29/04/2024,946945,0,4130.4,ESSENTIAL SOCIAL CARE,8400032100,Supported Living,Adults & Health,FROGNAL
29/04/2024,946946,0,4130.4,ESSENTIAL SOCIAL CARE,8400032100,Supported Living,Adults & Health,NORTHBEXLEY
29/04/2024,946947,0,4150.92,ESSENTIAL SOCIAL CARE,8400032100,Supported Living,Adults & Health,CLOCK TOWER
29/04/2024,946948,0,4211,ESSENTIAL SOCIAL CARE,8400032100,Supported Living,Adults & Health,NORTHBEXLEY
29/04/2024,946949,0,4409.68,ESSENTIAL SOCIAL CARE,8400032100,Supported Living,Adults & Health,NORTHBEXLEY
29/04/2024,946950,0,4434.44,ESSENTIAL SOCIAL CARE,8400032100,Supported Living,Adults & Health,NORTHBEXLEY
29/04/2024,946951,0,4622.36,ESSENTIAL SOCIAL CARE,8400032100,Supported Living,Adults & Health,CLOCK TOWER
29/04/2024,946952,0,5117.64,ESSENTIAL SOCIAL CARE,8400032100,Supported Living,Adults & Health,NORTHBEXLEY
29/04/2024,946953,0,5272.52,ESSENTIAL SOCIAL CARE,8400032100,Supported Living,Adults & Health,NORTHBEXLEY
29/04/2024,946954,0,5620.12,ESSENTIAL SOCIAL CARE,8400032100,Supported Living,Adults & Health,CLOCK TOWER
29/04/2024,946955,0,6399.72,ESSENTIAL SOCIAL CARE,8400032100,Supported Living,Adults & Health,CLOCK TOWER
08/04/2024,946967,0,626,ETERNAL CARE,8400038900,CommServs-ProvPayOP,Adults & Health,BOROUGHWIDE
08/04/2024,946971,0,646.8,ETERNAL CARE,8400038900,CommServs-ProvPayOP,Adults & Health,BOROUGHWIDE
08/04/2024,946972,0,646.8,ETERNAL CARE,8400038900,CommServs-ProvPayOP,Adults & Health,BOROUGHWIDE
08/04/2024,946979,0,775.6,ETERNAL CARE,8400038900,CommServs-ProvPayOP,Adults & Health,BOROUGHWIDE
08/04/2024,946983,0,790.32,ETERNAL CARE,8400038900,CommServs-ProvPayOP,Adults & Health,BOROUGHWIDE
08/04/2024,946987,0,832.44,ETERNAL CARE,8400038900,CommServs-ProvPayOP,Adults & Health,BOROUGHWIDE
22/04/2024,946965,0,501.2,ETERNAL CARE,8400038900,Homecare Conventional,Adults & Health,FROGNAL
29/04/2024,946966,0,501.2,ETERNAL CARE,8400038900,Homecare Conventional,Adults & Health,FROGNAL
15/04/2024,946968,0,626,ETERNAL CARE,8400038900,Homecare Conventional,Adults & Health,CLOCK TOWER
22/04/2024,946969,0,626,ETERNAL CARE,8400038900,Homecare Conventional,Adults & Health,CLOCK TOWER
29/04/2024,946970,0,626,ETERNAL CARE,8400038900,Homecare Conventional,Adults & Health,CLOCK TOWER
15/04/2024,946973,0,646.8,ETERNAL CARE,8400038900,Homecare Conventional,Adults & Health,FROGNAL
15/04/2024,946974,0,646.8,ETERNAL CARE,8400038900,Homecare Conventional,Adults & Health,FROGNAL
22/04/2024,946975,0,646.8,ETERNAL CARE,8400038900,Homecare Conventional,Adults & Health,FROGNAL
22/04/2024,946976,0,646.8,ETERNAL CARE,8400038900,Homecare Conventional,Adults & Health,FROGNAL
29/04/2024,946977,0,646.8,ETERNAL CARE,8400038900,Homecare Conventional,Adults & Health,FROGNAL
29/04/2024,946978,0,646.8,ETERNAL CARE,8400038900,Homecare Conventional,Adults & Health,FROGNAL
15/04/2024,946980,0,775.6,ETERNAL CARE,8400038900,Homecare Conventional,Adults & Health,FROGNAL
22/04/2024,946981,0,775.6,ETERNAL CARE,8400038900,Homecare Conventional,Adults & Health,FROGNAL
29/04/2024,946982,0,775.6,ETERNAL CARE,8400038900,Homecare Conventional,Adults & Health,FROGNAL
15/04/2024,946984,0,790.32,ETERNAL CARE,8400038900,Homecare Conventional,Adults & Health,CLOCK TOWER
22/04/2024,946985,0,790.32,ETERNAL CARE,8400038900,Homecare Conventional,Adults & Health,CLOCK TOWER
29/04/2024,946986,0,790.32,ETERNAL CARE,8400038900,Homecare Conventional,Adults & Health,CLOCK TOWER
15/04/2024,946988,0,832.44,ETERNAL CARE,8400038900,Homecare Conventional,Adults & Health,FROGNAL
22/04/2024,946989,0,832.44,ETERNAL CARE,8400038900,Homecare Conventional,Adults & Health,FROGNAL
29/04/2024,946990,0,832.44,ETERNAL CARE,8400038900,Homecare Conventional,Adults & Health,FROGNAL
08/04/2024,946995,0,646.8,EVERLASTING ARMS CARE LTD,8400013500,CommServs-ProvPayOP,Adults & Health,BOROUGHWIDE
08/04/2024,946996,0,646.8,EVERLASTING ARMS CARE LTD,8400013500,CommServs-ProvPayOP,Adults & Health,BOROUGHWIDE
15/04/2024,946997,0,646.8,EVERLASTING ARMS CARE LTD,8400013500,CommServs-ProvPayOP,Adults & Health,BOROUGHWIDE
15/04/2024,946998,0,646.8,EVERLASTING ARMS CARE LTD,8400013500,CommServs-ProvPayOP,Adults & Health,BOROUGHWIDE
08/04/2024,947008,0,656.08,EVERLASTING ARMS CARE LTD,8400013500,CommServs-ProvPayOP,Adults & Health,BOROUGHWIDE
15/04/2024,947009,0,656.08,EVERLASTING ARMS CARE LTD,8400013500,CommServs-ProvPayOP,Adults & Health,BOROUGHWIDE
08/04/2024,947014,0,711.76,EVERLASTING ARMS CARE LTD,8400013500,CommServs-ProvPayOP,Adults & Health,BOROUGHWIDE
15/04/2024,947015,0,711.76,EVERLASTING ARMS CARE LTD,8400013500,CommServs-ProvPayOP,Adults & Health,BOROUGHWIDE
08/04/2024,947021,0,802.8,EVERLASTING ARMS CARE LTD,8400013500,CommServs-ProvPayOP,Adults & Health,BOROUGHWIDE
15/04/2024,947022,0,814.77,EVERLASTING ARMS CARE LTD,8400013500,CommServs-ProvPayOP,Adults & Health,BOROUGHWIDE
08/04/2024,947024,0,840,EVERLASTING ARMS CARE LTD,8400013500,CommServs-ProvPayOP,Adults & Health,BOROUGHWIDE
15/04/2024,947025,0,840,EVERLASTING ARMS CARE LTD,8400013500,CommServs-ProvPayOP,Adults & Health,BOROUGHWIDE
08/04/2024,947029,0,904.96,EVERLASTING ARMS CARE LTD,8400013500,CommServs-ProvPayOP,Adults & Health,BOROUGHWIDE
15/04/2024,947030,0,904.96,EVERLASTING ARMS CARE LTD,8400013500,CommServs-ProvPayOP,Adults & Health,BOROUGHWIDE
29/04/2024,946994,0,637.12,EVERLASTING ARMS CARE LTD,8400013500,Homecare Conventional,Adults & Health,FROGNAL
29/04/2024,946999,0,646.8,EVERLASTING ARMS CARE LTD,8400013500,Homecare Conventional,Adults & Health,NORTHBEXLEY
29/04/2024,947000,0,646.8,EVERLASTING ARMS CARE LTD,8400013500,Homecare Conventional,Adults & Health,FROGNAL
29/04/2024,947001,0,646.8,EVERLASTING ARMS CARE LTD,8400013500,Homecare Conventional,Adults & Health,NORTHBEXLEY
29/04/2024,947002,0,646.8,EVERLASTING ARMS CARE LTD,8400013500,Homecare Conventional,Adults & Health,CLOCK TOWER
29/04/2024,947003,0,646.8,EVERLASTING ARMS CARE LTD,8400013500,Homecare Conventional,Adults & Health,NORTHBEXLEY
29/04/2024,947004,0,646.8,EVERLASTING ARMS CARE LTD,8400013500,Homecare Conventional,Adults & Health,NORTHBEXLEY
29/04/2024,947005,0,646.8,EVERLASTING ARMS CARE LTD,8400013500,Homecare Conventional,Adults & Health,NORTHBEXLEY
29/04/2024,947006,0,646.8,EVERLASTING ARMS CARE LTD,8400013500,Homecare Conventional,Adults & Health,CLOCK TOWER
29/04/2024,947007,0,646.8,EVERLASTING ARMS CARE LTD,8400013500,Homecare Conventional,Adults & Health,FROGNAL
29/04/2024,947010,0,656.08,EVERLASTING ARMS CARE LTD,8400013500,Homecare Conventional,Adults & Health,NORTHBEXLEY
29/04/2024,947011,0,656.08,EVERLASTING ARMS CARE LTD,8400013500,Homecare Conventional,Adults & Health,NORTHBEXLEY
29/04/2024,947012,0,656.08,EVERLASTING ARMS CARE LTD,8400013500,Homecare Conventional,Adults & Health,NORTHBEXLEY
29/04/2024,947013,0,656.08,EVERLASTING ARMS CARE LTD,8400013500,Homecare Conventional,Adults & Health,NORTHBEXLEY
29/04/2024,947016,0,711.76,EVERLASTING ARMS CARE LTD,8400013500,Homecare Conventional,Adults & Health,NORTHBEXLEY
29/04/2024,947017,0,711.76,EVERLASTING ARMS CARE LTD,8400013500,Homecare Conventional,Adults & Health,NORTHBEXLEY
29/04/2024,947018,0,711.76,EVERLASTING ARMS CARE LTD,8400013500,Homecare Conventional,Adults & Health,NORTHBEXLEY
29/04/2024,947019,0,761.69,EVERLASTING ARMS CARE LTD,8400013500,Homecare Conventional,Adults & Health,NORTHBEXLEY
29/04/2024,947020,0,788.05,EVERLASTING ARMS CARE LTD,8400013500,Homecare Conventional,Adults & Health,NORTHBEXLEY
29/04/2024,947023,0,828.76,EVERLASTING ARMS CARE LTD,8400013500,Homecare Conventional,Adults & Health,NORTHBEXLEY
29/04/2024,947026,0,840,EVERLASTING ARMS CARE LTD,8400013500,Homecare Conventional,Adults & Health,NORTHBEXLEY
29/04/2024,947027,0,840,EVERLASTING ARMS CARE LTD,8400013500,Homecare Conventional,Adults & Health,NORTHBEXLEY
29/04/2024,947028,0,840,EVERLASTING ARMS CARE LTD,8400013500,Homecare Conventional,Adults & Health,NORTHBEXLEY
29/04/2024,947031,0,904.96,EVERLASTING ARMS CARE LTD,8400013500,Homecare Conventional,Adults & Health,FROGNAL
29/04/2024,947046,0,2698.86,Redacted Personal Data,8400025900,Residential,Adults & Health,CLOCK TOWER
29/04/2024,947047,0,5397.72,Redacted Personal Data,8400025900,Residential,Adults & Health,CLOCK TOWER
04/04/2024,947056,0,4120,FAMILY MATTERS ,5942300,PEI Grants - Fam Matts PrvStrt,Adults & Health,BOROUGHWIDE
29/04/2024,947085,0,4700,FOREST LODGE CARE HOME,8400485400,Residential,Adults & Health,FROGNAL
29/04/2024,947087,0,4910,FOREST LODGE CARE HOME,8400485400,Residential,Adults & Health,FROGNAL
29/04/2024,947084,0,4700,FOREST LODGE CARE HOME,8400485400,ResPlcmts-ProvPayOP,Adults & Health,BOROUGHWIDE
29/04/2024,947086,0,4910,FOREST LODGE CARE HOME,8400485400,ResPlcmts-ProvPayWA,Adults & Health,BOROUGHWIDE
29/04/2024,947115,0,3800,FRINDSBURY HOME (MORTIMOR SOCIETY),8400018700,Nursing,Adults & Health,NORTHBEXLEY
29/04/2024,947119,0,7600,FRINDSBURY HOME (MORTIMOR SOCIETY),8400018700,Nursing,Adults & Health,NORTHBEXLEY
29/04/2024,947113,0,2483.82,FRINDSBURY HOME (MORTIMOR SOCIETY),8400018700,Residential,Adults & Health,NORTHBEXLEY
29/04/2024,947114,0,3058.22,FRINDSBURY HOME (MORTIMOR SOCIETY),8400018700,Residential,Adults & Health,NORTHBEXLEY
29/04/2024,947116,0,4967.64,FRINDSBURY HOME (MORTIMOR SOCIETY),8400018700,Residential,Adults & Health,NORTHBEXLEY
29/04/2024,947117,0,5065.66,FRINDSBURY HOME (MORTIMOR SOCIETY),8400018700,Residential,Adults & Health,NORTHBEXLEY
29/04/2024,947118,0,6116.44,FRINDSBURY HOME (MORTIMOR SOCIETY),8400018700,Residential,Adults & Health,NORTHBEXLEY
29/04/2024,947120,0,10131.32,FRINDSBURY HOME (MORTIMOR SOCIETY),8400018700,Residential,Adults & Health,NORTHBEXLEY
29/04/2024,947138,0,3724,Frognal House Care Home,8400485700,NurPlcmts-ProvPayOP,Adults & Health,BOROUGHWIDE
29/04/2024,947139,0,3724,Frognal House Care Home,8400485700,Nursing,Adults & Health,FROGNAL
29/04/2024,947126,0,1479.02,Frognal House Care Home,8400485700,Residential,Adults & Health,FROGNAL
29/04/2024,947127,0,3112.4,Frognal House Care Home,8400485700,Residential,Adults & Health,NORTHBEXLEY
29/04/2024,947132,0,3112.4,Frognal House Care Home,8400485700,Residential,Adults & Health,FROGNAL
29/04/2024,947133,0,3112.4,Frognal House Care Home,8400485700,Residential,Adults & Health,NORTHBEXLEY
29/04/2024,947134,0,3112.4,Frognal House Care Home,8400485700,Residential,Adults & Health,NORTHBEXLEY
29/04/2024,947136,0,3245.9,Frognal House Care Home,8400485700,Residential,Adults & Health,FROGNAL
29/04/2024,947137,0,3640,Frognal House Care Home,8400485700,Residential,Adults & Health,FROGNAL
29/04/2024,947141,0,3822,Frognal House Care Home,8400485700,Residential,Adults & Health,NORTHBEXLEY
29/04/2024,947122,0,885,Frognal House Care Home,8400485700,Respite Planned,Adults & Health,FROGNAL
29/04/2024,947123,0,1180,Frognal House Care Home,8400485700,Respite Planned,Adults & Health,FROGNAL
29/04/2024,947124,0,1215,Frognal House Care Home,8400485700,Respite Planned,Adults & Health,NORTHBEXLEY
29/04/2024,947121,0,560.5,Frognal House Care Home,8400485700,ResPlcmts-ProvPayOP,Adults & Health,BOROUGHWIDE
29/04/2024,947125,0,1479.02,Frognal House Care Home,8400485700,ResPlcmts-ProvPayOP,Adults & Health,BOROUGHWIDE
29/04/2024,947128,0,3112.4,Frognal House Care Home,8400485700,ResPlcmts-ProvPayOP,Adults & Health,BOROUGHWIDE
29/04/2024,947129,0,3112.4,Frognal House Care Home,8400485700,ResPlcmts-ProvPayOP,Adults & Health,BOROUGHWIDE
29/04/2024,947130,0,3112.4,Frognal House Care Home,8400485700,ResPlcmts-ProvPayOP,Adults & Health,BOROUGHWIDE
29/04/2024,947131,0,3112.4,Frognal House Care Home,8400485700,ResPlcmts-ProvPayOP,Adults & Health,BOROUGHWIDE
29/04/2024,947135,0,3245.9,Frognal House Care Home,8400485700,ResPlcmts-ProvPayOP,Adults & Health,BOROUGHWIDE
29/04/2024,947140,0,3822,Frognal House Care Home,8400485700,ResPlcmts-ProvPayOP,Adults & Health,BOROUGHWIDE
29/04/2024,947150,0,1249.61,Redacted Personal Data,8300097200,ISF Payments,Adults & Health,CLOCK TOWER
29/04/2024,947151,0,2499.22,Redacted Personal Data,8300097200,ISF Payments,Adults & Health,CLOCK TOWER
29/04/2024,947152,0,2499.22,Redacted Personal Data,8300097200,ISF Payments,Adults & Health,CLOCK TOWER
29/04/2024,947153,0,4998.44,Redacted Personal Data,8300097200,ISF Payments,Adults & Health,CLOCK TOWER
04/04/2024,947158,0,2800,GATENBY SANDERSON LIMITED,6307700,Salaries Gross,Adults & Health,BOROUGHWIDE
08/04/2024,947159,0,4200,GATENBY SANDERSON LIMITED,6307700,Salaries Gross,Adults & Health,BOROUGHWIDE
29/04/2024,947169,0,745.74,Redacted Personal Data,8300115000,ISF Payments,Adults & Health,NORTHBEXLEY
29/04/2024,947170,0,1491.48,Redacted Personal Data,8300115000,ISF Payments,Adults & Health,NORTHBEXLEY
29/04/2024,947171,0,3355.8,GIDEON SUPPORTED HOUSING LIMITED,8400488600,CommServs-ProvPayWA,Adults & Health,BOROUGHWIDE
29/04/2024,947172,0,3355.8,GIDEON SUPPORTED HOUSING LIMITED,8400488600,Supported Living,Adults & Health,NORTHBEXLEY
29/04/2024,947201,0,2226,GLEBE COURT CARE HOME,8400025400,Residential,Adults & Health,FROGNAL
29/04/2024,947200,0,2226,GLEBE COURT CARE HOME,8400025400,ResPlcmts-ProvPayOP,Adults & Health,BOROUGHWIDE
22/04/2024,947205,0,750,Redacted Personal Data,10157900,Agency Staff,Adults & Health,BOROUGHWIDE
29/04/2024,947226,0,1514.29,GOLD CARE HOMES T/A MARLBOROUGH COURT,8400487900,ASC Interim Beds,Adults & Health,BOROUGHWIDE
29/04/2024,947211,0,635.05,GOLD CARE HOMES T/A MARLBOROUGH COURT,8400487900,CRAG income - Res Em Respite,Adults & Health,BOROUGHWIDE
29/04/2024,947209,0,605.71,GOLD CARE HOMES T/A MARLBOROUGH COURT,8400487900,Discharge to Assess-InterimBed,Adults & Health,NORTHBEXLEY
29/04/2024,947210,0,605.71,GOLD CARE HOMES T/A MARLBOROUGH COURT,8400487900,Discharge to Assess-InterimBed,Adults & Health,NORTHBEXLEY
29/04/2024,947212,0,1060,GOLD CARE HOMES T/A MARLBOROUGH COURT,8400487900,Discharge to Assess-InterimBed,Adults & Health,FROGNAL
29/04/2024,947214,0,1211.43,GOLD CARE HOMES T/A MARLBOROUGH COURT,8400487900,Discharge to Assess-InterimBed,Adults & Health,FROGNAL
29/04/2024,947227,0,1514.29,GOLD CARE HOMES T/A MARLBOROUGH COURT,8400487900,Discharge to Assess-InterimBed,Adults & Health,FROGNAL
29/04/2024,947247,0,1665.71,GOLD CARE HOMES T/A MARLBOROUGH COURT,8400487900,Discharge to Assess-InterimBed,Adults & Health,FROGNAL
29/04/2024,947250,0,2120,GOLD CARE HOMES T/A MARLBOROUGH COURT,8400487900,Discharge to Assess-InterimBed,Adults & Health,FROGNAL
29/04/2024,947251,0,2120,GOLD CARE HOMES T/A MARLBOROUGH COURT,8400487900,Discharge to Assess-InterimBed,Adults & Health,FROGNAL
29/04/2024,947252,0,2120,GOLD CARE HOMES T/A MARLBOROUGH COURT,8400487900,Discharge to Assess-InterimBed,Adults & Health,FROGNAL
29/04/2024,947253,0,2120,GOLD CARE HOMES T/A MARLBOROUGH COURT,8400487900,Discharge to Assess-InterimBed,Adults & Health,CLOCK TOWER
29/04/2024,947254,0,2120,GOLD CARE HOMES T/A MARLBOROUGH COURT,8400487900,Discharge to Assess-InterimBed,Adults & Health,CLOCK TOWER
29/04/2024,947255,0,2120,GOLD CARE HOMES T/A MARLBOROUGH COURT,8400487900,Discharge to Assess-InterimBed,Adults & Health,NORTHBEXLEY
29/04/2024,947256,0,2120,GOLD CARE HOMES T/A MARLBOROUGH COURT,8400487900,Discharge to Assess-InterimBed,Adults & Health,NORTHBEXLEY
29/04/2024,947257,0,2120,GOLD CARE HOMES T/A MARLBOROUGH COURT,8400487900,Discharge to Assess-InterimBed,Adults & Health,NORTHBEXLEY
29/04/2024,947258,0,2120,GOLD CARE HOMES T/A MARLBOROUGH COURT,8400487900,Discharge to Assess-InterimBed,Adults & Health,NORTHBEXLEY
29/04/2024,947259,0,2120,GOLD CARE HOMES T/A MARLBOROUGH COURT,8400487900,Discharge to Assess-InterimBed,Adults & Health,NORTHBEXLEY
29/04/2024,947260,0,2120,GOLD CARE HOMES T/A MARLBOROUGH COURT,8400487900,Discharge to Assess-InterimBed,Adults & Health,NORTHBEXLEY
29/04/2024,947291,0,3785.71,GOLD CARE HOMES T/A MARLBOROUGH COURT,8400487900,Discharge to Assess-InterimBed,Adults & Health,NORTHBEXLEY
29/04/2024,947292,0,4240,GOLD CARE HOMES T/A MARLBOROUGH COURT,8400487900,Discharge to Assess-InterimBed,Adults & Health,FROGNAL
29/04/2024,947293,0,4240,GOLD CARE HOMES T/A MARLBOROUGH COURT,8400487900,Discharge to Assess-InterimBed,Adults & Health,FROGNAL
29/04/2024,947294,0,4240,GOLD CARE HOMES T/A MARLBOROUGH COURT,8400487900,Discharge to Assess-InterimBed,Adults & Health,FROGNAL
29/04/2024,947295,0,4240,GOLD CARE HOMES T/A MARLBOROUGH COURT,8400487900,Discharge to Assess-InterimBed,Adults & Health,CLOCK TOWER
29/04/2024,947296,0,4240,GOLD CARE HOMES T/A MARLBOROUGH COURT,8400487900,Discharge to Assess-InterimBed,Adults & Health,CLOCK TOWER
29/04/2024,947297,0,4240,GOLD CARE HOMES T/A MARLBOROUGH COURT,8400487900,Discharge to Assess-InterimBed,Adults & Health,NORTHBEXLEY
29/04/2024,947298,0,4240,GOLD CARE HOMES T/A MARLBOROUGH COURT,8400487900,Discharge to Assess-InterimBed,Adults & Health,NORTHBEXLEY
29/04/2024,947299,0,4240,GOLD CARE HOMES T/A MARLBOROUGH COURT,8400487900,Discharge to Assess-InterimBed,Adults & Health,NORTHBEXLEY
29/04/2024,947300,0,4240,GOLD CARE HOMES T/A MARLBOROUGH COURT,8400487900,Discharge to Assess-InterimBed,Adults & Health,NORTHBEXLEY
29/04/2024,947301,0,4240,GOLD CARE HOMES T/A MARLBOROUGH COURT,8400487900,Discharge to Assess-InterimBed,Adults & Health,NORTHBEXLEY
29/04/2024,947302,0,4240,GOLD CARE HOMES T/A MARLBOROUGH COURT,8400487900,Discharge to Assess-InterimBed,Adults & Health,NORTHBEXLEY
29/04/2024,947208,0,526.5,GOLD CARE HOMES T/A MARLBOROUGH COURT,8400487900,NurPlcmts-ProvPayOP,Adults & Health,BOROUGHWIDE
29/04/2024,947215,0,1474.2,GOLD CARE HOMES T/A MARLBOROUGH COURT,8400487900,Nursing,Adults & Health,FROGNAL
29/04/2024,947216,0,1474.2,GOLD CARE HOMES T/A MARLBOROUGH COURT,8400487900,Nursing,Adults & Health,FROGNAL
29/04/2024,947217,0,1474.2,GOLD CARE HOMES T/A MARLBOROUGH COURT,8400487900,Nursing,Adults & Health,FROGNAL
29/04/2024,947218,0,1474.2,GOLD CARE HOMES T/A MARLBOROUGH COURT,8400487900,Nursing,Adults & Health,FROGNAL
29/04/2024,947219,0,1474.2,GOLD CARE HOMES T/A MARLBOROUGH COURT,8400487900,Nursing,Adults & Health,NORTHBEXLEY
29/04/2024,947220,0,1474.2,GOLD CARE HOMES T/A MARLBOROUGH COURT,8400487900,Nursing,Adults & Health,NORTHBEXLEY
29/04/2024,947221,0,1474.2,GOLD CARE HOMES T/A MARLBOROUGH COURT,8400487900,Nursing,Adults & Health,NORTHBEXLEY
29/04/2024,947223,0,1474.2,GOLD CARE HOMES T/A MARLBOROUGH COURT,8400487900,Nursing,Adults & Health,NORTHBEXLEY
29/04/2024,947224,0,1474.2,GOLD CARE HOMES T/A MARLBOROUGH COURT,8400487900,Nursing,Adults & Health,NORTHBEXLEY
29/04/2024,947225,0,1474.2,GOLD CARE HOMES T/A MARLBOROUGH COURT,8400487900,Nursing,Adults & Health,NORTHBEXLEY
29/04/2024,947232,0,1619.36,GOLD CARE HOMES T/A MARLBOROUGH COURT,8400487900,Nursing,Adults & Health,FROGNAL
29/04/2024,947248,0,1783.84,GOLD CARE HOMES T/A MARLBOROUGH COURT,8400487900,Nursing,Adults & Health,FROGNAL
29/04/2024,947261,0,2948.4,GOLD CARE HOMES T/A MARLBOROUGH COURT,8400487900,Nursing,Adults & Health,FROGNAL
29/04/2024,947262,0,2948.4,GOLD CARE HOMES T/A MARLBOROUGH COURT,8400487900,Nursing,Adults & Health,FROGNAL
29/04/2024,947263,0,2948.4,GOLD CARE HOMES T/A MARLBOROUGH COURT,8400487900,Nursing,Adults & Health,FROGNAL
29/04/2024,947264,0,2948.4,GOLD CARE HOMES T/A MARLBOROUGH COURT,8400487900,Nursing,Adults & Health,FROGNAL
29/04/2024,947265,0,2948.4,GOLD CARE HOMES T/A MARLBOROUGH COURT,8400487900,Nursing,Adults & Health,NORTHBEXLEY
29/04/2024,947266,0,2948.4,GOLD CARE HOMES T/A MARLBOROUGH COURT,8400487900,Nursing,Adults & Health,NORTHBEXLEY
29/04/2024,947267,0,2948.4,GOLD CARE HOMES T/A MARLBOROUGH COURT,8400487900,Nursing,Adults & Health,NORTHBEXLEY
29/04/2024,947269,0,2948.4,GOLD CARE HOMES T/A MARLBOROUGH COURT,8400487900,Nursing,Adults & Health,NORTHBEXLEY
29/04/2024,947270,0,2948.4,GOLD CARE HOMES T/A MARLBOROUGH COURT,8400487900,Nursing,Adults & Health,NORTHBEXLEY
29/04/2024,947271,0,2948.4,GOLD CARE HOMES T/A MARLBOROUGH COURT,8400487900,Nursing,Adults & Health,NORTHBEXLEY
29/04/2024,947276,0,3238.72,GOLD CARE HOMES T/A MARLBOROUGH COURT,8400487900,Nursing,Adults & Health,FROGNAL
29/04/2024,947290,0,3567.68,GOLD CARE HOMES T/A MARLBOROUGH COURT,8400487900,Nursing,Adults & Health,FROGNAL
29/04/2024,947222,0,1474.2,GOLD CARE HOMES T/A MARLBOROUGH COURT,8400487900,Residential,Adults & Health,NORTHBEXLEY
29/04/2024,947228,0,1538.38,GOLD CARE HOMES T/A MARLBOROUGH COURT,8400487900,Residential,Adults & Health,NORTHBEXLEY
29/04/2024,947230,0,1619.36,GOLD CARE HOMES T/A MARLBOROUGH COURT,8400487900,Residential,Adults & Health,FROGNAL
29/04/2024,947231,0,1619.36,GOLD CARE HOMES T/A MARLBOROUGH COURT,8400487900,Residential,Adults & Health,FROGNAL
29/04/2024,947233,0,1619.36,GOLD CARE HOMES T/A MARLBOROUGH COURT,8400487900,Residential,Adults & Health,CLOCK TOWER
29/04/2024,947234,0,1619.36,GOLD CARE HOMES T/A MARLBOROUGH COURT,8400487900,Residential,Adults & Health,CLOCK TOWER
29/04/2024,947235,0,1619.36,GOLD CARE HOMES T/A MARLBOROUGH COURT,8400487900,Residential,Adults & Health,CLOCK TOWER
29/04/2024,947236,0,1619.36,GOLD CARE HOMES T/A MARLBOROUGH COURT,8400487900,Residential,Adults & Health,CLOCK TOWER
29/04/2024,947237,0,1619.36,GOLD CARE HOMES T/A MARLBOROUGH COURT,8400487900,Residential,Adults & Health,CLOCK TOWER
29/04/2024,947238,0,1619.36,GOLD CARE HOMES T/A MARLBOROUGH COURT,8400487900,Residential,Adults & Health,NORTHBEXLEY
29/04/2024,947239,0,1619.36,GOLD CARE HOMES T/A MARLBOROUGH COURT,8400487900,Residential,Adults & Health,NORTHBEXLEY
29/04/2024,947240,0,1619.36,GOLD CARE HOMES T/A MARLBOROUGH COURT,8400487900,Residential,Adults & Health,NORTHBEXLEY
29/04/2024,947241,0,1619.36,GOLD CARE HOMES T/A MARLBOROUGH COURT,8400487900,Residential,Adults & Health,NORTHBEXLEY
29/04/2024,947242,0,1619.36,GOLD CARE HOMES T/A MARLBOROUGH COURT,8400487900,Residential,Adults & Health,NORTHBEXLEY
29/04/2024,947243,0,1619.36,GOLD CARE HOMES T/A MARLBOROUGH COURT,8400487900,Residential,Adults & Health,NORTHBEXLEY
29/04/2024,947244,0,1619.36,GOLD CARE HOMES T/A MARLBOROUGH COURT,8400487900,Residential,Adults & Health,NORTHBEXLEY
29/04/2024,947245,0,1619.36,GOLD CARE HOMES T/A MARLBOROUGH COURT,8400487900,Residential,Adults & Health,NORTHBEXLEY
29/04/2024,947246,0,1619.36,GOLD CARE HOMES T/A MARLBOROUGH COURT,8400487900,Residential,Adults & Health,NORTHBEXLEY
29/04/2024,947249,0,1868.03,GOLD CARE HOMES T/A MARLBOROUGH COURT,8400487900,Residential,Adults & Health,NORTHBEXLEY
29/04/2024,947268,0,2948.4,GOLD CARE HOMES T/A MARLBOROUGH COURT,8400487900,Residential,Adults & Health,NORTHBEXLEY
29/04/2024,947273,0,3238.72,GOLD CARE HOMES T/A MARLBOROUGH COURT,8400487900,Residential,Adults & Health,FROGNAL
29/04/2024,947274,0,3238.72,GOLD CARE HOMES T/A MARLBOROUGH COURT,8400487900,Residential,Adults & Health,FROGNAL
29/04/2024,947275,0,3238.72,GOLD CARE HOMES T/A MARLBOROUGH COURT,8400487900,Residential,Adults & Health,CLOCK TOWER
29/04/2024,947277,0,3238.72,GOLD CARE HOMES T/A MARLBOROUGH COURT,8400487900,Residential,Adults & Health,CLOCK TOWER
29/04/2024,947278,0,3238.72,GOLD CARE HOMES T/A MARLBOROUGH COURT,8400487900,Residential,Adults & Health,CLOCK TOWER
29/04/2024,947279,0,3238.72,GOLD CARE HOMES T/A MARLBOROUGH COURT,8400487900,Residential,Adults & Health,CLOCK TOWER
29/04/2024,947280,0,3238.72,GOLD CARE HOMES T/A MARLBOROUGH COURT,8400487900,Residential,Adults & Health,CLOCK TOWER
29/04/2024,947281,0,3238.72,GOLD CARE HOMES T/A MARLBOROUGH COURT,8400487900,Residential,Adults & Health,NORTHBEXLEY
29/04/2024,947282,0,3238.72,GOLD CARE HOMES T/A MARLBOROUGH COURT,8400487900,Residential,Adults & Health,NORTHBEXLEY
29/04/2024,947283,0,3238.72,GOLD CARE HOMES T/A MARLBOROUGH COURT,8400487900,Residential,Adults & Health,NORTHBEXLEY
29/04/2024,947284,0,3238.72,GOLD CARE HOMES T/A MARLBOROUGH COURT,8400487900,Residential,Adults & Health,NORTHBEXLEY
29/04/2024,947285,0,3238.72,GOLD CARE HOMES T/A MARLBOROUGH COURT,8400487900,Residential,Adults & Health,NORTHBEXLEY
29/04/2024,947286,0,3238.72,GOLD CARE HOMES T/A MARLBOROUGH COURT,8400487900,Residential,Adults & Health,NORTHBEXLEY
29/04/2024,947287,0,3238.72,GOLD CARE HOMES T/A MARLBOROUGH COURT,8400487900,Residential,Adults & Health,NORTHBEXLEY
29/04/2024,947288,0,3238.72,GOLD CARE HOMES T/A MARLBOROUGH COURT,8400487900,Residential,Adults & Health,NORTHBEXLEY
29/04/2024,947289,0,3238.72,GOLD CARE HOMES T/A MARLBOROUGH COURT,8400487900,Residential,Adults & Health,NORTHBEXLEY
29/04/2024,947213,0,1208.73,GOLD CARE HOMES T/A MARLBOROUGH COURT,8400487900,ResPlcmts-ProvPayOP,Adults & Health,BOROUGHWIDE
29/04/2024,947229,0,1538.38,GOLD CARE HOMES T/A MARLBOROUGH COURT,8400487900,ResPlcmts-ProvPayOP,Adults & Health,BOROUGHWIDE
29/04/2024,947272,0,3076.76,GOLD CARE HOMES T/A MARLBOROUGH COURT,8400487900,ResPlcmts-ProvPayOP,Adults & Health,BOROUGHWIDE
29/04/2024,947303,0,12114.29,GOLD CARE HOMES T/A MARLBOROUGH COURT,8400487900,VOIDS-Interim Beds,Adults & Health,BOROUGHWIDE
15/04/2024,947305,0,13950.16,GPDQ LIMITED,10141600,Public Health Payments,Adults & Health,Health & Wellbeing
29/04/2024,947308,0,921.8,Redacted Personal Data,8300085300,ISF Payments,Adults & Health,NORTHBEXLEY
29/04/2024,947309,0,1843.6,Redacted Personal Data,8300085300,ISF Payments,Adults & Health,NORTHBEXLEY
29/04/2024,947319,0,1764.34,GRAVESEND INDEPENDENT LIVING SERVICES,8400481300,Residential,Adults & Health,NORTHBEXLEY
29/04/2024,947320,0,1764.34,GRAVESEND INDEPENDENT LIVING SERVICES,8400481300,Residential,Adults & Health,FROGNAL
29/04/2024,947322,0,3400,GRAVESEND INDEPENDENT LIVING SERVICES,8400481300,Residential,Adults & Health,CLOCK TOWER
29/04/2024,947318,0,1764.34,GRAVESEND INDEPENDENT LIVING SERVICES,8400481300,ResPlcmts-ProvPayOP,Adults & Health,BOROUGHWIDE
29/04/2024,947317,0,1764.34,GRAVESEND INDEPENDENT LIVING SERVICES,8400481300,ResPlcmts-ProvPayWA,Adults & Health,BOROUGHWIDE
29/04/2024,947321,0,3400,GRAVESEND INDEPENDENT LIVING SERVICES,8400481300,ResPlcmts-ProvPayWA,Adults & Health,BOROUGHWIDE
29/04/2024,947324,0,1058.02,GRAYWOOD RESIDENTIAL HOME,8400029900,Residential,Adults & Health,NORTHBEXLEY
29/04/2024,947325,0,2116.04,GRAYWOOD RESIDENTIAL HOME,8400029900,Residential,Adults & Health,NORTHBEXLEY
29/04/2024,947332,0,745.74,Redacted Personal Data,8300112300,ISF Payments,Adults & Health,CLOCK TOWER
29/04/2024,947333,0,1491.48,Redacted Personal Data,8300112300,ISF Payments,Adults & Health,CLOCK TOWER
29/04/2024,947335,0,1371.96,GREENBANKS HERITAGE (HOMECARE),8400486400,Supported Living,Adults & Health,CLOCK TOWER
29/04/2024,947336,0,1612.5,GREENBANKS HERITAGE (HOMECARE),8400486400,Supported Living,Adults & Health,NORTHBEXLEY
29/04/2024,947337,0,1699.5,GREENBANKS HERITAGE (HOMECARE),8400486400,Supported Living,Adults & Health,NORTHBEXLEY
29/04/2024,947338,0,1820.5,GREENBANKS HERITAGE (HOMECARE),8400486400,Supported Living,Adults & Health,NORTHBEXLEY
29/04/2024,947339,0,1840,GREENBANKS HERITAGE (HOMECARE),8400486400,Supported Living,Adults & Health,NORTHBEXLEY
29/04/2024,947340,0,2299.92,GREENBANKS HERITAGE (HOMECARE),8400486400,Supported Living,Adults & Health,NORTHBEXLEY
29/04/2024,947341,0,2594.44,GREENBANKS HERITAGE (HOMECARE),8400486400,Supported Living,Adults & Health,NORTHBEXLEY
29/04/2024,947342,0,2602.5,GREENBANKS HERITAGE (HOMECARE),8400486400,Supported Living,Adults & Health,NORTHBEXLEY
29/04/2024,947343,0,2955,GREENBANKS HERITAGE (HOMECARE),8400486400,Supported Living,Adults & Health,CLOCK TOWER
29/04/2024,947344,0,3225,GREENBANKS HERITAGE (HOMECARE),8400486400,Supported Living,Adults & Health,NORTHBEXLEY
29/04/2024,947345,0,3399,GREENBANKS HERITAGE (HOMECARE),8400486400,Supported Living,Adults & Health,NORTHBEXLEY
29/04/2024,947346,0,3641,GREENBANKS HERITAGE (HOMECARE),8400486400,Supported Living,Adults & Health,NORTHBEXLEY
29/04/2024,947347,0,3680,GREENBANKS HERITAGE (HOMECARE),8400486400,Supported Living,Adults & Health,NORTHBEXLEY
29/04/2024,947348,0,4599.84,GREENBANKS HERITAGE (HOMECARE),8400486400,Supported Living,Adults & Health,NORTHBEXLEY
29/04/2024,947349,0,5188.88,GREENBANKS HERITAGE (HOMECARE),8400486400,Supported Living,Adults & Health,NORTHBEXLEY
29/04/2024,947350,0,5205,GREENBANKS HERITAGE (HOMECARE),8400486400,Supported Living,Adults & Health,NORTHBEXLEY
29/04/2024,947358,0,973.96,Redacted Personal Data,8400020800,Supported Accommodation,Adults & Health,CLOCK TOWER
29/04/2024,947359,0,973.96,Redacted Personal Data,8400020800,Supported Accommodation,Adults & Health,CLOCK TOWER
29/04/2024,947378,0,1547.54,GROVELAND PARK CARE HOME,8400015300,Residential,Adults & Health,CLOCK TOWER
29/04/2024,947379,0,1856.06,GROVELAND PARK CARE HOME,8400015300,Residential,Adults & Health,NORTHBEXLEY
29/04/2024,947380,0,1856.06,GROVELAND PARK CARE HOME,8400015300,Residential,Adults & Health,NORTHBEXLEY
29/04/2024,947381,0,2466,GROVELAND PARK CARE HOME,8400015300,Residential,Adults & Health,CLOCK TOWER
29/04/2024,947382,0,2466,GROVELAND PARK CARE HOME,8400015300,Residential,Adults & Health,NORTHBEXLEY
29/04/2024,947383,0,2466,GROVELAND PARK CARE HOME,8400015300,Residential,Adults & Health,NORTHBEXLEY
29/04/2024,947384,0,3095.08,GROVELAND PARK CARE HOME,8400015300,Residential,Adults & Health,CLOCK TOWER
29/04/2024,947385,0,3520,GROVELAND PARK CARE HOME,8400015300,Residential,Adults & Health,NORTHBEXLEY
29/04/2024,947386,0,3712.12,GROVELAND PARK CARE HOME,8400015300,Residential,Adults & Health,NORTHBEXLEY
29/04/2024,947387,0,3712.12,GROVELAND PARK CARE HOME,8400015300,Residential,Adults & Health,NORTHBEXLEY
29/04/2024,947388,0,4932,GROVELAND PARK CARE HOME,8400015300,Residential,Adults & Health,NORTHBEXLEY
29/04/2024,947389,0,4932,GROVELAND PARK CARE HOME,8400015300,Residential,Adults & Health,CLOCK TOWER
29/04/2024,947390,0,4932,GROVELAND PARK CARE HOME,8400015300,Residential,Adults & Health,NORTHBEXLEY
29/04/2024,947391,0,7040,GROVELAND PARK CARE HOME,8400015300,Residential,Adults & Health,NORTHBEXLEY
29/04/2024,947394,0,596.32,Redacted Personal Data,8400003200,Supported Accommodation,Adults & Health,NORTHBEXLEY
29/04/2024,947395,0,1192.64,Redacted Personal Data,8400003200,Supported Accommodation,Adults & Health,NORTHBEXLEY
29/04/2024,947396,0,796.32,Redacted Personal Data,8400034000,Supported Accommodation,Adults & Health,NORTHBEXLEY
29/04/2024,947397,0,1592.64,Redacted Personal Data,8400034000,Supported Accommodation,Adults & Health,NORTHBEXLEY
29/04/2024,947414,0,1855.92,HARBOUR CARE GROUP,8400014600,CommServs-ProvPayWA,Adults & Health,BOROUGHWIDE
29/04/2024,947415,0,1855.92,HARBOUR CARE GROUP,8400014600,Supported Living,Adults & Health,NORTHBEXLEY
29/04/2024,947417,0,637.8,Redacted Personal Data,8300103600,ISF Payments,Adults & Health,CLOCK TOWER
29/04/2024,947418,0,1373.72,Redacted Personal Data,8300103600,ISF Payments,Adults & Health,CLOCK TOWER
11/04/2024,947419,0,5468,HARTWIG CARE LIMITED,10216700,Other ASC Payments,Adults & Health,BOROUGHWIDE
08/04/2024,947420,0,150000,HARTWIG CARE LTD,8400480700,Homecare VC,Adults & Health,CLOCK TOWER
29/04/2024,947433,0,2800,HAZELWOOD CARE HOME,8400485200,NurPlcmts-ProvPayOP,Adults & Health,BOROUGHWIDE
29/04/2024,947434,0,2800,HAZELWOOD CARE HOME,8400485200,Nursing,Adults & Health,NORTHBEXLEY
29/04/2024,947435,0,2117.62,HD2 CARE SUPPORT SERVICES,8400002000,Supported Living,Adults & Health,NORTHBEXLEY
29/04/2024,947436,0,2692.72,HD2 CARE SUPPORT SERVICES,8400002000,Supported Living,Adults & Health,NORTHBEXLEY
29/04/2024,947437,0,3146,HD2 CARE SUPPORT SERVICES,8400002000,Supported Living,Adults & Health,NORTHBEXLEY
29/04/2024,947438,0,3211.24,HD2 CARE SUPPORT SERVICES,8400002000,Supported Living,Adults & Health,NORTHBEXLEY
29/04/2024,947439,0,3365.46,HD2 CARE SUPPORT SERVICES,8400002000,Supported Living,Adults & Health,NORTHBEXLEY
29/04/2024,947440,0,3604,HD2 CARE SUPPORT SERVICES,8400002000,Supported Living,Adults & Health,NORTHBEXLEY
29/04/2024,947441,0,3690.28,HD2 CARE SUPPORT SERVICES,8400002000,Supported Living,Adults & Health,NORTHBEXLEY
29/04/2024,947442,0,3829.94,HD2 CARE SUPPORT SERVICES,8400002000,Supported Living,Adults & Health,NORTHBEXLEY
29/04/2024,947443,0,4235.24,HD2 CARE SUPPORT SERVICES,8400002000,Supported Living,Adults & Health,NORTHBEXLEY
29/04/2024,947444,0,5385.44,HD2 CARE SUPPORT SERVICES,8400002000,Supported Living,Adults & Health,NORTHBEXLEY
29/04/2024,947445,0,6292,HD2 CARE SUPPORT SERVICES,8400002000,Supported Living,Adults & Health,NORTHBEXLEY
29/04/2024,947446,0,6422.48,HD2 CARE SUPPORT SERVICES,8400002000,Supported Living,Adults & Health,NORTHBEXLEY
29/04/2024,947447,0,6730.92,HD2 CARE SUPPORT SERVICES,8400002000,Supported Living,Adults & Health,NORTHBEXLEY
29/04/2024,947448,0,7208,HD2 CARE SUPPORT SERVICES,8400002000,Supported Living,Adults & Health,NORTHBEXLEY
29/04/2024,947449,0,7380.56,HD2 CARE SUPPORT SERVICES,8400002000,Supported Living,Adults & Health,NORTHBEXLEY
29/04/2024,947450,0,7659.88,HD2 CARE SUPPORT SERVICES,8400002000,Supported Living,Adults & Health,NORTHBEXLEY
04/04/2024,947452,0,10300,HEADWAY SEL/NWK,3056100,PEI Grants - Headway,Adults & Health,BOROUGHWIDE
25/04/2024,947453,0,3582.25,HEALTH DIAGNOSTICS LIMITED,10100500,Public Health Payments,Adults & Health,Health & Wellbeing
18/04/2024,947461,0,601.1,HEATHER BROADHURST,9999999800,Adults Linkline Service Fee,Adults & Health,BOROUGHWIDE
29/04/2024,947462,0,4906.14,HEATHERLEY,8400008600,Residential,Adults & Health,NORTHBEXLEY
29/04/2024,947463,0,9812.28,HEATHERLEY,8400008600,Residential,Adults & Health,NORTHBEXLEY
29/04/2024,947464,0,504.03,HEATHFIELD COURT,8400026200,Nursing,Adults & Health,CLOCK TOWER
29/04/2024,947468,0,3124.58,HEATHFIELD COURT,8400026200,Nursing,Adults & Health,NORTHBEXLEY
29/04/2024,947470,0,3528.24,HEATHFIELD COURT,8400026200,Nursing,Adults & Health,CLOCK TOWER
29/04/2024,947473,0,6249.16,HEATHFIELD COURT,8400026200,Nursing,Adults & Health,NORTHBEXLEY
29/04/2024,947474,0,7056.48,HEATHFIELD COURT,8400026200,Nursing,Adults & Health,CLOCK TOWER
29/04/2024,947465,0,1590.38,HEATHFIELD COURT,8400026200,Residential,Adults & Health,NORTHBEXLEY
29/04/2024,947466,0,3000,HEATHFIELD COURT,8400026200,Residential,Adults & Health,NORTHBEXLEY
29/04/2024,947467,0,3100,HEATHFIELD COURT,8400026200,Residential,Adults & Health,NORTHBEXLEY
29/04/2024,947469,0,3180.76,HEATHFIELD COURT,8400026200,Residential,Adults & Health,NORTHBEXLEY
29/04/2024,947471,0,6000,HEATHFIELD COURT,8400026200,Residential,Adults & Health,NORTHBEXLEY
29/04/2024,947472,0,6200,HEATHFIELD COURT,8400026200,Residential,Adults & Health,NORTHBEXLEY
29/04/2024,947477,0,2164.74,HEMMET HOUSE,8400039400,Residential,Adults & Health,FROGNAL
29/04/2024,947478,0,4329.48,HEMMET HOUSE,8400039400,Residential,Adults & Health,FROGNAL
29/04/2024,947480,0,2675.24,Redacted Personal Data,8400481000,Residential,Adults & Health,NORTHBEXLEY
29/04/2024,947479,0,2675.24,Redacted Personal Data,8400481000,ResPlcmts-ProvPayOP,Adults & Health,BOROUGHWIDE
16/04/2024,947481,0,4800,HENRY,10060600,Public Health Payments,Adults & Health,Health & Wellbeing
29/04/2024,947484,0,1763.2,HERONDALE,8400013800,Residential,Adults & Health,NORTHBEXLEY
29/04/2024,947486,0,1802.56,HERONDALE,8400013800,Residential,Adults & Health,NORTHBEXLEY
29/04/2024,947483,0,1763.2,HERONDALE,8400013800,ResPlcmts-ProvPayWA,Adults & Health,BOROUGHWIDE
29/04/2024,947485,0,1802.56,HERONDALE,8400013800,ResPlcmts-ProvPayWA,Adults & Health,BOROUGHWIDE
29/04/2024,947488,0,1433.54,HIGHFIELD CH,8400484200,NurPlcmts-ProvPayOP,Adults & Health,BOROUGHWIDE
29/04/2024,947489,0,1433.54,HIGHFIELD CH,8400484200,Nursing,Adults & Health,NORTHBEXLEY
15/04/2024,947491,0,1622.02,Redacted Personal Data,8300119500,ISF Payments,Adults & Health,CLOCK TOWER
15/04/2024,947492,0,2061.44,Redacted Personal Data,8300119500,ISF Payments,Adults & Health,CLOCK TOWER
15/04/2024,947493,0,2061.44,Redacted Personal Data,8300119500,ISF Payments,Adults & Health,CLOCK TOWER
15/04/2024,947494,0,2061.44,Redacted Personal Data,8300119500,ISF Payments,Adults & Health,CLOCK TOWER
15/04/2024,947495,0,3012.32,Redacted Personal Data,8300119500,ISF Payments,Adults & Health,CLOCK TOWER
15/04/2024,947496,0,3244.04,Redacted Personal Data,8300119500,ISF Payments,Adults & Health,CLOCK TOWER
15/04/2024,947497,0,3244.04,Redacted Personal Data,8300119500,ISF Payments,Adults & Health,CLOCK TOWER
15/04/2024,947498,0,4122.88,Redacted Personal Data,8300119500,ISF Payments,Adults & Health,CLOCK TOWER
29/04/2024,947499,0,4122.88,Redacted Personal Data,8300119500,ISF Payments,Adults & Health,CLOCK TOWER
15/04/2024,947509,0,854.48,HOLISTIC COMMUNITY CARE LTD,8400032200,CommServs-ProvPayOP,Adults & Health,BOROUGHWIDE
15/04/2024,947506,0,674.4,HOLISTIC COMMUNITY CARE LTD,8400032200,CommServs-ProvPayWA,Adults & Health,BOROUGHWIDE
22/04/2024,947505,0,667.62,HOLISTIC COMMUNITY CARE LTD,8400032200,Homecare Conventional,Adults & Health,NORTHBEXLEY
15/04/2024,947507,0,697.64,HOLISTIC COMMUNITY CARE LTD,8400032200,Homecare Conventional,Adults & Health,NORTHBEXLEY
15/04/2024,947508,0,834.84,HOLISTIC COMMUNITY CARE LTD,8400032200,Homecare Conventional,Adults & Health,NORTHBEXLEY
22/04/2024,947510,0,854.48,HOLISTIC COMMUNITY CARE LTD,8400032200,Homecare Conventional,Adults & Health,NORTHBEXLEY
29/04/2024,947511,0,3672.12,HOLKHAM HOUSE,8400010300,Residential,Adults & Health,NORTHBEXLEY
29/04/2024,947512,0,7344.24,HOLKHAM HOUSE,8400010300,Residential,Adults & Health,NORTHBEXLEY
29/04/2024,947515,0,2437.06,HOLLY COTTAGE,8400034400,Residential,Adults & Health,NORTHBEXLEY
29/04/2024,947516,0,4874.12,HOLLY COTTAGE,8400034400,Residential,Adults & Health,NORTHBEXLEY
29/04/2024,947524,0,14131.98,HOME FROM HOME CARE LIMITED,8400482200,Residential,Adults & Health,NORTHBEXLEY
29/04/2024,947525,0,14131.98,HOME FROM HOME CARE LIMITED,8400482200,ResPlcmts-ProvPayWA,Adults & Health,BOROUGHWIDE
29/04/2024,947537,0,1102.72,HOUSE OF SHAN,8400038100,Residential,Adults & Health,FROGNAL
29/04/2024,947538,0,1102.72,HOUSE OF SHAN,8400038100,ResPlcmts-ProvPayOP,Adults & Health,BOROUGHWIDE
29/04/2024,947547,0,967.52,Redacted Personal Data,8300097000,ISF Payments,Adults & Health,CLOCK TOWER
29/04/2024,947548,0,1935.04,Redacted Personal Data,8300097000,ISF Payments,Adults & Health,CLOCK TOWER
29/04/2024,947549,0,1935.04,Redacted Personal Data,8300097000,ISF Payments,Adults & Health,CLOCK TOWER
29/04/2024,947550,0,3870.08,Redacted Personal Data,8300097000,ISF Payments,Adults & Health,CLOCK TOWER
18/04/2024,947551,0,15750,IESE INNOVATION LTD,10164000,Other ASC Payments,Adults & Health,BOROUGHWIDE
15/04/2024,947570,0,624.52,IMPACT PROJECT SOLUTIONS LTD,8400045900,CommServs-ProvPayOP,Adults & Health,BOROUGHWIDE
15/04/2024,947571,0,624.52,IMPACT PROJECT SOLUTIONS LTD,8400045900,CommServs-ProvPayOP,Adults & Health,BOROUGHWIDE
15/04/2024,947572,0,646.8,IMPACT PROJECT SOLUTIONS LTD,8400045900,CommServs-ProvPayOP,Adults & Health,BOROUGHWIDE
15/04/2024,947573,0,646.8,IMPACT PROJECT SOLUTIONS LTD,8400045900,CommServs-ProvPayOP,Adults & Health,BOROUGHWIDE
15/04/2024,947576,0,1432.75,IMPACT PROJECT SOLUTIONS LTD,8400045900,CommServs-ProvPayOP,Adults & Health,BOROUGHWIDE
15/04/2024,947574,0,1099.84,IMPACT PROJECT SOLUTIONS LTD,8400045900,CommServs-ProvPayWA,Adults & Health,BOROUGHWIDE
15/04/2024,947575,0,1099.84,IMPACT PROJECT SOLUTIONS LTD,8400045900,CommServs-ProvPayWA,Adults & Health,BOROUGHWIDE
15/04/2024,947578,0,1989.45,IMPACT PROJECT SOLUTIONS LTD,8400045900,CommServs-ProvPayWA,Adults & Health,BOROUGHWIDE
15/04/2024,947577,0,1989.45,IMPACT PROJECT SOLUTIONS LTD,8400045900,Homecare Enhanced,Adults & Health,FROGNAL
29/04/2024,947579,0,1989.45,IMPACT PROJECT SOLUTIONS LTD,8400045900,Homecare Enhanced,Adults & Health,FROGNAL
29/04/2024,947580,0,1989.45,IMPACT PROJECT SOLUTIONS LTD,8400045900,Homecare Enhanced,Adults & Health,FROGNAL
08/04/2024,947581,0,501.2,IMPECCABLE HEALTH CARE,8400013900,CommServs-ProvPayOP,Adults & Health,BOROUGHWIDE
08/04/2024,947582,0,501.2,IMPECCABLE HEALTH CARE,8400013900,CommServs-ProvPayOP,Adults & Health,BOROUGHWIDE
08/04/2024,947585,0,513.3,IMPECCABLE HEALTH CARE,8400013900,CommServs-ProvPayOP,Adults & Health,BOROUGHWIDE
08/04/2024,947587,0,646.8,IMPECCABLE HEALTH CARE,8400013900,CommServs-ProvPayOP,Adults & Health,BOROUGHWIDE
08/04/2024,947588,0,646.8,IMPECCABLE HEALTH CARE,8400013900,CommServs-ProvPayOP,Adults & Health,BOROUGHWIDE
08/04/2024,947593,0,705.72,IMPECCABLE HEALTH CARE,8400013900,CommServs-ProvPayOP,Adults & Health,BOROUGHWIDE
08/04/2024,947594,0,705.72,IMPECCABLE HEALTH CARE,8400013900,CommServs-ProvPayOP,Adults & Health,BOROUGHWIDE
08/04/2024,947597,0,721.82,IMPECCABLE HEALTH CARE,8400013900,CommServs-ProvPayOP,Adults & Health,BOROUGHWIDE
22/04/2024,947583,0,501.2,IMPECCABLE HEALTH CARE,8400013900,Homecare Conventional,Adults & Health,CLOCK TOWER
22/04/2024,947584,0,501.2,IMPECCABLE HEALTH CARE,8400013900,Homecare Conventional,Adults & Health,CLOCK TOWER
22/04/2024,947586,0,544.21,IMPECCABLE HEALTH CARE,8400013900,Homecare Conventional,Adults & Health,FROGNAL
22/04/2024,947589,0,646.8,IMPECCABLE HEALTH CARE,8400013900,Homecare Conventional,Adults & Health,NORTHBEXLEY
22/04/2024,947590,0,646.8,IMPECCABLE HEALTH CARE,8400013900,Homecare Conventional,Adults & Health,NORTHBEXLEY
22/04/2024,947591,0,646.8,IMPECCABLE HEALTH CARE,8400013900,Homecare Conventional,Adults & Health,FROGNAL
22/04/2024,947592,0,664.74,IMPECCABLE HEALTH CARE,8400013900,Homecare Conventional,Adults & Health,FROGNAL
22/04/2024,947595,0,705.72,IMPECCABLE HEALTH CARE,8400013900,Homecare Conventional,Adults & Health,FROGNAL
22/04/2024,947596,0,705.72,IMPECCABLE HEALTH CARE,8400013900,Homecare Conventional,Adults & Health,FROGNAL
29/04/2024,947599,0,911.04,Redacted Personal Data,8400022500,Supported Accommodation,Adults & Health,NORTHBEXLEY
08/04/2024,947600,0,501.2,INDEPENDENT HOMECARE TEAM,8400011900,CommServs-ProvPayOP,Adults & Health,BOROUGHWIDE
15/04/2024,947601,0,501.2,INDEPENDENT HOMECARE TEAM,8400011900,CommServs-ProvPayOP,Adults & Health,BOROUGHWIDE
08/04/2024,947605,0,646.8,INDEPENDENT HOMECARE TEAM,8400011900,CommServs-ProvPayOP,Adults & Health,BOROUGHWIDE
15/04/2024,947607,0,646.8,INDEPENDENT HOMECARE TEAM,8400011900,CommServs-ProvPayOP,Adults & Health,BOROUGHWIDE
15/04/2024,947602,0,501.2,INDEPENDENT HOMECARE TEAM,8400011900,Homecare Conventional,Adults & Health,NORTHBEXLEY
22/04/2024,947603,0,501.2,INDEPENDENT HOMECARE TEAM,8400011900,Homecare Conventional,Adults & Health,NORTHBEXLEY
29/04/2024,947604,0,501.2,INDEPENDENT HOMECARE TEAM,8400011900,Homecare Conventional,Adults & Health,NORTHBEXLEY
15/04/2024,947606,0,646.8,INDEPENDENT HOMECARE TEAM,8400011900,Homecare Conventional,Adults & Health,FROGNAL
22/04/2024,947608,0,646.8,INDEPENDENT HOMECARE TEAM,8400011900,Homecare Conventional,Adults & Health,FROGNAL
29/04/2024,947609,0,646.8,INDEPENDENT HOMECARE TEAM,8400011900,Homecare Conventional,Adults & Health,FROGNAL
29/04/2024,947610,0,1040.3,INDEX CARE,8400028300,Supported Living,Adults & Health,NORTHBEXLEY
29/04/2024,947611,0,2068.12,INDEX CARE,8400028300,Supported Living,Adults & Health,NORTHBEXLEY
29/04/2024,947612,0,2080.6,INDEX CARE,8400028300,Supported Living,Adults & Health,NORTHBEXLEY
29/04/2024,947613,0,2480.47,INDEX CARE,8400028300,Supported Living,Adults & Health,CLOCK TOWER
29/04/2024,947614,0,2897.98,INDEX CARE,8400028300,Supported Living,Adults & Health,CLOCK TOWER
29/04/2024,947615,0,2912.84,INDEX CARE,8400028300,Supported Living,Adults & Health,FROGNAL
29/04/2024,947616,0,4136.24,INDEX CARE,8400028300,Supported Living,Adults & Health,NORTHBEXLEY
29/04/2024,947617,0,4221,INDEX CARE,8400028300,Supported Living,Adults & Health,NORTHBEXLEY
29/04/2024,947618,0,5342.56,INDEX CARE,8400028300,Supported Living,Adults & Health,CLOCK TOWER
29/04/2024,947619,0,5825.68,INDEX CARE,8400028300,Supported Living,Adults & Health,FROGNAL
29/04/2024,947620,0,6241.8,INDEX CARE,8400028300,Supported Living,Adults & Health,CLOCK TOWER
29/04/2024,947621,0,8442,INDEX CARE,8400028300,Supported Living,Adults & Health,NORTHBEXLEY
25/04/2024,947645,0,808.09,INSPIRE COMMUNITY TRUST,5943901,Specialist Equip for Svce Prov,Adults & Health,BOROUGHWIDE
29/04/2024,947647,0,535.36,INSPIRE COMMUNITY TRUST DAY CENTRE,8400030000,CommServs-ProvPayWA,Adults & Health,BOROUGHWIDE
29/04/2024,947648,0,535.36,INSPIRE COMMUNITY TRUST DAY CENTRE,8400030000,CommServs-ProvPayWA,Adults & Health,BOROUGHWIDE
29/04/2024,947650,0,669.2,INSPIRE COMMUNITY TRUST DAY CENTRE,8400030000,CommServs-ProvPayWA,Adults & Health,BOROUGHWIDE
29/04/2024,947649,0,669.2,INSPIRE COMMUNITY TRUST DAY CENTRE,8400030000,Daycare,Adults & Health,NORTHBEXLEY
29/04/2024,947646,0,506.68,INSPIRE COMMUNITY TRUST DAY CENTRE,8400030000,VOIDS-Day Care PD,Adults & Health,BOROUGHWIDE
08/04/2024,947668,0,501.2,J C MICHAEL GROUPS LTD,8400036100,CommServs-ProvPayOP,Adults & Health,BOROUGHWIDE
08/04/2024,947669,0,501.2,J C MICHAEL GROUPS LTD,8400036100,CommServs-ProvPayOP,Adults & Health,BOROUGHWIDE
08/04/2024,947670,0,501.2,J C MICHAEL GROUPS LTD,8400036100,CommServs-ProvPayOP,Adults & Health,BOROUGHWIDE
22/04/2024,947671,0,501.2,J C MICHAEL GROUPS LTD,8400036100,CommServs-ProvPayOP,Adults & Health,BOROUGHWIDE
22/04/2024,947672,0,501.2,J C MICHAEL GROUPS LTD,8400036100,CommServs-ProvPayOP,Adults & Health,BOROUGHWIDE
22/04/2024,947673,0,501.2,J C MICHAEL GROUPS LTD,8400036100,CommServs-ProvPayOP,Adults & Health,BOROUGHWIDE
08/04/2024,947684,0,646.8,J C MICHAEL GROUPS LTD,8400036100,CommServs-ProvPayOP,Adults & Health,BOROUGHWIDE
08/04/2024,947685,0,646.8,J C MICHAEL GROUPS LTD,8400036100,CommServs-ProvPayOP,Adults & Health,BOROUGHWIDE
08/04/2024,947686,0,646.8,J C MICHAEL GROUPS LTD,8400036100,CommServs-ProvPayOP,Adults & Health,BOROUGHWIDE
08/04/2024,947687,0,646.8,J C MICHAEL GROUPS LTD,8400036100,CommServs-ProvPayOP,Adults & Health,BOROUGHWIDE
08/04/2024,947688,0,646.8,J C MICHAEL GROUPS LTD,8400036100,CommServs-ProvPayOP,Adults & Health,BOROUGHWIDE
08/04/2024,947689,0,646.8,J C MICHAEL GROUPS LTD,8400036100,CommServs-ProvPayOP,Adults & Health,BOROUGHWIDE
08/04/2024,947690,0,646.8,J C MICHAEL GROUPS LTD,8400036100,CommServs-ProvPayOP,Adults & Health,BOROUGHWIDE
08/04/2024,947691,0,646.8,J C MICHAEL GROUPS LTD,8400036100,CommServs-ProvPayOP,Adults & Health,BOROUGHWIDE
08/04/2024,947692,0,646.8,J C MICHAEL GROUPS LTD,8400036100,CommServs-ProvPayOP,Adults & Health,BOROUGHWIDE
08/04/2024,947693,0,646.8,J C MICHAEL GROUPS LTD,8400036100,CommServs-ProvPayOP,Adults & Health,BOROUGHWIDE
08/04/2024,947694,0,646.8,J C MICHAEL GROUPS LTD,8400036100,CommServs-ProvPayOP,Adults & Health,BOROUGHWIDE
22/04/2024,947695,0,646.8,J C MICHAEL GROUPS LTD,8400036100,CommServs-ProvPayOP,Adults & Health,BOROUGHWIDE
22/04/2024,947696,0,646.8,J C MICHAEL GROUPS LTD,8400036100,CommServs-ProvPayOP,Adults & Health,BOROUGHWIDE
22/04/2024,947697,0,646.8,J C MICHAEL GROUPS LTD,8400036100,CommServs-ProvPayOP,Adults & Health,BOROUGHWIDE
22/04/2024,947698,0,646.8,J C MICHAEL GROUPS LTD,8400036100,CommServs-ProvPayOP,Adults & Health,BOROUGHWIDE
22/04/2024,947699,0,646.8,J C MICHAEL GROUPS LTD,8400036100,CommServs-ProvPayOP,Adults & Health,BOROUGHWIDE
22/04/2024,947700,0,646.8,J C MICHAEL GROUPS LTD,8400036100,CommServs-ProvPayOP,Adults & Health,BOROUGHWIDE
22/04/2024,947701,0,646.8,J C MICHAEL GROUPS LTD,8400036100,CommServs-ProvPayOP,Adults & Health,BOROUGHWIDE
22/04/2024,947702,0,646.8,J C MICHAEL GROUPS LTD,8400036100,CommServs-ProvPayOP,Adults & Health,BOROUGHWIDE
22/04/2024,947703,0,646.8,J C MICHAEL GROUPS LTD,8400036100,CommServs-ProvPayOP,Adults & Health,BOROUGHWIDE
22/04/2024,947704,0,646.8,J C MICHAEL GROUPS LTD,8400036100,CommServs-ProvPayOP,Adults & Health,BOROUGHWIDE
22/04/2024,947705,0,646.8,J C MICHAEL GROUPS LTD,8400036100,CommServs-ProvPayOP,Adults & Health,BOROUGHWIDE
22/04/2024,947724,0,681.2,J C MICHAEL GROUPS LTD,8400036100,CommServs-ProvPayOP,Adults & Health,BOROUGHWIDE
08/04/2024,947726,0,711.2,J C MICHAEL GROUPS LTD,8400036100,CommServs-ProvPayOP,Adults & Health,BOROUGHWIDE
08/04/2024,947729,0,711.76,J C MICHAEL GROUPS LTD,8400036100,CommServs-ProvPayOP,Adults & Health,BOROUGHWIDE
08/04/2024,947732,0,841.12,J C MICHAEL GROUPS LTD,8400036100,CommServs-ProvPayOP,Adults & Health,BOROUGHWIDE
22/04/2024,947733,0,841.12,J C MICHAEL GROUPS LTD,8400036100,CommServs-ProvPayOP,Adults & Health,BOROUGHWIDE
08/04/2024,947735,0,882.48,J C MICHAEL GROUPS LTD,8400036100,CommServs-ProvPayOP,Adults & Health,BOROUGHWIDE
22/04/2024,947736,0,882.48,J C MICHAEL GROUPS LTD,8400036100,CommServs-ProvPayOP,Adults & Health,BOROUGHWIDE
08/04/2024,947738,0,904.96,J C MICHAEL GROUPS LTD,8400036100,CommServs-ProvPayOP,Adults & Health,BOROUGHWIDE
08/04/2024,947740,0,904.96,J C MICHAEL GROUPS LTD,8400036100,CommServs-ProvPayOP,Adults & Health,BOROUGHWIDE
22/04/2024,947741,0,904.96,J C MICHAEL GROUPS LTD,8400036100,CommServs-ProvPayOP,Adults & Health,BOROUGHWIDE
22/04/2024,947743,0,904.96,J C MICHAEL GROUPS LTD,8400036100,CommServs-ProvPayOP,Adults & Health,BOROUGHWIDE
08/04/2024,947681,0,566.16,J C MICHAEL GROUPS LTD,8400036100,CommServs-ProvPayWA,Adults & Health,BOROUGHWIDE
08/04/2024,947739,0,904.96,J C MICHAEL GROUPS LTD,8400036100,CommServs-ProvPayWA,Adults & Health,BOROUGHWIDE
22/04/2024,947742,0,904.96,J C MICHAEL GROUPS LTD,8400036100,CommServs-ProvPayWA,Adults & Health,BOROUGHWIDE
22/04/2024,947674,0,501.2,J C MICHAEL GROUPS LTD,8400036100,Homecare Conventional,Adults & Health,NORTHBEXLEY
29/04/2024,947675,0,501.2,J C MICHAEL GROUPS LTD,8400036100,Homecare Conventional,Adults & Health,CLOCK TOWER
29/04/2024,947676,0,501.2,J C MICHAEL GROUPS LTD,8400036100,Homecare Conventional,Adults & Health,CLOCK TOWER
22/04/2024,947677,0,554.4,J C MICHAEL GROUPS LTD,8400036100,Homecare Conventional,Adults & Health,CLOCK TOWER
22/04/2024,947678,0,554.4,J C MICHAEL GROUPS LTD,8400036100,Homecare Conventional,Adults & Health,CLOCK TOWER
22/04/2024,947679,0,554.4,J C MICHAEL GROUPS LTD,8400036100,Homecare Conventional,Adults & Health,CLOCK TOWER
22/04/2024,947680,0,554.4,J C MICHAEL GROUPS LTD,8400036100,Homecare Conventional,Adults & Health,CLOCK TOWER
22/04/2024,947682,0,566.16,J C MICHAEL GROUPS LTD,8400036100,Homecare Conventional,Adults & Health,FROGNAL
29/04/2024,947683,0,566.16,J C MICHAEL GROUPS LTD,8400036100,Homecare Conventional,Adults & Health,FROGNAL
22/04/2024,947706,0,646.8,J C MICHAEL GROUPS LTD,8400036100,Homecare Conventional,Adults & Health,CLOCK TOWER
22/04/2024,947707,0,646.8,J C MICHAEL GROUPS LTD,8400036100,Homecare Conventional,Adults & Health,FROGNAL
22/04/2024,947708,0,646.8,J C MICHAEL GROUPS LTD,8400036100,Homecare Conventional,Adults & Health,NORTHBEXLEY
22/04/2024,947709,0,646.8,J C MICHAEL GROUPS LTD,8400036100,Homecare Conventional,Adults & Health,CLOCK TOWER
22/04/2024,947710,0,646.8,J C MICHAEL GROUPS LTD,8400036100,Homecare Conventional,Adults & Health,CLOCK TOWER
22/04/2024,947711,0,646.8,J C MICHAEL GROUPS LTD,8400036100,Homecare Conventional,Adults & Health,CLOCK TOWER
22/04/2024,947712,0,646.8,J C MICHAEL GROUPS LTD,8400036100,Homecare Conventional,Adults & Health,CLOCK TOWER
29/04/2024,947713,0,646.8,J C MICHAEL GROUPS LTD,8400036100,Homecare Conventional,Adults & Health,CLOCK TOWER
29/04/2024,947714,0,646.8,J C MICHAEL GROUPS LTD,8400036100,Homecare Conventional,Adults & Health,CLOCK TOWER
29/04/2024,947715,0,646.8,J C MICHAEL GROUPS LTD,8400036100,Homecare Conventional,Adults & Health,FROGNAL
29/04/2024,947716,0,646.8,J C MICHAEL GROUPS LTD,8400036100,Homecare Conventional,Adults & Health,NORTHBEXLEY
29/04/2024,947717,0,646.8,J C MICHAEL GROUPS LTD,8400036100,Homecare Conventional,Adults & Health,CLOCK TOWER
29/04/2024,947718,0,646.8,J C MICHAEL GROUPS LTD,8400036100,Homecare Conventional,Adults & Health,CLOCK TOWER
29/04/2024,947719,0,646.8,J C MICHAEL GROUPS LTD,8400036100,Homecare Conventional,Adults & Health,CLOCK TOWER
29/04/2024,947720,0,646.8,J C MICHAEL GROUPS LTD,8400036100,Homecare Conventional,Adults & Health,CLOCK TOWER
29/04/2024,947721,0,646.8,J C MICHAEL GROUPS LTD,8400036100,Homecare Conventional,Adults & Health,CLOCK TOWER
29/04/2024,947722,0,646.8,J C MICHAEL GROUPS LTD,8400036100,Homecare Conventional,Adults & Health,CLOCK TOWER
29/04/2024,947723,0,646.8,J C MICHAEL GROUPS LTD,8400036100,Homecare Conventional,Adults & Health,CLOCK TOWER
22/04/2024,947725,0,681.2,J C MICHAEL GROUPS LTD,8400036100,Homecare Conventional,Adults & Health,NORTHBEXLEY
29/04/2024,947727,0,711.2,J C MICHAEL GROUPS LTD,8400036100,Homecare Conventional,Adults & Health,NORTHBEXLEY
22/04/2024,947728,0,711.52,J C MICHAEL GROUPS LTD,8400036100,Homecare Conventional,Adults & Health,CLOCK TOWER
29/04/2024,947730,0,711.76,J C MICHAEL GROUPS LTD,8400036100,Homecare Conventional,Adults & Health,CLOCK TOWER
22/04/2024,947731,0,720.96,J C MICHAEL GROUPS LTD,8400036100,Homecare Conventional,Adults & Health,CLOCK TOWER
29/04/2024,947734,0,841.12,J C MICHAEL GROUPS LTD,8400036100,Homecare Conventional,Adults & Health,CLOCK TOWER
29/04/2024,947737,0,882.48,J C MICHAEL GROUPS LTD,8400036100,Homecare Conventional,Adults & Health,CLOCK TOWER
22/04/2024,947744,0,904.96,J C MICHAEL GROUPS LTD,8400036100,Homecare Conventional,Adults & Health,NORTHBEXLEY
22/04/2024,947745,0,904.96,J C MICHAEL GROUPS LTD,8400036100,Homecare Conventional,Adults & Health,NORTHBEXLEY
29/04/2024,947746,0,904.96,J C MICHAEL GROUPS LTD,8400036100,Homecare Conventional,Adults & Health,NORTHBEXLEY
29/04/2024,947747,0,904.96,J C MICHAEL GROUPS LTD,8400036100,Homecare Conventional,Adults & Health,NORTHBEXLEY
29/04/2024,947748,0,904.96,J C MICHAEL GROUPS LTD,8400036100,Homecare Conventional,Adults & Health,NORTHBEXLEY
29/04/2024,947783,0,848.36,Redacted Personal Data,8300112400,ISF Payments,Adults & Health,CLOCK TOWER
29/04/2024,947784,0,1696.72,Redacted Personal Data,8300112400,ISF Payments,Adults & Health,CLOCK TOWER
29/04/2024,947788,0,1540.42,JAMES TERRY COURT,8400047200,Residential,Adults & Health,FROGNAL
29/04/2024,947789,0,1540.42,JAMES TERRY COURT,8400047200,ResPlcmts-ProvPayOP,Adults & Health,BOROUGHWIDE
29/04/2024,947807,0,4296.52,Redacted Personal Data,8300074400,ISF Payments,Adults & Health,CLOCK TOWER
29/04/2024,947808,0,8593.04,Redacted Personal Data,8300074400,ISF Payments,Adults & Health,CLOCK TOWER
04/04/2024,947811,0,5400,Redacted Personal Data,3741600,Consultancy Fees,Adults & Health,Health & Wellbeing
29/04/2024,947826,0,877.72,Redacted Personal Data,8400035400,Supported Accommodation,Adults & Health,NORTHBEXLEY
15/04/2024,947857,0,1551.5,Redacted Personal Data,8300119400,ISF Payments,Adults & Health,CLOCK TOWER
15/04/2024,947858,0,2372.44,Redacted Personal Data,8300119400,ISF Payments,Adults & Health,CLOCK TOWER
15/04/2024,947859,0,2372.44,Redacted Personal Data,8300119400,ISF Payments,Adults & Health,CLOCK TOWER
15/04/2024,947860,0,2372.44,Redacted Personal Data,8300119400,ISF Payments,Adults & Health,CLOCK TOWER
15/04/2024,947861,0,2881.36,Redacted Personal Data,8300119400,ISF Payments,Adults & Health,CLOCK TOWER
15/04/2024,947862,0,3103,Redacted Personal Data,8300119400,ISF Payments,Adults & Health,CLOCK TOWER
15/04/2024,947863,0,3103,Redacted Personal Data,8300119400,ISF Payments,Adults & Health,CLOCK TOWER
15/04/2024,947864,0,4744.88,Redacted Personal Data,8300119400,ISF Payments,Adults & Health,CLOCK TOWER
29/04/2024,947865,0,4744.88,Redacted Personal Data,8300119400,ISF Payments,Adults & Health,CLOCK TOWER
29/04/2024,947866,0,1372.2,Redacted Personal Data,8300088500,ISF Payments,Adults & Health,NORTHBEXLEY
29/04/2024,947867,0,2744.4,Redacted Personal Data,8300088500,ISF Payments,Adults & Health,NORTHBEXLEY
29/04/2024,947868,0,1919.66,JM CAREHOMES LTD,8400031500,Supported Living,Adults & Health,CLOCK TOWER
29/04/2024,947869,0,3839.32,JM CAREHOMES LTD,8400031500,Supported Living,Adults & Health,CLOCK TOWER
29/04/2024,947928,0,3870.46,Redacted Personal Data,8300074600,ISF Payments,Adults & Health,FROGNAL
29/04/2024,947929,0,7740.92,Redacted Personal Data,8300074600,ISF Payments,Adults & Health,FROGNAL
29/04/2024,947970,0,4406.84,Redacted Personal Data,8300074100,ISF Payments,Adults & Health,FROGNAL
29/04/2024,947971,0,8813.68,Redacted Personal Data,8300074100,ISF Payments,Adults & Health,FROGNAL
29/04/2024,947973,0,1874.64,KENBROOK CARE HOME,8400013600,Nursing,Adults & Health,FROGNAL
29/04/2024,947974,0,3749.28,KENBROOK CARE HOME,8400013600,Nursing,Adults & Health,FROGNAL
04/04/2024,947978,0,4377.5,KENT ASSOCIATION FOR THE BLIND,148400,PEI Grants - KAB PrvStrt,Adults & Health,BOROUGHWIDE
29/04/2024,947979,0,845.74,KENT AUTISTIC TRUST,8400029100,Daycare,Adults & Health,NORTHBEXLEY
29/04/2024,947980,0,1691.48,KENT AUTISTIC TRUST,8400029100,Daycare,Adults & Health,NORTHBEXLEY
29/04/2024,948042,0,1069.44,KEYRING,8400040900,VOIDS-Prevention,Adults & Health,BOROUGHWIDE
29/04/2024,948063,0,7608.72,KISIMUL GROUP LTD,8400018100,Residential,Adults & Health,NORTHBEXLEY
29/04/2024,948065,0,9440.2,KISIMUL GROUP LTD,8400018100,Residential,Adults & Health,NORTHBEXLEY
29/04/2024,948062,0,7608.72,KISIMUL GROUP LTD,8400018100,ResPlcmts-ProvPayWA,Adults & Health,BOROUGHWIDE
29/04/2024,948064,0,9440.2,KISIMUL GROUP LTD,8400018100,ResPlcmts-ProvPayWA,Adults & Health,BOROUGHWIDE
29/04/2024,948066,0,963.84,Redacted Personal Data,8400024100,Supported Accommodation,Adults & Health,NORTHBEXLEY
29/04/2024,948079,0,672.95,Redacted Personal Data,8400012000,Supported Accommodation,Adults & Health,CLOCK TOWER
29/04/2024,948080,0,1449.44,Redacted Personal Data,8400012000,Supported Accommodation,Adults & Health,CLOCK TOWER
29/04/2024,948087,0,3771.98,Redacted Personal Data,8300074800,ISF Payments,Adults & Health,CLOCK TOWER
29/04/2024,948088,0,7543.96,Redacted Personal Data,8300074800,ISF Payments,Adults & Health,CLOCK TOWER
29/04/2024,948091,0,2043.18,LAUREL RESIDENTIAL HOMES LTD,8400043300,Residential,Adults & Health,NORTHBEXLEY
29/04/2024,948092,0,4086.36,LAUREL RESIDENTIAL HOMES LTD,8400043300,Residential,Adults & Health,NORTHBEXLEY
29/04/2024,948097,0,873.88,Redacted Personal Data,8400038300,Supported Accommodation,Adults & Health,NORTHBEXLEY
29/04/2024,948098,0,1747.76,Redacted Personal Data,8400038300,Supported Accommodation,Adults & Health,NORTHBEXLEY
02/04/2024,948104,0,1754,LEWISHAM AND GREENWICH NHS TRUST,8265601,Lewisham & Greenwich NHS Trust,Adults & Health,Health & Wellbeing
29/04/2024,948116,0,655.52,Redacted Personal Data,8400023100,Supported Accommodation,Adults & Health,NORTHBEXLEY
29/04/2024,948117,0,849.1,Redacted Personal Data,8400023100,Supported Accommodation,Adults & Health,CLOCK TOWER
29/04/2024,948118,0,877.72,Redacted Personal Data,8400023100,Supported Accommodation,Adults & Health,NORTHBEXLEY
29/04/2024,948119,0,1311.04,Redacted Personal Data,8400023100,Supported Accommodation,Adults & Health,NORTHBEXLEY
29/04/2024,948120,0,1828.84,Redacted Personal Data,8400023100,Supported Accommodation,Adults & Health,CLOCK TOWER
08/04/2024,948151,0,545.36,LIZNETT CARE SERVICES,8400029000,CommServs-ProvPayOP,Adults & Health,BOROUGHWIDE
08/04/2024,948152,0,549.92,LIZNETT CARE SERVICES,8400029000,CommServs-ProvPayOP,Adults & Health,BOROUGHWIDE
08/04/2024,948153,0,549.92,LIZNETT CARE SERVICES,8400029000,CommServs-ProvPayOP,Adults & Health,BOROUGHWIDE
15/04/2024,948154,0,549.92,LIZNETT CARE SERVICES,8400029000,CommServs-ProvPayOP,Adults & Health,BOROUGHWIDE
08/04/2024,948155,0,582.4,LIZNETT CARE SERVICES,8400029000,CommServs-ProvPayOP,Adults & Health,BOROUGHWIDE
08/04/2024,948156,0,582.4,LIZNETT CARE SERVICES,8400029000,CommServs-ProvPayOP,Adults & Health,BOROUGHWIDE
08/04/2024,948157,0,591.6,LIZNETT CARE SERVICES,8400029000,CommServs-ProvPayOP,Adults & Health,BOROUGHWIDE
08/04/2024,948158,0,591.6,LIZNETT CARE SERVICES,8400029000,CommServs-ProvPayOP,Adults & Health,BOROUGHWIDE
15/04/2024,948159,0,591.6,LIZNETT CARE SERVICES,8400029000,CommServs-ProvPayOP,Adults & Health,BOROUGHWIDE
08/04/2024,948160,0,646.8,LIZNETT CARE SERVICES,8400029000,CommServs-ProvPayOP,Adults & Health,BOROUGHWIDE
08/04/2024,948161,0,646.8,LIZNETT CARE SERVICES,8400029000,CommServs-ProvPayOP,Adults & Health,BOROUGHWIDE
15/04/2024,948162,0,646.8,LIZNETT CARE SERVICES,8400029000,CommServs-ProvPayOP,Adults & Health,BOROUGHWIDE
08/04/2024,948163,0,690.96,LIZNETT CARE SERVICES,8400029000,CommServs-ProvPayOP,Adults & Health,BOROUGHWIDE
08/04/2024,948164,0,690.96,LIZNETT CARE SERVICES,8400029000,CommServs-ProvPayOP,Adults & Health,BOROUGHWIDE
15/04/2024,948165,0,690.96,LIZNETT CARE SERVICES,8400029000,CommServs-ProvPayOP,Adults & Health,BOROUGHWIDE
08/04/2024,948166,0,919.12,LIZNETT CARE SERVICES,8400029000,CommServs-ProvPayOP,Adults & Health,BOROUGHWIDE
08/04/2024,948167,0,919.12,LIZNETT CARE SERVICES,8400029000,CommServs-ProvPayOP,Adults & Health,BOROUGHWIDE
15/04/2024,948168,0,919.12,LIZNETT CARE SERVICES,8400029000,CommServs-ProvPayOP,Adults & Health,BOROUGHWIDE
29/04/2024,948170,0,2998.8,LIZNETT CARE SERVICES LTD,8400478200,CommServs-ProvPayWA,Adults & Health,BOROUGHWIDE
29/04/2024,948172,0,4214,LIZNETT CARE SERVICES LTD,8400478200,CommServs-ProvPayWA,Adults & Health,BOROUGHWIDE
29/04/2024,948169,0,2998.8,LIZNETT CARE SERVICES LTD,8400478200,Supported Living,Adults & Health,NORTHBEXLEY
29/04/2024,948171,0,4214,LIZNETT CARE SERVICES LTD,8400478200,Supported Living,Adults & Health,NORTHBEXLEY
29/04/2024,948173,0,4885.12,LODGE GROUP CARE UK LTD,8400001200,Residential,Adults & Health,NORTHBEXLEY
29/04/2024,948174,0,9770.24,LODGE GROUP CARE UK LTD,8400001200,Residential,Adults & Health,NORTHBEXLEY
08/04/2024,948191,0,583.24,LONDON CARE,8400000200,CommServs-ProvPayOP,Adults & Health,BOROUGHWIDE
08/04/2024,948197,0,627.26,LONDON CARE,8400000200,CommServs-ProvPayOP,Adults & Health,BOROUGHWIDE
08/04/2024,948198,0,630.56,LONDON CARE,8400000200,CommServs-ProvPayOP,Adults & Health,BOROUGHWIDE
08/04/2024,948202,0,646.8,LONDON CARE,8400000200,CommServs-ProvPayOP,Adults & Health,BOROUGHWIDE
08/04/2024,948207,0,698.8,LONDON CARE,8400000200,CommServs-ProvPayOP,Adults & Health,BOROUGHWIDE
08/04/2024,948209,0,720.56,LONDON CARE,8400000200,CommServs-ProvPayOP,Adults & Health,BOROUGHWIDE
08/04/2024,948216,0,820.24,LONDON CARE,8400000200,CommServs-ProvPayOP,Adults & Health,BOROUGHWIDE
08/04/2024,948222,0,904.96,LONDON CARE,8400000200,CommServs-ProvPayOP,Adults & Health,BOROUGHWIDE
08/04/2024,948203,0,646.8,LONDON CARE,8400000200,CommServs-ProvPayWA,Adults & Health,BOROUGHWIDE
08/04/2024,948208,0,710.6,LONDON CARE,8400000200,CommServs-ProvPayWA,Adults & Health,BOROUGHWIDE
08/04/2024,948228,0,1102.76,LONDON CARE,8400000200,CommServs-ProvPayWA,Adults & Health,BOROUGHWIDE
08/04/2024,948232,0,1214.23,LONDON CARE,8400000200,CommServs-ProvPayWA,Adults & Health,BOROUGHWIDE
29/04/2024,948233,0,1244.57,LONDON CARE,8400000200,Discharge to Assess- Non Chrg,Adults & Health,NORTHBEXLEY
29/04/2024,948187,0,537.6,LONDON CARE,8400000200,Homecare Conventional,Adults & Health,CLOCK TOWER
15/04/2024,948188,0,554.4,LONDON CARE,8400000200,Homecare Conventional,Adults & Health,CLOCK TOWER
15/04/2024,948189,0,554.4,LONDON CARE,8400000200,Homecare Conventional,Adults & Health,CLOCK TOWER
22/04/2024,948190,0,571.64,LONDON CARE,8400000200,Homecare Conventional,Adults & Health,FROGNAL
22/04/2024,948192,0,592.32,LONDON CARE,8400000200,Homecare Conventional,Adults & Health,CLOCK TOWER
22/04/2024,948193,0,607.84,LONDON CARE,8400000200,Homecare Conventional,Adults & Health,FROGNAL
15/04/2024,948194,0,611,LONDON CARE,8400000200,Homecare Conventional,Adults & Health,FROGNAL
15/04/2024,948195,0,621.28,LONDON CARE,8400000200,Homecare Conventional,Adults & Health,CLOCK TOWER
29/04/2024,948196,0,625.96,LONDON CARE,8400000200,Homecare Conventional,Adults & Health,FROGNAL
15/04/2024,948199,0,630.56,LONDON CARE,8400000200,Homecare Conventional,Adults & Health,FROGNAL
29/04/2024,948200,0,631.8,LONDON CARE,8400000200,Homecare Conventional,Adults & Health,FROGNAL
22/04/2024,948201,0,642.26,LONDON CARE,8400000200,Homecare Conventional,Adults & Health,CLOCK TOWER
22/04/2024,948204,0,646.8,LONDON CARE,8400000200,Homecare Conventional,Adults & Health,CLOCK TOWER
29/04/2024,948205,0,646.8,LONDON CARE,8400000200,Homecare Conventional,Adults & Health,CLOCK TOWER
29/04/2024,948206,0,646.8,LONDON CARE,8400000200,Homecare Conventional,Adults & Health,CLOCK TOWER
15/04/2024,948210,0,721,LONDON CARE,8400000200,Homecare Conventional,Adults & Health,NORTHBEXLEY
22/04/2024,948211,0,731.4,LONDON CARE,8400000200,Homecare Conventional,Adults & Health,NORTHBEXLEY
29/04/2024,948212,0,731.4,LONDON CARE,8400000200,Homecare Conventional,Adults & Health,NORTHBEXLEY
15/04/2024,948213,0,745.06,LONDON CARE,8400000200,Homecare Conventional,Adults & Health,FROGNAL
29/04/2024,948214,0,794.7,LONDON CARE,8400000200,Homecare Conventional,Adults & Health,FROGNAL
22/04/2024,948215,0,818.88,LONDON CARE,8400000200,Homecare Conventional,Adults & Health,FROGNAL
22/04/2024,948217,0,820.24,LONDON CARE,8400000200,Homecare Conventional,Adults & Health,NORTHBEXLEY
29/04/2024,948218,0,824.88,LONDON CARE,8400000200,Homecare Conventional,Adults & Health,NORTHBEXLEY
29/04/2024,948219,0,885.36,LONDON CARE,8400000200,Homecare Conventional,Adults & Health,NORTHBEXLEY
15/04/2024,948220,0,887.34,LONDON CARE,8400000200,Homecare Conventional,Adults & Health,NORTHBEXLEY
15/04/2024,948221,0,890.28,LONDON CARE,8400000200,Homecare Conventional,Adults & Health,CLOCK TOWER
15/04/2024,948223,0,904.96,LONDON CARE,8400000200,Homecare Conventional,Adults & Health,NORTHBEXLEY
22/04/2024,948224,0,904.96,LONDON CARE,8400000200,Homecare Conventional,Adults & Health,NORTHBEXLEY
29/04/2024,948225,0,989.56,LONDON CARE,8400000200,Homecare Conventional,Adults & Health,CLOCK TOWER
22/04/2024,948226,0,1028.84,LONDON CARE,8400000200,Homecare Conventional,Adults & Health,CLOCK TOWER
29/04/2024,948227,0,1097.58,LONDON CARE,8400000200,Homecare Conventional,Adults & Health,NORTHBEXLEY
15/04/2024,948229,0,1107.4,LONDON CARE,8400000200,Homecare Conventional,Adults & Health,NORTHBEXLEY
22/04/2024,948230,0,1107.4,LONDON CARE,8400000200,Homecare Conventional,Adults & Health,NORTHBEXLEY
15/04/2024,948234,0,1281.15,LONDON CARE,8400000200,Homecare Conventional,Adults & Health,FROGNAL
22/04/2024,948235,0,1297.87,LONDON CARE,8400000200,Homecare Conventional,Adults & Health,NORTHBEXLEY
15/04/2024,948231,0,1155.6,LONDON CARE,8400000200,Homecare Enhanced,Adults & Health,CLOCK TOWER
22/04/2024,948236,0,1348.2,LONDON CARE,8400000200,Homecare Enhanced,Adults & Health,CLOCK TOWER
29/04/2024,948237,0,1348.2,LONDON CARE,8400000200,Homecare Enhanced,Adults & Health,CLOCK TOWER
08/04/2024,948238,0,590.76,LONDON CARE SUPPORT,8400001100,CommServs-ProvPayWA,Adults & Health,BOROUGHWIDE
22/04/2024,948239,0,738.45,LONDON CARE SUPPORT,8400001100,Daycare,Adults & Health,CLOCK TOWER
29/04/2024,948240,0,738.45,LONDON CARE SUPPORT,8400001100,Daycare,Adults & Health,CLOCK TOWER
25/04/2024,948241,0,13931.2,LONDON HIRE LIMITED,3865600,CommServs Payments Total,Adults & Health,BOROUGHWIDE
25/04/2024,948242,0,16493.18,LONDON HIRE LIMITED,3865600,CommServs Payments Total,Adults & Health,BOROUGHWIDE
04/04/2024,948243,0,17552.6,LONDON HIRE LIMITED,3865600,CommServs Payments Total,Adults & Health,BOROUGHWIDE
18/04/2024,948244,0,17552.6,LONDON HIRE LIMITED,3865600,CommServs Payments Total,Adults & Health,BOROUGHWIDE
11/04/2024,948245,0,19318.3,LONDON HIRE LIMITED,3865600,CommServs Payments Total,Adults & Health,BOROUGHWIDE
29/04/2024,948261,0,3605.22,LORING HALL LTD,8400003100,Residential,Adults & Health,FROGNAL
29/04/2024,948262,0,3674.78,LORING HALL LTD,8400003100,Residential,Adults & Health,CLOCK TOWER
29/04/2024,948263,0,3674.78,LORING HALL LTD,8400003100,Residential,Adults & Health,FROGNAL
29/04/2024,948264,0,3826.46,LORING HALL LTD,8400003100,Residential,Adults & Health,FROGNAL
29/04/2024,948265,0,3983.4,LORING HALL LTD,8400003100,Residential,Adults & Health,FROGNAL
29/04/2024,948266,0,5506.02,LORING HALL LTD,8400003100,Residential,Adults & Health,FROGNAL
29/04/2024,948267,0,5854.94,LORING HALL LTD,8400003100,Residential,Adults & Health,FROGNAL
29/04/2024,948269,0,7210.44,LORING HALL LTD,8400003100,Residential,Adults & Health,FROGNAL
29/04/2024,948270,0,7349.56,LORING HALL LTD,8400003100,Residential,Adults & Health,CLOCK TOWER
29/04/2024,948271,0,7349.56,LORING HALL LTD,8400003100,Residential,Adults & Health,FROGNAL
29/04/2024,948272,0,7639.7,LORING HALL LTD,8400003100,Residential,Adults & Health,FROGNAL
29/04/2024,948273,0,7652.92,LORING HALL LTD,8400003100,Residential,Adults & Health,FROGNAL
29/04/2024,948274,0,7966.8,LORING HALL LTD,8400003100,Residential,Adults & Health,FROGNAL
29/04/2024,948275,0,11012.04,LORING HALL LTD,8400003100,Residential,Adults & Health,FROGNAL
29/04/2024,948276,0,11709.88,LORING HALL LTD,8400003100,Residential,Adults & Health,FROGNAL
29/04/2024,948277,0,15279.4,LORING HALL LTD,8400003100,Residential,Adults & Health,FROGNAL
29/04/2024,948260,0,3180,LORING HALL LTD,8400003100,Residential Non Chrg,Adults & Health,FROGNAL
29/04/2024,948268,0,6360,LORING HALL LTD,8400003100,Residential Non Chrg,Adults & Health,FROGNAL
29/04/2024,948295,0,687.89,Redacted Personal Data,8300100400,ISF Payments,Adults & Health,CLOCK TOWER
29/04/2024,948296,0,1481.6,Redacted Personal Data,8300100400,ISF Payments,Adults & Health,CLOCK TOWER
29/04/2024,948307,0,980.68,Redacted Personal Data,8400020000,Supported Accommodation,Adults & Health,CLOCK TOWER
30/04/2024,948309,0,36255.49,MACINTYRE T/A MACINTYRE SCHOOL,8433600,Adult SEN College Fees,Adults & Health,BOROUGHWIDE
02/04/2024,948311,0,1143,MAIDSTONE AND TUNBRIDGE WELLS NHS TRUST,8730400,Maidstone&TunbridgeWellsNHStrs,Adults & Health,Health & Wellbeing
04/04/2024,948313,0,1265.86,Redacted Personal Data,10096700,DoLS Payments - Paid RPRs,Adults & Health,BOROUGHWIDE
29/04/2024,948314,0,1108.57,Redacted Personal Data,8300097100,ISF Payments,Adults & Health,CLOCK TOWER
29/04/2024,948315,0,2217.14,Redacted Personal Data,8300097100,ISF Payments,Adults & Health,CLOCK TOWER
29/04/2024,948316,0,2217.14,Redacted Personal Data,8300097100,ISF Payments,Adults & Health,CLOCK TOWER
29/04/2024,948317,0,4434.28,Redacted Personal Data,8300097100,ISF Payments,Adults & Health,CLOCK TOWER
29/04/2024,948318,0,3364.08,Redacted Personal Data,8300070400,ISF Payments,Adults & Health,FROGNAL
29/04/2024,948319,0,6728.16,Redacted Personal Data,8300070400,ISF Payments,Adults & Health,FROGNAL
29/04/2024,948324,0,5006.44,MANOR FARM,8400012900,Residential,Adults & Health,CLOCK TOWER
29/04/2024,948325,0,10012.88,MANOR FARM,8400012900,Residential,Adults & Health,CLOCK TOWER
29/04/2024,948323,0,580,MANOR FARM,8400012900,Residential Non Chrg,Adults & Health,CLOCK TOWER
29/04/2024,948326,0,2217.44,MAPLE CARE CENTRE,8400031100,Nursing,Adults & Health,FROGNAL
29/04/2024,948328,0,2560.58,MAPLE CARE CENTRE,8400031100,Nursing,Adults & Health,FROGNAL
29/04/2024,948331,0,2560.58,MAPLE CARE CENTRE,8400031100,Nursing,Adults & Health,CLOCK TOWER
29/04/2024,948332,0,2560.58,MAPLE CARE CENTRE,8400031100,Nursing,Adults & Health,CLOCK TOWER
29/04/2024,948333,0,2560.58,MAPLE CARE CENTRE,8400031100,Nursing,Adults & Health,CLOCK TOWER
29/04/2024,948335,0,2560.58,MAPLE CARE CENTRE,8400031100,Nursing,Adults & Health,CLOCK TOWER
29/04/2024,948336,0,2660.58,MAPLE CARE CENTRE,8400031100,Nursing,Adults & Health,CLOCK TOWER
29/04/2024,948337,0,2660.58,MAPLE CARE CENTRE,8400031100,Nursing,Adults & Health,NORTHBEXLEY
29/04/2024,948338,0,4434.88,MAPLE CARE CENTRE,8400031100,Nursing,Adults & Health,FROGNAL
29/04/2024,948340,0,5121.16,MAPLE CARE CENTRE,8400031100,Nursing,Adults & Health,FROGNAL
29/04/2024,948343,0,5121.16,MAPLE CARE CENTRE,8400031100,Nursing,Adults & Health,CLOCK TOWER
29/04/2024,948344,0,5121.16,MAPLE CARE CENTRE,8400031100,Nursing,Adults & Health,CLOCK TOWER
29/04/2024,948345,0,5121.16,MAPLE CARE CENTRE,8400031100,Nursing,Adults & Health,CLOCK TOWER
29/04/2024,948347,0,5121.16,MAPLE CARE CENTRE,8400031100,Nursing,Adults & Health,CLOCK TOWER
29/04/2024,948348,0,5321.16,MAPLE CARE CENTRE,8400031100,Nursing,Adults & Health,CLOCK TOWER
29/04/2024,948349,0,5321.16,MAPLE CARE CENTRE,8400031100,Nursing,Adults & Health,NORTHBEXLEY
29/04/2024,948327,0,2280,MAPLE CARE CENTRE,8400031100,Residential,Adults & Health,FROGNAL
29/04/2024,948329,0,2560.58,MAPLE CARE CENTRE,8400031100,Residential,Adults & Health,FROGNAL
29/04/2024,948330,0,2560.58,MAPLE CARE CENTRE,8400031100,Residential,Adults & Health,CLOCK TOWER
29/04/2024,948334,0,2560.58,MAPLE CARE CENTRE,8400031100,Residential,Adults & Health,CLOCK TOWER
29/04/2024,948339,0,4560,MAPLE CARE CENTRE,8400031100,Residential,Adults & Health,FROGNAL
29/04/2024,948341,0,5121.16,MAPLE CARE CENTRE,8400031100,Residential,Adults & Health,FROGNAL
29/04/2024,948342,0,5121.16,MAPLE CARE CENTRE,8400031100,Residential,Adults & Health,CLOCK TOWER
29/04/2024,948346,0,5121.16,MAPLE CARE CENTRE,8400031100,Residential,Adults & Health,CLOCK TOWER
29/04/2024,948351,0,3453.97,Redacted Personal Data,8300074300,ISF Payments,Adults & Health,CLOCK TOWER
29/04/2024,948352,0,7439.32,Redacted Personal Data,8300074300,ISF Payments,Adults & Health,CLOCK TOWER
29/04/2024,948367,0,1968.06,Redacted Personal Data,8300096700,ISF Payments,Adults & Health,FROGNAL
29/04/2024,948368,0,3936.12,Redacted Personal Data,8300096700,ISF Payments,Adults & Health,FROGNAL
29/04/2024,948397,0,514.82,Redacted Personal Data,8300096600,ISF Payments,Adults & Health,FROGNAL
29/04/2024,948398,0,1029.64,Redacted Personal Data,8300096600,ISF Payments,Adults & Health,FROGNAL
29/04/2024,948401,0,545.34,Redacted Personal Data,8300077001,ISF Payments,Adults & Health,NORTHBEXLEY
29/04/2024,948402,0,1090.68,Redacted Personal Data,8300077001,ISF Payments,Adults & Health,NORTHBEXLEY
29/04/2024,948422,0,911.04,Redacted Personal Data,8400032600,Supported Accommodation,Adults & Health,CLOCK TOWER
29/04/2024,948423,0,2560.58,MAYFLOWER CARE HOME,8400040200,NurPlcmts-ProvPayOP,Adults & Health,BOROUGHWIDE
29/04/2024,948424,0,2560.58,MAYFLOWER CARE HOME,8400040200,Nursing,Adults & Health,NORTHBEXLEY
29/04/2024,948439,0,2090.94,MELBA LODGE,8400044400,Residential,Adults & Health,NORTHBEXLEY
29/04/2024,948440,0,2090.94,MELBA LODGE,8400044400,Residential,Adults & Health,CLOCK TOWER
29/04/2024,948441,0,2090.94,MELBA LODGE,8400044400,Residential,Adults & Health,FROGNAL
29/04/2024,948437,0,2090.94,MELBA LODGE,8400044400,ResPlcmts-ProvPayOP,Adults & Health,BOROUGHWIDE
29/04/2024,948438,0,2090.94,MELBA LODGE,8400044400,ResPlcmts-ProvPayOP,Adults & Health,BOROUGHWIDE
29/04/2024,948436,0,2090.94,MELBA LODGE,8400044400,ResPlcmts-ProvPayWA,Adults & Health,BOROUGHWIDE
29/04/2024,948445,0,1560.58,MEYER HOUSE RESIDENTIAL CARE HOME,8400010400,Nursing,Adults & Health,NORTHBEXLEY
29/04/2024,948446,0,1560.58,MEYER HOUSE RESIDENTIAL CARE HOME,8400010400,Nursing,Adults & Health,NORTHBEXLEY
29/04/2024,948447,0,1560.58,MEYER HOUSE RESIDENTIAL CARE HOME,8400010400,Nursing,Adults & Health,NORTHBEXLEY
29/04/2024,948450,0,1560.58,MEYER HOUSE RESIDENTIAL CARE HOME,8400010400,Nursing,Adults & Health,NORTHBEXLEY
29/04/2024,948451,0,1624.8,MEYER HOUSE RESIDENTIAL CARE HOME,8400010400,Nursing,Adults & Health,NORTHBEXLEY
29/04/2024,948452,0,2300,MEYER HOUSE RESIDENTIAL CARE HOME,8400010400,Nursing,Adults & Health,FROGNAL
29/04/2024,948453,0,2500,MEYER HOUSE RESIDENTIAL CARE HOME,8400010400,Nursing,Adults & Health,CLOCK TOWER
29/04/2024,948454,0,3121.16,MEYER HOUSE RESIDENTIAL CARE HOME,8400010400,Nursing,Adults & Health,NORTHBEXLEY
29/04/2024,948455,0,3121.16,MEYER HOUSE RESIDENTIAL CARE HOME,8400010400,Nursing,Adults & Health,NORTHBEXLEY
29/04/2024,948458,0,3121.16,MEYER HOUSE RESIDENTIAL CARE HOME,8400010400,Nursing,Adults & Health,NORTHBEXLEY
29/04/2024,948459,0,3121.16,MEYER HOUSE RESIDENTIAL CARE HOME,8400010400,Nursing,Adults & Health,NORTHBEXLEY
29/04/2024,948460,0,3249.6,MEYER HOUSE RESIDENTIAL CARE HOME,8400010400,Nursing,Adults & Health,NORTHBEXLEY
29/04/2024,948461,0,4600,MEYER HOUSE RESIDENTIAL CARE HOME,8400010400,Nursing,Adults & Health,FROGNAL
29/04/2024,948462,0,5000,MEYER HOUSE RESIDENTIAL CARE HOME,8400010400,Nursing,Adults & Health,CLOCK TOWER
29/04/2024,948448,0,1560.58,MEYER HOUSE RESIDENTIAL CARE HOME,8400010400,Residential,Adults & Health,NORTHBEXLEY
29/04/2024,948449,0,1560.58,MEYER HOUSE RESIDENTIAL CARE HOME,8400010400,Residential,Adults & Health,NORTHBEXLEY
29/04/2024,948456,0,3121.16,MEYER HOUSE RESIDENTIAL CARE HOME,8400010400,Residential,Adults & Health,NORTHBEXLEY
29/04/2024,948457,0,3121.16,MEYER HOUSE RESIDENTIAL CARE HOME,8400010400,Residential,Adults & Health,NORTHBEXLEY
29/04/2024,948463,0,627.98,Redacted Personal Data,8300117000,ISF Payments,Adults & Health,CLOCK TOWER
29/04/2024,948464,0,1255.96,Redacted Personal Data,8300117000,ISF Payments,Adults & Health,CLOCK TOWER
29/04/2024,948470,0,734.38,Redacted Personal Data,8400486100,CommServs-ProvPayWA,Adults & Health,BOROUGHWIDE
29/04/2024,948469,0,734.38,Redacted Personal Data,8400486100,Supported Accommodation,Adults & Health,CLOCK TOWER
29/04/2024,948488,0,922.82,MILLSTREAM CARE HOME,8400039800,CRAG income - Residential,Adults & Health,BOROUGHWIDE
29/04/2024,948489,0,4056.34,MILLSTREAM CARE HOME,8400039800,Residential,Adults & Health,NORTHBEXLEY
29/04/2024,948490,0,4887.6,MILLSTREAM CARE HOME,8400039800,Residential,Adults & Health,NORTHBEXLEY
29/04/2024,948491,0,8112.68,MILLSTREAM CARE HOME,8400039800,Residential,Adults & Health,NORTHBEXLEY
29/04/2024,948492,0,9775.2,MILLSTREAM CARE HOME,8400039800,Residential,Adults & Health,NORTHBEXLEY
04/04/2024,948496,0,8755,MIND IN BEXLEY,2537100,PEI Grants - Bex MIND PrvStrt,Adults & Health,BOROUGHWIDE
29/04/2024,948673,0,1619.36,MKR HEALTHCARE LIMITED T/A CEDAR COURT C,8400487800,ASC Interim Beds,Adults & Health,BOROUGHWIDE
29/04/2024,948658,0,1619.36,MKR HEALTHCARE LIMITED T/A CEDAR COURT C,8400487800,Discharge to Assess-InterimBed,Adults & Health,NORTHBEXLEY
29/04/2024,948628,0,1619.36,MKR HEALTHCARE LIMITED T/A CEDAR COURT C,8400487800,Residential,Adults & Health,CLOCK TOWER
29/04/2024,948629,0,1619.36,MKR HEALTHCARE LIMITED T/A CEDAR COURT C,8400487800,Residential,Adults & Health,CLOCK TOWER
29/04/2024,948630,0,1619.36,MKR HEALTHCARE LIMITED T/A CEDAR COURT C,8400487800,Residential,Adults & Health,CLOCK TOWER
29/04/2024,948631,0,1619.36,MKR HEALTHCARE LIMITED T/A CEDAR COURT C,8400487800,Residential,Adults & Health,FROGNAL
29/04/2024,948632,0,1619.36,MKR HEALTHCARE LIMITED T/A CEDAR COURT C,8400487800,Residential,Adults & Health,FROGNAL
29/04/2024,948633,0,1619.36,MKR HEALTHCARE LIMITED T/A CEDAR COURT C,8400487800,Residential,Adults & Health,NORTHBEXLEY
29/04/2024,948634,0,1619.36,MKR HEALTHCARE LIMITED T/A CEDAR COURT C,8400487800,Residential,Adults & Health,NORTHBEXLEY
29/04/2024,948635,0,1619.36,MKR HEALTHCARE LIMITED T/A CEDAR COURT C,8400487800,Residential,Adults & Health,NORTHBEXLEY
29/04/2024,948656,0,1619.36,MKR HEALTHCARE LIMITED T/A CEDAR COURT C,8400487800,Residential,Adults & Health,NORTHBEXLEY
29/04/2024,948657,0,1619.36,MKR HEALTHCARE LIMITED T/A CEDAR COURT C,8400487800,Residential,Adults & Health,NORTHBEXLEY
29/04/2024,948659,0,1619.36,MKR HEALTHCARE LIMITED T/A CEDAR COURT C,8400487800,Residential,Adults & Health,CLOCK TOWER
29/04/2024,948660,0,1619.36,MKR HEALTHCARE LIMITED T/A CEDAR COURT C,8400487800,Residential,Adults & Health,CLOCK TOWER
29/04/2024,948661,0,1619.36,MKR HEALTHCARE LIMITED T/A CEDAR COURT C,8400487800,Residential,Adults & Health,CLOCK TOWER
29/04/2024,948662,0,1619.36,MKR HEALTHCARE LIMITED T/A CEDAR COURT C,8400487800,Residential,Adults & Health,NORTHBEXLEY
29/04/2024,948663,0,1619.36,MKR HEALTHCARE LIMITED T/A CEDAR COURT C,8400487800,Residential,Adults & Health,NORTHBEXLEY
29/04/2024,948664,0,1619.36,MKR HEALTHCARE LIMITED T/A CEDAR COURT C,8400487800,Residential,Adults & Health,NORTHBEXLEY
29/04/2024,948665,0,1619.36,MKR HEALTHCARE LIMITED T/A CEDAR COURT C,8400487800,Residential,Adults & Health,NORTHBEXLEY
29/04/2024,948666,0,1619.36,MKR HEALTHCARE LIMITED T/A CEDAR COURT C,8400487800,Residential,Adults & Health,NORTHBEXLEY
29/04/2024,948667,0,1619.36,MKR HEALTHCARE LIMITED T/A CEDAR COURT C,8400487800,Residential,Adults & Health,NORTHBEXLEY
29/04/2024,948668,0,1619.36,MKR HEALTHCARE LIMITED T/A CEDAR COURT C,8400487800,Residential,Adults & Health,NORTHBEXLEY
29/04/2024,948669,0,1619.36,MKR HEALTHCARE LIMITED T/A CEDAR COURT C,8400487800,Residential,Adults & Health,NORTHBEXLEY
29/04/2024,948670,0,1619.36,MKR HEALTHCARE LIMITED T/A CEDAR COURT C,8400487800,Residential,Adults & Health,NORTHBEXLEY
29/04/2024,948671,0,1619.36,MKR HEALTHCARE LIMITED T/A CEDAR COURT C,8400487800,Residential,Adults & Health,NORTHBEXLEY
29/04/2024,948677,0,1818,MKR HEALTHCARE LIMITED T/A CEDAR COURT C,8400487800,Residential,Adults & Health,NORTHBEXLEY
29/04/2024,948680,0,2344,MKR HEALTHCARE LIMITED T/A CEDAR COURT C,8400487800,Residential,Adults & Health,NORTHBEXLEY
29/04/2024,948682,0,2400,MKR HEALTHCARE LIMITED T/A CEDAR COURT C,8400487800,Residential,Adults & Health,NORTHBEXLEY
29/04/2024,948683,0,2652,MKR HEALTHCARE LIMITED T/A CEDAR COURT C,8400487800,Residential,Adults & Health,NORTHBEXLEY
29/04/2024,948636,0,1619.36,MKR HEALTHCARE LIMITED T/A CEDAR COURT C,8400487800,ResPlcmts-ProvPayOP,Adults & Health,BOROUGHWIDE
29/04/2024,948637,0,1619.36,MKR HEALTHCARE LIMITED T/A CEDAR COURT C,8400487800,ResPlcmts-ProvPayOP,Adults & Health,BOROUGHWIDE
29/04/2024,948638,0,1619.36,MKR HEALTHCARE LIMITED T/A CEDAR COURT C,8400487800,ResPlcmts-ProvPayOP,Adults & Health,BOROUGHWIDE
29/04/2024,948639,0,1619.36,MKR HEALTHCARE LIMITED T/A CEDAR COURT C,8400487800,ResPlcmts-ProvPayOP,Adults & Health,BOROUGHWIDE
29/04/2024,948640,0,1619.36,MKR HEALTHCARE LIMITED T/A CEDAR COURT C,8400487800,ResPlcmts-ProvPayOP,Adults & Health,BOROUGHWIDE
29/04/2024,948641,0,1619.36,MKR HEALTHCARE LIMITED T/A CEDAR COURT C,8400487800,ResPlcmts-ProvPayOP,Adults & Health,BOROUGHWIDE
29/04/2024,948642,0,1619.36,MKR HEALTHCARE LIMITED T/A CEDAR COURT C,8400487800,ResPlcmts-ProvPayOP,Adults & Health,BOROUGHWIDE
29/04/2024,948643,0,1619.36,MKR HEALTHCARE LIMITED T/A CEDAR COURT C,8400487800,ResPlcmts-ProvPayOP,Adults & Health,BOROUGHWIDE
29/04/2024,948644,0,1619.36,MKR HEALTHCARE LIMITED T/A CEDAR COURT C,8400487800,ResPlcmts-ProvPayOP,Adults & Health,BOROUGHWIDE
29/04/2024,948645,0,1619.36,MKR HEALTHCARE LIMITED T/A CEDAR COURT C,8400487800,ResPlcmts-ProvPayOP,Adults & Health,BOROUGHWIDE
